{"text_format":"1","workbook":"xlsx","n_sheets":13,"sheets":["Einstellungen","Kontierung","Eingabetabelle","KK bis 6 Std.","KK über 6 Std.","KG bis 6 Std.","KG über 6 Std.","Hort bis 4 Std.","Hort über 4 Std.","Zusammenfassung Kostensätze","Zusammenfassung2","höchstmöglicher Elternbeitrag","Erläuterungen"],"not_rendered":{"charts":0,"images":1,"macros":1,"external_links":0,"defined_names":19,"comments":1,"pivot_tables":0},"unopened":[],"bounds":{"document_bytes":16777216,"sheet_cells":100000,"rows_first":2000,"rows_last":500,"rows_between":2000,"halvings":0,"cell_chars":16384,"cell_head_chars":4096},"cells_cut":0,"cells_raw":0,"read":"whole","date_system":"1900"}

{"sheet":"Einstellungen","index":0,"n_rows":30,"n_cols":9,"rows_kept":30,"cut":false,"hidden":true,"merged":[[0,0,38,0]]}
["Bitte ausblenden!","feste Einstellungen:"]
[null,"Version:",7]
[null,"Dateiversion:","2021-02-01",null,null,"Trägerart/ Buchhaltungsart:","Kostenausgleich:","Leitungsanteile:","Ja/Nein"]
[null,"Jahr:",2021,null,null,"Freie Träger/Standardkontenrahmen SKR03","ja",0,"ja"]
[null,"Öffnungstage:",250,null,null,"Freie Träger/Standardkontenrahmen SKR49, Vereine/Stiftungen/gGmbH","nein",0.125,"nein"]
[null,"Bez. Jugendamt:","örtlicher Träger der Jugendhilfe",null,null,"Freie Träger, Variante 3",null,0.25]
[null,"abzügl. Amtsumlage:",0.45,null,null,"Kommunale Träger/Kommunaler Kontenrahmenplan der Landes BRB",null,0.375]
[null,"Verwaltungsumlage",445,null,null,"Kommunale Träger/Variante 2",null,0.5]
[null,"PS KK bis 6 Std.",0.8,5,5,7]
[null,"PS KK über 6 Std.",1,5,5]
[null,"PS KG bis 6 Std.",0.8,10]
[null,"PS KG über 6 Std.",1,10]
[null,"PS Hort bis 4 Std.",0.6,15]
[null,"PS Hort über 4 Std.",0.8,15]
[null,"Finanzierung Leiter",0.85]
[null,"Finanzierung Erzieher KK",0.88600000000000001,null,0.88600000000000001]
[null,"Finanzierung Erzieher KG",0.876]
[null,"Finanzierung Erzieher Hort",0.84]
[null,"Finanzierung Erzieher KK altes Recht",0.84]
[null,"Finanzierung Leiter altes Recht",0.84]
[null,"Sockel-Leitungsanteil gemäß § 5 KitaPerV",6.25E-2]
[]
[null,"Ist Kommunaler Träger ?",{"$f":"IF(OR(Eingabetabelle!E6=Einstellungen!F7,Eingabetabelle!E6=Einstellungen!F8),TRUE,FALSE)","v":true},null,null,"Ausgleichsbeträge gemäß KitaLAV"]
[null,"Kostenausgleich ?",{"$f":" IF(Eingabetabelle!D9=Einstellungen!G4,TRUE,FALSE)","v":true},null,null,"belegte Plätze","Ausgleichsbetrag"]
[null,"KK anzeigen",{"$f":"IF(Eingabetabelle!I19=Einstellungen!I4,TRUE,FALSE)","v":true},null,null,40,5387.05]
[null,"KG anzeigen",{"$f":"IF(Eingabetabelle!I20=Einstellungen!I4,TRUE,FALSE)","v":true},null,null,70,5789.86]
[null,"Hort anzeigen",{"$f":"IF(Eingabetabelle!I21=Einstellungen!I4,TRUE,FALSE)","v":false},null,null,100,6104.99]
[null,"Ausgleichsbetrag gemäß KitaLAV",{"$f":"IF(Eingabetabelle!E14<=0,0,IF(Eingabetabelle!E14<Einstellungen!F25,Einstellungen!G25,IF(Eingabetabelle!E14<Einstellungen!F26,Einstellungen!G26,IF(Eingabetabelle!E14<Einstellungen!F27,Einstellungen!G27,IF(Eingabetabelle!E14<Einstellungen!F28,Einstellungen!G28,IF(Eingabetabelle!E14<Einstellungen!F29,Einstellungen!G29,IF(Eingabetabelle!E14>=Einstellungen!F30,Einstellungen!G30,-1)))))))","v":0},null,null,130,6262.53]
[null,null,null,null,null,180,6577.64]
[null,"Zuschuss beitragsfreies Jahr",125,null,null,180,7129.1]

{"sheet":"Kontierung","index":1,"n_rows":138,"n_cols":12,"rows_kept":138,"cut":false,"hidden":true,"merged":[[0,10,0,11],[0,0,1,1],[0,2,0,3],[0,4,0,5],[0,6,0,7],[0,8,0,9]]}
["Bitte ausblenden!",null,{"$f":"Einstellungen!F4","v":"Freie Träger/Standardkontenrahmen SKR03"},null,{"$f":"Einstellungen!F5","v":"Freie Träger/Standardkontenrahmen SKR49, Vereine/Stiftungen/gGmbH"},null,{"$f":"Einstellungen!F6","v":"Freie Träger, Variante 3"},null,{"$f":"Einstellungen!F7","v":"Kommunale Träger/Kommunaler Kontenrahmenplan der Landes BRB"},null,{"$f":"Einstellungen!F8","v":"Kommunale Träger/Variante 2"}]
[null,null,"Kontierung","Beschreibung","Kontierung","Beschreibung","Kontierung","Beschreibung","Kontierung","Bezeichnung der Kontierung\nlt. Kommunalem Kontenrahmenplan des Landes BRB","Kontierung","Beschreibung"]
["1.","Erträge"]
["1.1.","Zuschüsse des Leistungsverpflichteten  …",null,null,null,null,null,null," "," "]
[null,"   - … für Leiterin",null,null,null,null,null,null,4142,"Zuweisungen für laufende Zwecke von Gemeinden/GV"]
[null,"   - … für Erzieherin",null,null,null,null,null,null,4142,"Zuweisungen für laufende Zwecke von Gemeinden/GV"]
["1.2.","Elternbeiträge",null,null,null,null,null,null,4321,"Benutzungsgebühren und ähnliche Entgelte"]
["1.3.","Essengeld (Eltern)",null,null,null,null,null,null,4321,"Benutzungsgebühren und ähnliche Entgelte"]
["1.4.","Essengeld der Beschäftigten",null,null,null,null,null,null,442,"Erträge aus dem Verkauf von Vorräten (Verpflegung an Beschäftigte)"]
["1.5.","Zuschüsse für Kinder mit Integrationsbedarf und besonderen Förderbedarf",null,null,null,null,null,null,4142,"Zuweisungen für laufende Zwecke von Gemeinden/GV"]
["1.6.","Zuschüsse für Projekte oder von anderen öffentlichen Körperschaften",null,null,null,null,null,null,414,"Zuweisungen und Zuschüsse für laufende Zwecke - Untergliederung je nach Zuschussgeber"]
["1.7.","Zuschüsse der Agentur für Arbeit für Maßnahmen der Arbeitsförderung",null,null,null,null,null,null,4144,"Zuweisungen für laufende Zwecke vom sonstigen öffentlichen Bereich"]
["1.8.","Zuschüsse zur Sprachstandsförderung",null,null,null,null,null,null,4142,"Zuweisungen für laufende Zwecke von Gemeinden/GV"]
["1.9.","Zuschüsse Qualitätsmanagement",null,null,null,null,null,null,4142,"Zuweisungen für laufende Zwecke von Gemeinden/GV"]
["1.10.","Zuschüsse im Rahmen des Bildungs- und Teilhabegesetzes",null,null,null,null,null,null,4142,"Zuweisungen für laufende Zwecke von Gemeinden/GV"]
["1.11.","Zuschüsse vom überörtlichen Träger der Jugendhilfe",null,null,null,null,null,null,414,"Zuweisungen und Zuschüsse für laufende Zwecke - Untergliederung je nach Zuschussgeber"]
["1.12.","Erstattungen der Krankenkassen ",null,null,null,null,null,null,448," Erträge aus Kostenerstattungen, Kostenumlagen"]
["1.13.","Erstattungen vom Finanzamt",null,null,null,null,null,null,452,"Erstattung von Steuern"]
["1.14.","Leistungen von Versicherungen ",null,null,null,null,null,null,4488,"Erstattungen von übrigen Bereichen"]
["1.15.","Erträge aus Vermietung und Verpachtung",null,null,null,null,null,null,4411,"Mieten und Pachten"]
["1.16.","Erträge aus in der Kita durchgeführte Kurse und Freizeitgestaltung",null,null,null,null,null,null,4321,"Benutzungsgebühren und ähnliche Entgelte"]
["1.17.","Erträge für betreute Kinder von Tagespflegepersonen",null,null,null,null,null,null,4142,"Zuweisungen für laufende Zwecke von Gemeinden/GV"]
["1.18.","Geldspenden und Erträge aus Festen, Verkaufsaktionen",null,null,null,null,null,null,414,"Zuweisungen und Zuschüsse für laufende Zwecke - Untergliederung je nach Zuschussgeber"]
["1.19.","Zinsen und weitere Erträge",null,null,null,null,null,null,461,"Zinserträge"]
["1.20.","Finanzielle Eigenleistungen des Trägers",null,null,null,null,null,null," "," "]
["1.21.","Eigenleistungen des Trägers (nur informativ, wird nicht in der Summe berücksichtigt)",null,null,null,null,null,null," "," "]
[null,"Sachspenden",null,null,null,null,null,null,414,"Zuweisungen und Zuschüsse für laufende Zwecke - Untergliederung je nach Zuschussgeber"]
[null,"Arbeitsleistungen",null,null,null,null,null,null,4711,"aktivierte Eigenleistungen"]
[null,"Qualitätsmanagement",null,null,null,null,null,null," "," "]
[null,"Bereitstellung vom zusätzlichem Personal",null,null,null,null,null,null," "," "]
[null,"Sonstiges",null,null,null,null,null,null," "," "]
["2.","Aufwendungen Personalkosten"]
["2.1.","Personalkosten"]
[null,"Pädagogisches Personal/ErzieherIn",null,null,null,null,null,null,"5012, 5032","Personalaufwand, Beiträge zur gesetzl. SV für tariflich Beschäftigte"]
[null,"Pädagogisches Personal/Leiterin",null,null,null,null,null,null,"5012, 5032","Personalaufwand, Beiträge zur gesetzl. SV für tariflich Beschäftigte"]
[null,"Pädagogisches Personal/Leiterin Organisationsanteil",null,null,null,null,null,null,"5012, 5032","Personalaufwand, Beiträge zur gesetzl. SV für tariflich Beschäftigte"]
["3.","Personal- und Sachkosten für pädagogische Arbeit ",null,null,null,null,null,null," "," "]
["3.1.","Sprachstandsförderung",null,null,null,null,null,null," "," "]
[null,"Personalkosten",null,null,null,null,null,null,"5012, 5032","Personalaufwand, Beiträge zur gesetzl. SV für tariflich Beschäftigte"]
[null,"Sachkosten für die Sprachförderung  (GWG´s bis 150 €)",null,null,null,null,null,null,5431,"Geschäftsaufwendungen (geringstwertige Wirtschaftsgüter)\nSofortaufwand"]
["3.2.","Aufwendungen für pädagogisches Personal",null,null,null,null,null,null," "," "]
[null,"Personalkosten über das notwendige pädagogische Personal hinaus",null,null,null,null,null,null,"5012, 5032","Personalaufwand, Beiträge zur gesetzl. SV für tariflich Beschäftigte"]
[null,"Aufwendungen für Personal in Altersteilzeit und Vorruhestand",null,null,null,null,null,null,507,"Personalaufwand, Beiträge zur gesetzl. SV für tariflich Beschäftigte"]
[null,"Personalkosten für die Integration und besonderen Förderbedarf"]
[null,"Personalkosten für die Ausbildung von pädagogischen Personal oder für eine Konsultationskindertagestätte",null,null,null,null,null,null,"5012, 5032","Personalaufwand, Beiträge zur gesetzl. SV für tariflich Beschäftigte"]
[null,"Vertretungskosten",null,null,null,null,null,null,"5012, 5032\n5019, 5039","Personalaufwand, Beiträge zur gesetzl. SV für tariflich Beschäftigte\nPersonalaufwand, Beiträge zur gesetzl. SV für sonstige Beschäftigte"]
[null,"Vertretungspauschale für den Ausfall von Tagespflegepersonen"]
[null,"Praktikanten, BFD, FSJ, ijgd",null,null,null,null,null,null,"5012, 5032\n5019, 5039","Personalaufwand, Beiträge zur gesetzl. SV für tariflich Beschäftigte\nPersonalaufwand, Beiträge zur gesetzl. SV für sonstige Beschäftigte"]
[null,"Lohnfortzahlung im Krankheitsfall",null,null,null,null,null,null,"5012, 5032","Personalaufwand, Beiträge zur gesetzl. SV für tariflich Beschäftigte"]
[null,"Aufwendungen für weitere Lohnzahlung",null,null,null,null,null,null,"5012, 5032","Personalaufwand, Beiträge zur gesetzl. SV für tariflich Beschäftigte"]
[null,"Honorarkräfte",null,null,null,null,null,null,"5019, 5039","Personalaufwand, Beiträge zur gesetzl. SV für sonstige Beschäftigte"]
["3.3.","Pflichtige Sozialversicherungsumlagen",null,null,null,null,null,null," "," "]
[null,"U 1 - Entgeltfortzahlungsversicherung",null,null,null,null,null,null,503," Beiträge zur gesetzlichen Sozialversicherung"]
[null,"U 2 - Entgeltfortzahlungsversicherung",null,null,null,null,null,null,503," Beiträge zur gesetzlichen Sozialversicherung"]
[null,"U 3 - Insolvenzgeldumlage",null,null,null,null,null,null,503," Beiträge zur gesetzlichen Sozialversicherung"]
["3.4.","Aus- und Fortbildung/Reisekosten/Supervision",null,null,null,null,null,null," "," "]
[null,"Aus- und Fortbildung",null,null,null,null,null,null,5261,"Besondere Aufwendungen für Beschäftigte"]
[null,"Reisekosten zur Fortbildung und Dienstreisen",null,null,null,null,null,null,5411,"sonstige Personal- und Versorgungsaufwendungen"]
[null,"Supervision",null,null,null,null,null,null,5261,"Besondere Aufwendungen für Beschäftigte = max-Grenze\n(tats.Kosten bis 1.800 €/Einrichtung)"]
[null,"Qualitätsmanagement",null,null,null,null,null,null," "," "]
["3.5.","Abfindungen",null,null,null,null,null,null,501,"Dienstaufwendungen"]
["3.6.","sonstige Personalnebenkosten",null,null,null,null,null,null,5411,"sonstige Personal- und Versorgungsaufwendungen"]
["3.7.","Spiel- und Beschäftigungsverbrauchsmaterial und\nFreizeitgestaltung/Medien",null,null,null,null,null,null," ","  "]
[null,"Spiel- und Beschäftigungsmaterial und Freizeitgestaltung (GWG´s bis 105 €)",null,null,null,null,null,null,5431,"Geschäftsaufwendungen (geringstwertige Wirtschaftsgüter)\nSofortaufwand"]
[null,"Rundfunkbeitrag GEZ",null,null,null,null,null,null,5429,"sonstige Aufwendungen für die Inanspruchnahme von Rechten und Diensten"]
[null,"sonstige Kosten der Versorgung mit technischen Medien",null,null,null,null,null,null,5431,"Geschäftsaufwendungen "]
["4.","Personal- und Sachkosten für das Grundstück und Gebäude der Kita, \nsowie für dessen Bewirtschaftung"]
["4.1.","Hauswirtschaftliches und technisches Personal\n(ohne Küchenpersonal)",null,null,null,null,null,null," "," "]
[null,"Reinigungskraft",null,null,null,null,null,null,"5012, 5032","Personalaufwand, Beiträge zur gesetzl. SV für tariflich Beschäftigte"]
[null,"Hausmeister",null,null,null,null,null,null,"5012, 5032","Personalaufwand, Beiträge zur gesetzl. SV für tariflich Beschäftigte"]
[null,"Sonstiges",null,null,null,null,null,null,"5012, 5032","Personalaufwand, Beiträge zur gesetzl. SV für tariflich Beschäftigte"]
["4.2.","Aus- und Fortbildung/Reisekosten",null,null,null,null,null,null," "," "]
[null,"Fortbildung",null,null,null,null,null,null,5261,"Besondere Aufwendungen für Beschäftigte"]
[null,"Reisekosten zur Fortbildung",null,null,null,null,null,null,5411,"sonstige Personal- und Versorgungsaufwendungen"]
[null,"Dienstreisen",null,null,null,null,null,null,5411,"sonstige Personal- und Versorgungsaufwendungen"]
["4.3.","Abfindungen",null,null,null,null,null,null,501,"Dienstaufwendungen"]
["4.4.","Reinigungsgeräte/ - mittel (Sanitärbedarf, Hygieneartikel, Wäschereinigung)",null,null,null,null,null,null,5241,"Bewirtschaftung der Grundstücke und baul. Anlagen"]
["4.5.","Leistungen durch Fremdbetriebe",null,null,null,null,null,null," "," "]
[null,"Hausmeisterdienste durch Fremdbetriebe",null,null,null,null,null,null,5241,"Bewirtschaftung der Grundstücke und baul. Anlagen"]
[null,"Reinigung durch Fremdbetriebe",null,null,null,null,null,null,5241,"Bewirtschaftung der Grundstücke und baul. Anlagen"]
[null,"Objektschutz",null,null,null,null,null,null,5241,"Bewirtschaftung der Grundstücke und baul. Anlagen"]
[null,"Wäschereinigung- und pflege",null,null,null,null,null,null,5241,"Bewirtschaftung der Grundstücke und baul. Anlagen"]
[null,"Ungeziefer- oder Schädlingsbekämpfung, -kontrollen",null,null,null,null,null,null,5241,"Bewirtschaftung der Grundstücke und baul. Anlagen"]
[null,"Winterdienst/Straßenreinigung und Gartenpflege",null,null,null,null,null,null,5241,"Bewirtschaftung der Grundstücke und baul. Anlagen"]
["4.6.","Dienst/- Schutzbekleidung beim technischen Personal",null,null,null,null,null,null,5261,"Besondere Aufwendungen für Beschäftigte"]
["4.7.","Mieten und Pachten",null,null,null,null,null,null," "," "]
[null,"Tatsächliche Miete",null,null,null,null,null,null,5231,"Mieten und Pachten"]
[null,"kalkulatorische Miete"]
[null,"Pachten/Erbbaurecht",null,null,null,null,null,null,5231,"Mieten und Pachten"]
["4.8.","Erhaltungsaufwand/Pflege des Gebäudes/Grundstücks und Wartung/Prüfung der Anlagen ",null,null,null,null,null,null," "," "]
[null,"Erhaltungsaufwand, Reparaturen",null,null,null,null,null,null,5211,"Unterhaltung der Grundstücke und baul. Anlagen"]
[null,"Wartung und Prüfung",null,null,null,null,null,null,5211,"Unterhaltung der Grundstücke und baul. Anlagen"]
[null,"Brandschutz",null,null,null,null,null,null,5211,"Unterhaltung der Grundstücke und baul. Anlagen"]
["4.9.","Gebäude- und Sachversicherungen ",null,null,null,null,null,null," "," "]
[null,"Gebäudeversicherung",null,null,null,null,null,null,5241,"Bewirtschaftung der Grundstücke und baul. Anlagen"]
[null,"Inventarversicherung",null,null,null,null,null,null,5241,"Bewirtschaftung der Grundstücke und baul. Anlagen"]
["4.10.","Wärme/Energie/Wasser/Abwasser",null,null,null,null,null,null," "," "]
[null,"Pauschale",null,null,null,null,null,null,5241,"Bewirtschaftung der Grundstücke und baul. Anlagen"]
[null,"Wärme",null,null,null,null,null,null,5241,"Bewirtschaftung der Grundstücke und baul. Anlagen"]
[null,"Energie",null,null,null,null,null,null,5241,"Bewirtschaftung der Grundstücke und baul. Anlagen"]
[null,"Wasser",null,null,null,null,null,null,5241,"Bewirtschaftung der Grundstücke und baul. Anlagen"]
[null,"Abwasser",null,null,null,null,null,null,5241,"Bewirtschaftung der Grundstücke und baul. Anlagen"]
["4.11.","öffentliche Abgaben Grundstück/Gebäude",null,null,null,null,null,null," "," "]
[null,"Müll- und Abfallkosten",null,null,null,null,null,null,5241,"Bewirtschaftung der Grundstücke und baul. Anlagen"]
[null,"Straßenreinigungskosten",null,null,null,null,null,null,5241,"Bewirtschaftung der Grundstücke und baul. Anlagen"]
[null,"Winterdienstkosten",null,null,null,null,null,null,5241,"Bewirtschaftung der Grundstücke und baul. Anlagen"]
[null,"Kosten für sonstige öffentliche Abgaben",null,null,null,null,null,null,5241,"Bewirtschaftung der Grundstücke und baul. Anlagen"]
["4.12.","Sonstige Kosten",null,null,null,null,null,null," "," "]
["5.","Personal und Sachkosten für die Versorgung mit Essen",null,null,null,null,null,null," "," "]
["5.1.","Küchenpersonal",null,null,null,null,null,null,"5012, 5032","Personalaufwand, Beiträge zur gesetzl. SV für tariflich Beschäftigte"]
["5.2.","Dienst/- Schutzbekleidung beim Küchenpersonal",null,null,null,null,null,null,5261,"Besondere Aufwendungen für Beschäftigte "]
["5.3.","Lebensmittelkosten",null,null,null,null,null,null,5281,"Aufwendungen für den Erwerb von Vorräten"]
["5.4.","Entsorgung von Speiseresten",null,null,null,null,null,null,5241,"Bewirtschaftung der Grundstücke und baul.Anlagen"]
["5.5.","Fremdleistungen (Nebenkosten für die Versorgung)",null,null,null,null,null,null,5291,"Aufwendungen für sonstige Dienstleistungen"]
["5.6.","Geringwertige Wirtschaftsgüter",null,null,null,null,null,null,5431,"Geschäftsaufwendungen (geringstwertige Wirtschaftsgüter)\nSofortaufwand"]
["5.7.","Sonstige Kosten",null,null,null,null,null,null," "," "]
["6.","Sonstige Personal und Sachkosten",null,null,null,null,null,null," "," "]
["6.1.","Maßnahmen zur Unfallverhütung und medizinische Betreuung",null,null,null,null,null,null," "," "]
[null,"Arbeitsmedizinische Betreuung der Arbeitnehmer",null,null,null,null,null,null,5041,"Beihilfen und Unterstützungsleistungen für Beschäftigte"]
[null,"Erste-Hilfe-Ausstattung nach DIN 13169",null,null,null,null,null,null,5281,"Aufwendungen für den Erwerb von Vorräten"]
[null,"Grund- und anlassbezogene Betreuung",null,null,null,null,null,null,5291,"Aufwendungen für sonstige Dienstleistungen"]
[null,"arbeitsmedizinische Vorsorgeuntersuchungen",null,null,null,null,null,null,5041,"Beihilfen und Unterstützungsleistungen für Beschäftigte"]
["6.2.","Beiträge",null,null,null,null,null,null," "," "]
[null,"Verbands- und Organisationsbeiträge",null,null,null,null,null,null,5291,"Aufwendungen für sonstige Dienstleistungen"]
[null,"Beiträge zur Betriebshaftpflicht/Unfallversicherung",null,null,null,null,null,null,5441,"Steuern, Versicherungen, Schadensfälle"]
[null,"Beiträge zur Berufsgenossenschaft und Unfallkasse BRB",null,null,null,null,null,null,5441,"Steuern, Versicherungen, Schadensfälle"]
["6.3.","Schwerbehindertenabgabe",null,null,null,null,null,null,531,"Zuweisungen und Zuschüsse für laufende Zwecke"]
["6.4.","Verwaltungsumlage/Trägerkosten",null,null,null,null,null,null," "," "]
["6.5.","Personalrat/Betriebsrat",null,null,null,null,null,null,5411,"Sonstige Personal- und Versorgungsaufwendungen"]
["6.6.","Datenschutz",null,null,null,null,null,null,5291,"Aufwendungen für sonstige Dienstleistungen"]
["6.7.","Sonstige Kosten",null,null,null,null,null,null," "," "]
["7.","Sachkosten für den Ersatz und die Ergänzung von Einrichtungsgegenständen \n(außer Küche und Spiel-und Beschäftigungsmaterial)"]
["7.1.","Geringwertige Wirtschaftsgüter",null,null,null,null,null,null,5431,"Geschäftsaufwendungen (geringstwertige Wirtschaftsgüter)\nSofortaufwand"]
["7.2.","Anschaffung (Kauf)/Herstellung von abnutzbaren beweglichen Vermögensgegenständen im Bereich von 150 € bis 1.000 €     ",null,null,null,null,null,null,571,"Abschreibungen auf immaterielle Vermögensgegenstände und Sachanlagen (Sammelposten) "]
["7.3.","Anschaffung (Kauf)/Herstellung von abnutzbaren beweglichen Vermögensgegenständen im Bereich ab 1.000 €",null,null,null,null,null,null,571,"Abschreibungen auf immaterielle Vermögensgegenstände und Sachanlagen (Sammelposten) "]
["7.4.","Anschaffung von abnutzbaren beweglichen Vermögensgegenständen durch Leasing",null,null,null,null,null,null,5232,"Leasing "]
["8.","Fördermittel",null,null,null,null,null,null," "," "]
["9.","Zinsen für Fremdkapital",null,null,null,null,null,null,55,"Zinsen und sonstige Finanzaufwendungen"]

{"sheet":"Eingabetabelle","index":2,"n_rows":212,"n_cols":12,"rows_kept":212,"cut":false,"hidden":false,"merged":[[135,1,135,5],[153,1,153,5],[154,1,154,5],[161,1,161,5],[119,1,119,5],[128,1,128,5],[126,1,126,5],[160,3,160,4],[160,1,160,2],[159,1,159,2],[159,3,159,4],[132,1,132,5],[14,0,14,3],[15,0,15,8],[18,4,18,7],[13,5,13,7],[14,5,14,7],[36,1,36,5],[37,1,37,5],[129,1,129,5],[130,1,130,5],[28,1,28,5],[19,4,19,7],[53,1,53,5],[55,1,55,5],[63,1,63,5],[58,1,58,5],[59,1,59,5],[60,1,60,5],[61,1,61,5],[103,1,103,5],[102,1,102,5],[112,1,112,5],[89,1,89,5],[84,1,84,5],[114,1,114,5],[11,4,11,7],[20,4,20,7],[173,1,173,5],[174,1,174,8],[175,1,175,5],[172,1,172,5],[169,1,169,5],[133,1,133,5],[134,1,134,5],[155,1,155,5],[170,1,170,5],[157,1,157,8],[158,1,158,5],[156,1,156,5],[141,1,141,5],[147,1,147,5],[162,1,162,5],[163,1,163,5],[164,1,164,5],[152,1,152,5],[12,4,12,7],[13,0,13,3],[35,1,35,5],[34,1,34,5],[0,0,0,8],[48,1,48,5],[49,1,49,5],[88,1,88,5],[1,0,1,8],[2,4,2,8],[30,1,30,5],[31,1,31,5],[8,0,8,2],[47,1,47,5],[3,4,3,8],[10,4,10,7],[4,4,4,8],[5,0,5,3],[5,4,5,8],[6,4,6,8],[86,1,86,5],[81,1,81,5],[73,1,73,5],[7,4,7,8],[44,1,44,5],[29,1,29,5],[38,1,38,5],[80,1,80,5],[188,1,188,5],[22,10,22,11],[27,1,27,5],[54,1,54,5],[118,1,118,5],[105,1,105,8],[107,7,107,8],[106,1,106,5],[97,1,97,5],[43,1,43,5],[77,1,77,5],[82,1,82,5],[24,1,24,8],[23,0,23,5],[32,1,32,5],[33,1,33,5],[26,1,26,5],[79,1,79,5],[68,1,68,8],[94,1,94,5],[96,1,96,5],[101,1,101,5],[76,1,76,5],[131,1,131,5],[209,1,209,5],[189,1,189,5],[187,1,187,5],[190,1,190,8],[195,1,195,5],[203,1,203,5],[204,1,204,5],[205,1,205,5],[143,1,146,1],[201,0,201,8],[206,1,206,5],[207,1,207,5],[208,1,208,5],[180,1,180,5],[185,1,185,5],[186,1,186,5],[197,1,197,5],[202,1,202,5],[194,1,194,5],[196,1,196,5],[192,1,192,5],[193,1,193,5],[171,1,171,5],[191,1,191,5],[111,1,111,5],[25,1,25,5],[87,1,87,5],[90,1,90,5],[42,1,42,5],[74,1,74,8],[67,1,67,8],[92,1,92,5],[104,1,104,5],[98,1,98,5],[99,1,99,5],[100,1,100,5],[62,1,62,5],[64,1,64,5],[75,1,75,5],[69,6,69,8],[93,1,93,5],[85,1,85,5],[83,1,83,5],[39,1,39,5]]}
[{"$f":"\"Diese Datei ist Eigentum des Landratsamtes Potsdam-Mittelmark. Eine unbefugte Weitergabe an Dritte ist nicht gestattet!\nStand: \" & Einstellungen!C3","v":"Diese Datei ist Eigentum des Landratsamtes Potsdam-Mittelmark. Eine unbefugte Weitergabe an Dritte ist nicht gestattet!\nStand: 44228"},null,null,null,null,null,null,null,null,"höchstm. EB"]
[{"$f":"\"Berechnung der Entgelte für Kindertagesstätten im Landkreis Potsdam-Mittelmark\nfür das Jahr \"&Einstellungen!C4&\"\nRechtsstand: 01.08.2020\"","v":"Berechnung der Entgelte für Kindertagesstätten im Landkreis Potsdam-Mittelmark\nfür das Jahr 2021\nRechtsstand: 01.08.2020"}]
["Name und Anschrift der Einrichtung"]
["Träger der Einrichtung"]
["Kitanummer"]
["Trägerart / Buchhaltungsart",null,null,null,"Kommunale Träger/Kommunaler Kontenrahmenplan der Landes BRB"]
["Rechtsform"]
["Art der Einrichtung"]
["Kostenausgleich im Amt ?",null,null,"ja"]
["Kapazität"]
["Öffnungstage",null,null,{"$f":"Einstellungen!C5","v":250}," Durchschnittssatz ErzieherIn pro Monat"]
["Belegungstage",null,null,{"$f":"ROUND(D11*D10*D13,2)","v":0}," Durchschnittssatz LeiterIn pro Monat"]
["Auslastungsgrad",null,null,null," Durchschnittssatz gemäß KitaLAV",null,null,null,{"$f":"Einstellungen!C28","v":0}]
["Jahresmittel der belegten Plätze des Vorjahres:"]
["Anzahl tatsächliches pädagogisches Personal:"]
["Leitungsanteile des Vorjahres"]
["Stichtag","päd. LA","Stichtag ","org. LA","Durchschnittlicher päd. Leitungsanteil des Vorjahres: ",null,null,null,{"$f":"ROUND(AVERAGE(B18:B21),3)","v":0}]
["01.12.",0,"01.12.",0,"Durchschnittlicher org. Leitungsanteil des Vorjahres:",null,null,null,{"$f":"ROUND(AVERAGE(D18:D21),3)","v":0}]
["01.03.",0,"01.03.",0,"Betreuungsalter 0 bis unter 3 Jahre",null,null,null,"ja"]
["01.06.",0,"01.06.",0,"Betreuungsalter 3 Jahre bis Schuleintritt",null,null,null,"ja"]
["01.09.",0,"01.09.",0,"Betreuungsalter Klassenstufe 1 bis 6",null,null,null,"nein"]
[null,null,null," "]
[null,null,null,null,null,null,"Jahreskosten\ngesamt","Tageskosten\ngesamt","Kosten pro\nKind pro\nBelegungs-tage",null,"Empfehlung zur Kontierung"]
[1,null,null,null,null,null,2,3,4]
["1.","Erträge",null,null,null,null,null,null,null,null,{"$f":"IF($E$6=Einstellungen!$F$7, Kontierung!I2,\"\")","v":"Kontierung"},{"$f":"IF($E$6=Einstellungen!$F$7, Kontierung!J2,\"\")","v":"Bezeichnung der Kontierung\nlt. Kommunalem Kontenrahmenplan des Landes BRB"}]
["1.1.","Zuschüsse des Leistungsverpflichteten  …",null,null,null,null,null,null,null,null,{"$f":"IF($E$6=Einstellungen!$F$7, Kontierung!I4,\"\")","v":" "},{"$f":"IF($E$6=Einstellungen!$F$7, Kontierung!J4,\"\")","v":" "}]
[null,"   - … für Leiterin",null,null,null,null,null,null,null,null,{"$f":"IF($E$6=Einstellungen!$F$7, Kontierung!I5,\"\")","v":4142},{"$f":"IF($E$6=Einstellungen!$F$7, Kontierung!J5,\"\")","v":"Zuweisungen für laufende Zwecke von Gemeinden/GV"}]
[null,"   - … für Erzieherin",null,null,null,null,null,null,null,null,{"$f":"IF($E$6=Einstellungen!$F$7, Kontierung!I6,\"\")","v":4142},{"$f":"IF($E$6=Einstellungen!$F$7, Kontierung!J6,\"\")","v":"Zuweisungen für laufende Zwecke von Gemeinden/GV"}]
[null,"  - … Sockel-Leitungsanteil gemäß § 5 KitaPerV",null,null,null,null,{"$f":"ROUND(Einstellungen!C21*I13*12,2)","v":0},{"$f":"ROUND(G29/$D$11,2)","v":0},{"$f":"IF($D$12 =0,0,ROUND(G29/D11/D10,2))","v":0},{"$f":"IF($D$12 =0,0,ROUND($G29/$D$11/$D$10,2))","v":0}]
["1.2.","Elternbeiträge für Kinder, die nicht beitragsfrei gestellt sind",null,null,null,null,{"$f":"SUM(G31:G35)","v":0},0,{"$f":"IF($D$12 =0,0,ROUND(G30/$D$12,2))","v":0},0,{"$f":"IF($E$6=Einstellungen!$F$7, Kontierung!I7,\"\")","v":4321},{"$f":"IF($E$6=Einstellungen!$F$7, Kontierung!J7,\"\")","v":"Benutzungsgebühren und ähnliche Entgelte"}]
[null,"- ohne Differenzierung nach Altersgruppen (KK, KG, Hort)",null,null,null,null,0,0,0,0]
[null,"- nur für Kinder im Kinderkrippenalter",null,null,null,null,0,0,0,0]
[null,"- nur für Kinder im Kindergartenalter",null,null,null,null,0,0,0,0]
[null,"- nur für Kinder im Grundschulalter",null,null,null,null,0,0,0,0]
[null,"- für Kinder 0 bis zur Einschulung, wenn keine Differenzierung in\n  den Elternbeiträgen erfolgt (Grundlage ist die Elternbeitrags- \n  satzung / -ordnung)",null,null,null,null,0,0,0,0]
["1.2a",{"$f":"\"pauschaler Zuschuss für das beitragsfreie Kitajahr (\"& TEXT(Einstellungen!C30,\"##0,00 €;\") &\")\"","v":"pauschaler Zuschuss für das beitragsfreie Kitajahr (125,00 €)"},null,null,null,null,0,0,0,0]
["1.2b","erhöhter Zuschuss für das beitragsfreie Kitajahr",null,null,null,null,0,0,0,0]
["1.2c","Zuschuss für Kinder mit niedrigem Einkommen und Sozialleistungen",null,null,null,null,0,0,0,0]
["1.2d","Zuschuss i.H.v. 600,00 € je Kind und Jahr bei einer Betreuung von über 8 Stunden",null,null,null,null,0,0,0,0]
["1.2e","Zuschuss für entgangene Elternbeiträge \"Corona\" ",null,null,null,null,0,0,0,0]
["1.3.","Essengeld (Eltern)",null,null,null,null,0,0,0,0,{"$f":"IF($E$6=Einstellungen!$F$7, Kontierung!I8,\"\")","v":4321},{"$f":"IF($E$6=Einstellungen!$F$7, Kontierung!J8,\"\")","v":"Benutzungsgebühren und ähnliche Entgelte"}]
["1.4.","Essengeld der Beschäftigten",null,null,null,null,0,0,0,0,{"$f":"IF($E$6=Einstellungen!$F$7, Kontierung!I9,\"\")","v":442},{"$f":"IF($E$6=Einstellungen!$F$7, Kontierung!J9,\"\")","v":"Erträge aus dem Verkauf von Vorräten (Verpflegung an Beschäftigte)"}]
["1.5.","Zuschüsse für Kinder mit Integrationsbedarf und besonderen Förderbedarf",null,null,null,null,0,0,0,0,{"$f":"IF($E$6=Einstellungen!$F$7, Kontierung!I10,\"\")","v":4142},{"$f":"IF($E$6=Einstellungen!$F$7, Kontierung!J10,\"\")","v":"Zuweisungen für laufende Zwecke von Gemeinden/GV"}]
["1.6.","Zuschüsse für Projekte oder von anderen öffentlichen Körperschaften",null,null,null,null,0,0,0,0,{"$f":"IF($E$6=Einstellungen!$F$7, Kontierung!I11,\"\")","v":414},{"$f":"IF($E$6=Einstellungen!$F$7, Kontierung!J11,\"\")","v":"Zuweisungen und Zuschüsse für laufende Zwecke - Untergliederung je nach Zuschussgeber"}]
["1.7.","Zuschüsse der Agentur für Arbeit für Maßnahmen der Arbeitsförderung",null,null,null,null,0,0,0,0,{"$f":"IF($E$6=Einstellungen!$F$7, Kontierung!I12,\"\")","v":4144},{"$f":"IF($E$6=Einstellungen!$F$7, Kontierung!J12,\"\")","v":"Zuweisungen für laufende Zwecke vom sonstigen öffentlichen Bereich"}]
["1.8.","Zuschüsse zur Sprachförderung",null,null,null,null,0,0,0,0,{"$f":"IF($E$6=Einstellungen!$F$7, Kontierung!I13,\"\")","v":4142},{"$f":"IF($E$6=Einstellungen!$F$7, Kontierung!J13,\"\")","v":"Zuweisungen für laufende Zwecke von Gemeinden/GV"}]
["1.9.","Zuschüsse Qualitätsmanagement",null,null,null,null,0,0,0,0,{"$f":"IF($E$6=Einstellungen!$F$7, Kontierung!I14,\"\")","v":4142},{"$f":"IF($E$6=Einstellungen!$F$7, Kontierung!J14,\"\")","v":"Zuweisungen für laufende Zwecke von Gemeinden/GV"}]
["1.10.","Zuschüsse im Rahmen des Bildungs- und Teilhabegesetzes",null,null,null,null,0,0,0,0,{"$f":"IF($E$6=Einstellungen!$F$7, Kontierung!I15,\"\")","v":4142},{"$f":"IF($E$6=Einstellungen!$F$7, Kontierung!J15,\"\")","v":"Zuweisungen für laufende Zwecke von Gemeinden/GV"}]
["1.11.","Zuschüsse vom überörtlichen Träger der Jugendhilfe",null,null,null,null,0,0,0,0,{"$f":"IF($E$6=Einstellungen!$F$7, Kontierung!I16,\"\")","v":414},{"$f":"IF($E$6=Einstellungen!$F$7, Kontierung!J16,\"\")","v":"Zuweisungen und Zuschüsse für laufende Zwecke - Untergliederung je nach Zuschussgeber"}]
["1.12.","Erstattungen der Krankenkassen ",null,null,null,null,0,0,0,0,{"$f":"IF($E$6=Einstellungen!$F$7, Kontierung!I17,\"\")","v":448},{"$f":"IF($E$6=Einstellungen!$F$7, Kontierung!J17,\"\")","v":" Erträge aus Kostenerstattungen, Kostenumlagen"}]
["1.13.","Erstattungen vom Finanzamt",null,null,null,null,0,0,0,0,{"$f":"IF($E$6=Einstellungen!$F$7, Kontierung!I18,\"\")","v":452},{"$f":"IF($E$6=Einstellungen!$F$7, Kontierung!J18,\"\")","v":"Erstattung von Steuern"}]
["1.14.","Leistungen von Versicherungen ",null,null,null,null,0,0,0,0,{"$f":"IF($E$6=Einstellungen!$F$7, Kontierung!I19,\"\")","v":4488},{"$f":"IF($E$6=Einstellungen!$F$7, Kontierung!J19,\"\")","v":"Erstattungen von übrigen Bereichen"}]
["1.15.","Erträge aus Vermietung und Verpachtung",null,null,null,null,0,0,0,0,{"$f":"IF($E$6=Einstellungen!$F$7, Kontierung!I20,\"\")","v":4411},{"$f":"IF($E$6=Einstellungen!$F$7, Kontierung!J20,\"\")","v":"Mieten und Pachten"}]
["1.16.","Erträge aus in der Kita durchgeführte Kurse und Freizeitgestaltung",null,null,null,null,0,0,0,0,{"$f":"IF($E$6=Einstellungen!$F$7, Kontierung!I21,\"\")","v":4321},{"$f":"IF($E$6=Einstellungen!$F$7, Kontierung!J21,\"\")","v":"Benutzungsgebühren und ähnliche Entgelte"}]
["1.17.","Erträge für betreute Kinder von Tagespflegepersonen",null,null,null,null,0,0,0,0,{"$f":"IF($E$6=Einstellungen!$F$7, Kontierung!I22,\"\")","v":4142},{"$f":"IF($E$6=Einstellungen!$F$7, Kontierung!J22,\"\")","v":"Zuweisungen für laufende Zwecke von Gemeinden/GV"}]
["1.18.","Geldspenden und Erträge aus Festen, Verkaufsaktionen",null,null,null,null,0,0,0,0,{"$f":"IF($E$6=Einstellungen!$F$7, Kontierung!I23,\"\")","v":414},{"$f":"IF($E$6=Einstellungen!$F$7, Kontierung!J23,\"\")","v":"Zuweisungen und Zuschüsse für laufende Zwecke - Untergliederung je nach Zuschussgeber"}]
["1.19.","Zinsen und weitere Erträge",null,null,null,null,0,0,0,0,{"$f":"IF($E$6=Einstellungen!$F$7, Kontierung!I24,\"\")","v":461},{"$f":"IF($E$6=Einstellungen!$F$7, Kontierung!J24,\"\")","v":"Zinserträge"}]
["1.20.","Finanzielle Eigenleistungen des Trägers",null,null,null,null,0,0,0,0,{"$f":"IF($E$6=Einstellungen!$F$7, Kontierung!I25,\"\")","v":" "},{"$f":"IF($E$6=Einstellungen!$F$7, Kontierung!J25,\"\")","v":" "}]
["1.21.","Eigenleistungen des Trägers\n(nur informativ, wird nicht in der Summe berücksichtigt)",null,null,null,null,{"$f":"SUM(G60:G64)","v":0},0,0,0,{"$f":"IF($E$6=Einstellungen!$F$7, Kontierung!I26,\"\")","v":" "},{"$f":"IF($E$6=Einstellungen!$F$7, Kontierung!J26,\"\")","v":" "}]
[null,"Sachspenden",null,null,null,null,0,null,null,0,{"$f":"IF($E$6=Einstellungen!$F$7, Kontierung!I27,\"\")","v":414},{"$f":"IF($E$6=Einstellungen!$F$7, Kontierung!J27,\"\")","v":"Zuweisungen und Zuschüsse für laufende Zwecke - Untergliederung je nach Zuschussgeber"}]
[null,"Arbeitsleistungen",null,null,null,null,0,null,null,0,{"$f":"IF($E$6=Einstellungen!$F$7, Kontierung!I28,\"\")","v":4711},{"$f":"IF($E$6=Einstellungen!$F$7, Kontierung!J28,\"\")","v":"aktivierte Eigenleistungen"}]
[null,"Qualitätsmanagement",null,null,null,null,0,null,null,0,{"$f":"IF($E$6=Einstellungen!$F$7, Kontierung!I29,\"\")","v":" "},{"$f":"IF($E$6=Einstellungen!$F$7, Kontierung!J29,\"\")","v":" "}]
[null,"Bereitstellung vom zusätzlichem Personal",null,null,null,null,0,null,null,0,{"$f":"IF($E$6=Einstellungen!$F$7, Kontierung!I30,\"\")","v":" "},{"$f":"IF($E$6=Einstellungen!$F$7, Kontierung!J30,\"\")","v":" "}]
[null,"Sonstiges",null,null,null,null,0,null,null,0,{"$f":"IF($E$6=Einstellungen!$F$7, Kontierung!I31,\"\")","v":" "},{"$f":"IF($E$6=Einstellungen!$F$7, Kontierung!J31,\"\")","v":" "}]
[null,"Summe Erträge Pkt. 1.2 bis 1.20.",null,null,null,null,{"$f":"SUM(G36:G58,G30)","v":0},{"$f":"SUM(H36:H58,H30)","v":0},{"$f":"SUM(I36:I58,I30)","v":0},0]
[]
["**) Bitte Erläuterung beifügen!"]
["2.","Aufwendungen Personalkosten"]
["2.1.","Personalkosten"]
[null,"Pädagogisches Personal/ErzieherIn",null,null,null,null,null,null,null,null,{"$f":"IF($E$6=Einstellungen!$F$7, Kontierung!I34,\"\")","v":"5012, 5032"},{"$f":"IF($E$6=Einstellungen!$F$7, Kontierung!J34,\"\")","v":"Personalaufwand, Beiträge zur gesetzl. SV für tariflich Beschäftigte"}]
[null,"Pädagogisches Personal/Leiterin",null,null,null,null,{"$f":"ROUND(I17*I12*12,2)","v":0},{"$f":"ROUND(G71/$D$11,2)","v":0},{"$f":"IF(OR($D$11 =0, $D$10=0),0, ROUND((G71/$D$11/$D$10),2))","v":0},{"$f":"IF(OR($D$11 =0, $D$10=0),0, ROUND(($G71/$D$11/$D$10),2))","v":0},{"$f":"IF($E$6=Einstellungen!$F$7, Kontierung!I35,\"\")","v":"5012, 5032"},{"$f":"IF($E$6=Einstellungen!$F$7, Kontierung!J35,\"\")","v":"Personalaufwand, Beiträge zur gesetzl. SV für tariflich Beschäftigte"}]
[null,"Pädagogisches Personal/Leiterin Organisationsanteil",null,null,null,null,{"$f":"ROUND(I18*I12*12,2)","v":0},{"$f":"ROUND(G72/$D$11,2)","v":0},{"$f":"IF(OR($D$11 =0, $D$10=0),0, ROUND((G72/$D$11/$D$10),2))","v":0},{"$f":"IF(OR($D$11 =0, $D$10=0),0, ROUND(($G72/$D$11/$D$10),2))","v":0},{"$f":"IF($E$6=Einstellungen!$F$7, Kontierung!I36,\"\")","v":"5012, 5032"},{"$f":"IF($E$6=Einstellungen!$F$7, Kontierung!J36,\"\")","v":"Personalaufwand, Beiträge zur gesetzl. SV für tariflich Beschäftigte"}]
[null,"Sockel-Leitungsanteil gemäß § 5 KitaPerV",null,null,null,null,{"$f":"ROUND(Einstellungen!C21*I13*12,2)","v":0},{"$f":"ROUND(G73/$D$11,2)","v":0},{"$f":"IF($D$12 =0,0, ROUND((G73/D11/D10),2))","v":0},{"$f":"IF(OR($D$11 =0, $D$10=0),0, ROUND(($G73/$D$11/$D$10),2))","v":0}]
[null,"Summe ",null,null,null,null,{"$f":"SUM(G71:G73)","v":0},{"$f":"SUM(H71:H73)","v":0},{"$f":"SUM(I71:I73)","v":0},{"$f":"IF(OR($D$11 =0, $D$10=0),0, ROUND(($G74/$D$11/$D$10),2))","v":0}]
["3.","Personal- und Sachkosten für pädagogische Arbeit "]
["3.1.","Sprachstandsförderung",null,null,null,null,{"$f":"G77+G78","v":0},{"$f":"ROUND(G76/$D$11,2)","v":0},{"$f":"IF(OR($D$11 =0, $D$10=0),0, ROUND((G76/$D$12),2))","v":0},{"$f":"IF(OR($D$11 =0, $D$10=0),0, ROUND(($G76/$D$10/$D$11),2))","v":0}]
[null,"Personalkosten",null,null,null,null,0,{"$f":"ROUND(G77/$D$11,2)","v":0},{"$f":"IF(OR($D$11 =0, $D$10=0),0, ROUND((G77/$D$11/$D$10),6))","v":0},{"$f":"IF(OR($D$11 =0, $D$10=0),0, ROUND(($G77/$D$10/$D$11),2))","v":0},{"$f":"IF($E$6=Einstellungen!$F$7, Kontierung!I39,\"\")","v":"5012, 5032"},{"$f":"IF($E$6=Einstellungen!$F$7, Kontierung!J39,\"\")","v":"Personalaufwand, Beiträge zur gesetzl. SV für tariflich Beschäftigte"}]
[null,"Sachkosten für die Sprachförderung  (GWG´s bis 150 €)",null,null,null,null,0,{"$f":"SUM(G78/D11)","v":0},{"$f":"IF(OR($D$11 =0, $D$10=0),0, ROUND((G78/$D$11/$D$10),6))","v":0},0,{"$f":"IF($E$6=Einstellungen!$F$7, Kontierung!I40,\"\")","v":5431},{"$f":"IF($E$6=Einstellungen!$F$7, Kontierung!J40,\"\")","v":"Geschäftsaufwendungen (geringstwertige Wirtschaftsgüter)\nSofortaufwand"}]
["3.2.","Aufwendungen für pädagogisches Personal",null,null,null,null,{"$f":"SUM(G80:G91)","v":0},{"$f":"ROUND(G79/$D$11,2)","v":0},{"$f":"IF(OR($D$11 =0, $D$10=0),0, ROUND((G79/$D$12),2))","v":0},0,{"$f":"IF($E$6=Einstellungen!$F$7, Kontierung!I41,\"\")","v":" "},{"$f":"IF($E$6=Einstellungen!$F$7, Kontierung!J41,\"\")","v":" "}]
[null,"Personalkosten über das notwendige pädagogische Personal hinaus",null,null,null,null,0,0,{"$f":"IF(OR($D$11 =0, $D$10=0),0, ROUND((G80/$D$11/$D$10),6))","v":0},0,{"$f":"IF($E$6=Einstellungen!$F$7, Kontierung!I42,\"\")","v":"5012, 5032"},{"$f":"IF($E$6=Einstellungen!$F$7, Kontierung!J42,\"\")","v":"Personalaufwand, Beiträge zur gesetzl. SV für tariflich Beschäftigte"}]
[null,"Aufwendungen für Personal in Altersteilzeit und Vorruhestand",null,null,null,null,0,0,0,0,{"$f":"IF($E$6=Einstellungen!$F$7, Kontierung!I43,\"\")","v":507},{"$f":"IF($E$6=Einstellungen!$F$7, Kontierung!J43,\"\")","v":"Personalaufwand, Beiträge zur gesetzl. SV für tariflich Beschäftigte"}]
[null,"Personalkosten für die Integration und besonderen Förderbedarf (in der Höhe identisch mit Erträgen unter 1.5.)",null,null,null,null,0,0,0,0,{"$f":"IF($E$6=Einstellungen!$F$7, Kontierung!I44,\"\")","v":0},{"$f":"IF($E$6=Einstellungen!$F$7, Kontierung!J44,\"\")","v":0}]
[null,"Personalkosten für die Ausbildung von pädagogischen Personal oder für eine Konsultationskindertagestätte",null,null,null,null,0,0,0,0,{"$f":"IF($E$6=Einstellungen!$F$7, Kontierung!I45,\"\")","v":"5012, 5032"},{"$f":"IF($E$6=Einstellungen!$F$7, Kontierung!J45,\"\")","v":"Personalaufwand, Beiträge zur gesetzl. SV für tariflich Beschäftigte"}]
[null,"Personalkosten gemäß § 10 Abs. 2-4 KitaPersV",null,null,null,null,0,0,0,0]
[null,"Vertretungskosten",null,null,null,null,0,0,0,0,{"$f":"IF($E$6=Einstellungen!$F$7, Kontierung!I46,\"\")","v":"5012, 5032\n5019, 5039"},{"$f":"IF($E$6=Einstellungen!$F$7, Kontierung!J46,\"\")","v":"Personalaufwand, Beiträge zur gesetzl. SV für tariflich Beschäftigte\nPersonalaufwand, Beiträge zur gesetzl. SV für sonstige Beschäftigte"}]
[null,"Vertretungspauschale für den Ausfall von Tagespflegepersonen",null,null,null,null,0,0,0,0,{"$f":"IF($E$6=Einstellungen!$F$7, Kontierung!I47,\"\")","v":0},{"$f":"IF($E$6=Einstellungen!$F$7, Kontierung!J47,\"\")","v":0}]
[null,"Praktikanten, BFD, FSJ, ijgd",null,null,null,null,0,0,0,0,{"$f":"IF($E$6=Einstellungen!$F$7, Kontierung!I48,\"\")","v":"5012, 5032\n5019, 5039"},{"$f":"IF($E$6=Einstellungen!$F$7, Kontierung!J48,\"\")","v":"Personalaufwand, Beiträge zur gesetzl. SV für tariflich Beschäftigte\nPersonalaufwand, Beiträge zur gesetzl. SV für sonstige Beschäftigte"}]
[null,"Lohnfortzahlung im Krankheitsfall",null,null,null,null,0,0,0,0,{"$f":"IF($E$6=Einstellungen!$F$7, Kontierung!I49,\"\")","v":"5012, 5032"},{"$f":"IF($E$6=Einstellungen!$F$7, Kontierung!J49,\"\")","v":"Personalaufwand, Beiträge zur gesetzl. SV für tariflich Beschäftigte"}]
[null,"Aufwendungen für weitere Lohnzahlung",null,null,null,null,0,0,0,0,{"$f":"IF($E$6=Einstellungen!$F$7, Kontierung!I50,\"\")","v":"5012, 5032"},{"$f":"IF($E$6=Einstellungen!$F$7, Kontierung!J50,\"\")","v":"Personalaufwand, Beiträge zur gesetzl. SV für tariflich Beschäftigte"}]
[null,"Honorarkräfte",null,null,null,null,0,0,0,0]
[null,"Aufwendungen für Personal zur Förderung verlängerter Betreuungsumfänge (in der Höhe identisch mit den Erträgen unter Punkt 1.2d)",null,null,null,null,0,0,0,0,{"$f":"IF($E$6=Einstellungen!$F$7, Kontierung!I51,\"\")","v":"5019, 5039"},{"$f":"IF($E$6=Einstellungen!$F$7, Kontierung!J51,\"\")","v":"Personalaufwand, Beiträge zur gesetzl. SV für sonstige Beschäftigte"}]
["3.3.","Pflichtige Sozialversicherungsumlagen",null,null,null,null,{"$f":"G93+G94+G95","v":0},0,{"$f":"IF(OR($D$11 =0, $D$10=0),0, ROUND((G92/$D$12),2))","v":0},0,{"$f":"IF($E$6=Einstellungen!$F$7, Kontierung!I52,\"\")","v":" "},{"$f":"IF($E$6=Einstellungen!$F$7, Kontierung!J52,\"\")","v":" "}]
[null,"U 1 - Entgeltfortzahlungsversicherung",null,null,null,null,0,0,{"$f":"IF(OR($D$11 =0, $D$10=0),0, ROUND((G93/$D$11/$D$10),6))","v":0},0,{"$f":"IF($E$6=Einstellungen!$F$7, Kontierung!I53,\"\")","v":503},{"$f":"IF($E$6=Einstellungen!$F$7, Kontierung!J53,\"\")","v":" Beiträge zur gesetzlichen Sozialversicherung"}]
[null,"U 2 - Entgeltfortzahlungsversicherung",null,null,null,null,0,0,{"$f":"IF(OR($D$11 =0, $D$10=0),0, ROUND((G94/$D$11/$D$10),6))","v":0},0,{"$f":"IF($E$6=Einstellungen!$F$7, Kontierung!I54,\"\")","v":503},{"$f":"IF($E$6=Einstellungen!$F$7, Kontierung!J54,\"\")","v":" Beiträge zur gesetzlichen Sozialversicherung"}]
[null,"U 3 - Insolvenzgeldumlage",null,null,null,null,0,0,{"$f":"IF(OR($D$11 =0, $D$10=0),0, ROUND((G95/$D$11/$D$10),6))","v":0},0,{"$f":"IF($E$6=Einstellungen!$F$7, Kontierung!I55,\"\")","v":503},{"$f":"IF($E$6=Einstellungen!$F$7, Kontierung!J55,\"\")","v":" Beiträge zur gesetzlichen Sozialversicherung"}]
["3.4.","Aus- und Fortbildung/Reisekosten/Supervision",null,null,null,null,{"$f":"SUM(G97:G100)","v":0},0,{"$f":"IF(OR($D$11 =0, $D$10=0),0, ROUND((G96/$D$12),2))","v":0},0,{"$f":"IF($E$6=Einstellungen!$F$7, Kontierung!I56,\"\")","v":" "},{"$f":"IF($E$6=Einstellungen!$F$7, Kontierung!J56,\"\")","v":" "}]
[null,"Aus- und Fortbildung\n(Ist mit Maximal-Grenze: bis zu 105 €/Jahr/MitarbeiterIn)",null,null,null,null,0,0,{"$f":"IF(OR($D$11 =0, $D$10=0),0, ROUND((G97/$D$11/$D$10),6))","v":0},0,{"$f":"IF($E$6=Einstellungen!$F$7, Kontierung!I57,\"\")","v":5261},{"$f":"IF($E$6=Einstellungen!$F$7, Kontierung!J57,\"\")","v":"Besondere Aufwendungen für Beschäftigte"}]
[null,"Reisekosten zur Fortbildung und Dienstreisen\n(Ist mit Maximal-Grenze: bis zu 53 €/Jahr/MitarbeiterIn)",null,null,null,null,0,0,{"$f":"IF(OR($D$11 =0, $D$10=0),0, ROUND((G98/$D$11/$D$10),6))","v":0},0,{"$f":"IF($E$6=Einstellungen!$F$7, Kontierung!I58,\"\")","v":5411},{"$f":"IF($E$6=Einstellungen!$F$7, Kontierung!J58,\"\")","v":"sonstige Personal- und Versorgungsaufwendungen"}]
[null,"Supervision\n(Ist mit Maximal-Grenze: bis zu 1.875 €/Jahr/Einrichtung)",null,null,null,null,0,0,{"$f":"IF(OR($D$11 =0, $D$10=0),0, ROUND((G99/$D$11/$D$10),6))","v":0},0,{"$f":"IF($E$6=Einstellungen!$F$7, Kontierung!I59,\"\")","v":5261},{"$f":"IF($E$6=Einstellungen!$F$7, Kontierung!J59,\"\")","v":"Besondere Aufwendungen für Beschäftigte = max-Grenze\n(tats.Kosten bis 1.800 €/Einrichtung)"}]
[null,"Qualitätsmanagement",null,null,null,null,0,0,{"$f":"IF(OR($D$11 =0, $D$10=0),0, ROUND((G100/$D$11/$D$10),6))","v":0},0,{"$f":"IF($E$6=Einstellungen!$F$7, Kontierung!I60,\"\")","v":" "},{"$f":"IF($E$6=Einstellungen!$F$7, Kontierung!J60,\"\")","v":" "}]
["3.5.","Abfindungen",null,null,null,null,0,0,{"$f":"IF(OR($D$11 =0, $D$10=0),0, ROUND((G101/$D$12),2))","v":0},0,{"$f":"IF($E$6=Einstellungen!$F$7, Kontierung!I61,\"\")","v":501},{"$f":"IF($E$6=Einstellungen!$F$7, Kontierung!J61,\"\")","v":"Dienstaufwendungen"}]
["3.6.","sonstige Personalnebenkosten",null,null,null,null,0,0,{"$f":"IF(OR($D$11 =0, $D$10=0),0, ROUND((G102/$D$12),2))","v":0},0,{"$f":"IF($E$6=Einstellungen!$F$7, Kontierung!I62,\"\")","v":5411},{"$f":"IF($E$6=Einstellungen!$F$7, Kontierung!J62,\"\")","v":"sonstige Personal- und Versorgungsaufwendungen"}]
["3.7.","Spiel- und Beschäftigungsverbrauchsmaterial und\nFreizeitgestaltung",null,null,null,null,{"$f":"G104","v":0},0,{"$f":"IF(OR($D$11 =0, $D$10=0),0, ROUND((G103/$D$12),2))","v":0},0,{"$f":"IF($E$6=Einstellungen!$F$7, Kontierung!I63,\"\")","v":" "},{"$f":"IF($E$6=Einstellungen!$F$7, Kontierung!J63,\"\")","v":"  "}]
[null,"Spiel- und Beschäftigungsmaterial und Freizeitgestaltung (GWG's bis 150 € (kommunale Träger) bzw. 250 € (freie Träger), Ist mit Maximal-Grenze: bis zu 105 €/Jahr/Kind(Platzkapazität))",null,null,null,null,0,0,{"$f":"IF(OR($D$11 =0, $D$10=0),0, ROUND((G104/$D$11/$D$10),6))","v":0},0,{"$f":"IF($E$6=Einstellungen!$F$7, Kontierung!I64,\"\")","v":5431},{"$f":"IF($E$6=Einstellungen!$F$7, Kontierung!J64,\"\")","v":"Geschäftsaufwendungen (geringstwertige Wirtschaftsgüter)\nSofortaufwand"}]
[null,"Summe Pkt. 3.1. bis 3.7.",null,null,null,null,{"$f":"G76+G79+G92+G96+G101+G102+G103","v":0},0,{"$f":"IF(OR($D$11 =0, $D$10=0),0, ROUND((G105/$D$12),2))","v":0},0]
["4.","Personal- und Sachkosten für das Grundstück und Gebäude der Kita, \nsowie für dessen Bewirtschaftung",null,null,null,null,null,null,null,{"$f":"IF(OR($D$11 =0, $D$10=0),0, ROUND(($G106/$D$10/$D$11),2))","v":0}]
["4.1.","Hauswirtschaftliches und technisches Personal\n(ohne Küchenpersonal)",null,null,null,null,{"$f":"G109+G110+G111","v":0},{"$f":"ROUND(G107/$D$11,2)","v":0},{"$f":"IF(OR($D$11 =0, $D$10=0),0, ROUND((G107/$D$12),2))","v":0},0]
[null,null,null,null,"Stellen","Std./ Mitarb","Kosten jährlich"]
[null,"   Reinigungskraft",null,null,0,0,0,{"$f":"ROUND(G109/$D$11,2)","v":0},{"$f":"IF(OR($D$11 =0, $D$10=0),0, ROUND((G109/$D$11/$D$10),6))","v":0},0,{"$f":"IF($E$6=Einstellungen!$F$7, Kontierung!I69,\"\")","v":"5012, 5032"},{"$f":"IF($E$6=Einstellungen!$F$7, Kontierung!J69,\"\")","v":"Personalaufwand, Beiträge zur gesetzl. SV für tariflich Beschäftigte"}]
[null,"   Hausmeister",null,null,0,0,0,0,{"$f":"IF(OR($D$11 =0, $D$10=0),0, ROUND((G110/$D$11/$D$10),6))","v":0},{"$f":"IF(OR($D$11 =0, $D$10=0),0, ROUND(($G110/$D$10/$D$11),2))","v":0},{"$f":"IF($E$6=Einstellungen!$F$7, Kontierung!I70,\"\")","v":"5012, 5032"},{"$f":"IF($E$6=Einstellungen!$F$7, Kontierung!J70,\"\")","v":"Personalaufwand, Beiträge zur gesetzl. SV für tariflich Beschäftigte"}]
[null,"   Sonstiges  **)",null,null,null,null,0,0,{"$f":"IF(OR($D$11 =0, $D$10=0),0, ROUND((G111/$D$11/$D$10),6))","v":0},0,{"$f":"IF($E$6=Einstellungen!$F$7, Kontierung!I71,\"\")","v":"5012, 5032"},{"$f":"IF($E$6=Einstellungen!$F$7, Kontierung!J71,\"\")","v":"Personalaufwand, Beiträge zur gesetzl. SV für tariflich Beschäftigte"}]
["4.2.","Krankengeldzuschüsse für das technische Personal",null,null,null,null,0,0,{"$f":"IF(OR($D$11 =0, $D$10=0),0, ROUND((G112/$D$12),2))","v":0},0]
["4.3.","Dienst-/Schutzbekleidung beim technischen Personal",null,null,null,null,0,0,{"$f":"IF(OR($D$11 =0, $D$10=0),0, ROUND((G113/$D$12),2))","v":0},0]
["4.4.","Aus- und Fortbildung/Reisekosten",null,null,null,null,{"$f":"G115+G116+G117","v":0},0,{"$f":"IF(OR($D$11 =0, $D$10=0),0, ROUND((G114/$D$12),2))","v":0},0,{"$f":"IF($E$6=Einstellungen!$F$7, Kontierung!I72,\"\")","v":" "},{"$f":"IF($E$6=Einstellungen!$F$7, Kontierung!J72,\"\")","v":" "}]
[null,"Fortbildung\n(Ist mit Maximal-Grenze: bis zu 53 €/Jahr/MitarbeiterIn)",null,null,null,null,0,0,{"$f":"IF(OR($D$11 =0, $D$10=0),0, ROUND((G115/$D$11/$D$10),6))","v":0},0,{"$f":"IF($E$6=Einstellungen!$F$7, Kontierung!I73,\"\")","v":5261},{"$f":"IF($E$6=Einstellungen!$F$7, Kontierung!J73,\"\")","v":"Besondere Aufwendungen für Beschäftigte"}]
[null,"Reisekosten zur Fortbildung",null,null,null,null,0,0,{"$f":"IF(OR($D$11 =0, $D$10=0),0, ROUND((G116/$D$11/$D$10),6))","v":0},0,{"$f":"IF($E$6=Einstellungen!$F$7, Kontierung!I74,\"\")","v":5411},{"$f":"IF($E$6=Einstellungen!$F$7, Kontierung!J74,\"\")","v":"sonstige Personal- und Versorgungsaufwendungen"}]
[null,"Dienstreisen",null,null,null,null,0,0,{"$f":"IF(OR($D$11 =0, $D$10=0),0, ROUND((G117/$D$11/$D$10),6))","v":0},0,{"$f":"IF($E$6=Einstellungen!$F$7, Kontierung!I75,\"\")","v":5411},{"$f":"IF($E$6=Einstellungen!$F$7, Kontierung!J75,\"\")","v":"sonstige Personal- und Versorgungsaufwendungen"}]
["4.5.","Abfindungen",null,null,null,null,0,0,{"$f":"IF(OR($D$11 =0, $D$10=0),0, ROUND((G118/$D$12),2))","v":0},0,{"$f":"IF($E$6=Einstellungen!$F$7, Kontierung!I76,\"\")","v":501},{"$f":"IF($E$6=Einstellungen!$F$7, Kontierung!J76,\"\")","v":"Dienstaufwendungen"}]
["4.6.","Reinigungsgeräte/ - mittel und Verbrauchsmaterial (Sanitärbedarf, Hygieneartikel, Wäschereinigung)",null,null,null,null,0,0,{"$f":"IF(OR($D$11 =0, $D$10=0),0, ROUND((G119/$D$12),2))","v":0},0,{"$f":"IF($E$6=Einstellungen!$F$7, Kontierung!I77,\"\")","v":5241},{"$f":"IF($E$6=Einstellungen!$F$7, Kontierung!J77,\"\")","v":"Bewirtschaftung der Grundstücke und baul. Anlagen"}]
["4.7.","Leistungen durch Fremdbetriebe",null,null,null,null,{"$f":"SUM(G121:G126)","v":0},0,{"$f":"IF(OR($D$11 =0, $D$10=0),0, ROUND((G120/$D$12),2))","v":0},0,{"$f":"IF($E$6=Einstellungen!$F$7, Kontierung!I78,\"\")","v":" "},{"$f":"IF($E$6=Einstellungen!$F$7, Kontierung!J78,\"\")","v":" "}]
[null,"Hausmeisterdienste durch Fremdbetriebe",null,null,null,null,0,0,{"$f":"IF(OR($D$11 =0, $D$10=0),0, ROUND((G121/$D$11/$D$10),6))","v":0},0,{"$f":"IF($E$6=Einstellungen!$F$7, Kontierung!I79,\"\")","v":5241},{"$f":"IF($E$6=Einstellungen!$F$7, Kontierung!J79,\"\")","v":"Bewirtschaftung der Grundstücke und baul. Anlagen"}]
[null,"Reinigung durch Fremdbetriebe",null,null,null,null,0,0,0,0,{"$f":"IF($E$6=Einstellungen!$F$7, Kontierung!I80,\"\")","v":5241},{"$f":"IF($E$6=Einstellungen!$F$7, Kontierung!J80,\"\")","v":"Bewirtschaftung der Grundstücke und baul. Anlagen"}]
[null,"Wäschereinigung- und pflege",null,null,null,null,0,0,0,0,{"$f":"IF($E$6=Einstellungen!$F$7, Kontierung!I81,\"\")","v":5241},{"$f":"IF($E$6=Einstellungen!$F$7, Kontierung!J81,\"\")","v":"Bewirtschaftung der Grundstücke und baul. Anlagen"}]
[null,"Winterdienst/Straßenreinigung und Gartenpflege",null,null,null,null,0,0,0,0,{"$f":"IF($E$6=Einstellungen!$F$7, Kontierung!I82,\"\")","v":5241},{"$f":"IF($E$6=Einstellungen!$F$7, Kontierung!J82,\"\")","v":"Bewirtschaftung der Grundstücke und baul. Anlagen"}]
[null,"Ungeziefer- oder Schädlingsbekämpfung, -kontrollen",null,null,null,null,0,0,0,0,{"$f":"IF($E$6=Einstellungen!$F$7, Kontierung!I83,\"\")","v":5241},{"$f":"IF($E$6=Einstellungen!$F$7, Kontierung!J83,\"\")","v":"Bewirtschaftung der Grundstücke und baul. Anlagen"}]
[null,"Objektschutz",null,null,null,null,0,0,0,0,{"$f":"IF($E$6=Einstellungen!$F$7, Kontierung!I84,\"\")","v":5241},{"$f":"IF($E$6=Einstellungen!$F$7, Kontierung!J84,\"\")","v":"Bewirtschaftung der Grundstücke und baul. Anlagen"}]
["4.8.","Mieten und Pachten",null,null,null,null,{"$f":"SUM(G128:G133)","v":0},0,{"$f":"IF(OR($D$11 =0, $D$10=0),0, ROUND((G127/$D$12),2))","v":0},0,{"$f":"IF($E$6=Einstellungen!$F$7, Kontierung!I86,\"\")","v":" "},{"$f":"IF($E$6=Einstellungen!$F$7, Kontierung!J86,\"\")","v":" "}]
[null,"Tatsächliche Miete",null,null,null,null,0,0,{"$f":"IF(OR($D$11 =0, $D$10=0),0, ROUND((G128/$D$11/$D$10),6))","v":0},0,{"$f":"IF($E$6=Einstellungen!$F$7, Kontierung!I87,\"\")","v":5231},{"$f":"IF($E$6=Einstellungen!$F$7, Kontierung!J87,\"\")","v":"Mieten und Pachten"}]
[null,"kalkulatorische Miete\n(feste Pauschale: Region I+II 8,50€//m² nutzbare Innenfläche, \n Region III+IV 7,50€//m² nutzbare Innenfläche)",null,null,null,null,0,0,0,0,{"$f":"IF($E$6=Einstellungen!$F$7, Kontierung!I88,\"\")","v":0},{"$f":"IF($E$6=Einstellungen!$F$7, Kontierung!J88,\"\")","v":0}]
[null,"kalkulatorisches Entgelt für Außenflächen \n(feste Pauschale: 0,30€/m² Außenfläche)",null,null,null,null,0,0,0,0]
[null,"Pachten/Erbbaurecht",null,null,null,null,0,0,0,0]
[null,"Leasing für das Gebäude",null,null,null,null,0,0,0,0,{"$f":"IF($E$6=Einstellungen!$F$7, Kontierung!I89,\"\")","v":5231},{"$f":"IF($E$6=Einstellungen!$F$7, Kontierung!J89,\"\")","v":"Mieten und Pachten"}]
[null,"sonstige Kosten",null,null,null,null,0,0,0,0]
["4.9.","Erhaltungsaufwand/Pflege des Gebäudes/Grundstücks und Wartung/Prüfung der Anlagen ",null,null,null,null,{"$f":"SUM(G135:G138)","v":0},0,{"$f":"IF(OR($D$11 =0, $D$10=0),0, ROUND((G134/$D$12),2))","v":0},0,{"$f":"IF($E$6=Einstellungen!$F$7, Kontierung!I90,\"\")","v":" "},{"$f":"IF($E$6=Einstellungen!$F$7, Kontierung!J90,\"\")","v":" "}]
[null,"Erhaltungsaufwand, Reparaturen\n(Richtwert von 11 €/m² BGF)",null,null,null,null,0,0,{"$f":"IF(OR($D$11 =0, $D$10=0),0, ROUND((G135/$D$11/$D$10),6))","v":0},0,{"$f":"IF($E$6=Einstellungen!$F$7, Kontierung!I91,\"\")","v":5211},{"$f":"IF($E$6=Einstellungen!$F$7, Kontierung!J91,\"\")","v":"Unterhaltung der Grundstücke und baul. Anlagen"}]
[null,"Baumaßnahmen am Gebäude",null,null,null,null,0,0,{"$f":"IF(OR($D$11 =0, $D$10=0),0, ROUND((G136/$D$11/$D$10),6))","v":0},0]
[null,"Wartung und Prüfung",null,null,null,null,0,0,{"$f":"IF(OR($D$11 =0, $D$10=0),0, ROUND((G137/$D$11/$D$10),6))","v":0},0,{"$f":"IF($E$6=Einstellungen!$F$7, Kontierung!I92,\"\")","v":5211},{"$f":"IF($E$6=Einstellungen!$F$7, Kontierung!J92,\"\")","v":"Unterhaltung der Grundstücke und baul. Anlagen"}]
[null,"Brandschutz",null,null,null,null,0,0,{"$f":"IF(OR($D$11 =0, $D$10=0),0, ROUND((G138/$D$11/$D$10),6))","v":0},0,{"$f":"IF($E$6=Einstellungen!$F$7, Kontierung!I93,\"\")","v":5211},{"$f":"IF($E$6=Einstellungen!$F$7, Kontierung!J93,\"\")","v":"Unterhaltung der Grundstücke und baul. Anlagen"}]
["4.10.","Gebäude- und Sachversicherungen ",null,null,null,null,{"$f":"G140+G141","v":0},0,{"$f":"IF(OR($D$11 =0, $D$10=0),0, ROUND((G139/$D$12),2))","v":0},0,{"$f":"IF($E$6=Einstellungen!$F$7, Kontierung!I94,\"\")","v":" "},{"$f":"IF($E$6=Einstellungen!$F$7, Kontierung!J94,\"\")","v":" "}]
[null,"Gebäudeversicherung",null,null,null,null,0,0,{"$f":"IF(OR($D$11 =0, $D$10=0),0, ROUND((G140/$D$11/$D$10),2))","v":0},0,{"$f":"IF($E$6=Einstellungen!$F$7, Kontierung!I95,\"\")","v":5241},{"$f":"IF($E$6=Einstellungen!$F$7, Kontierung!J95,\"\")","v":"Bewirtschaftung der Grundstücke und baul. Anlagen"}]
[null,"Inventarversicherung",null,null,null,null,0,{"$f":"ROUND(G141/$D$11,2)","v":0},{"$f":"IF(OR($D$11 =0, $D$10=0),0, ROUND((G141/$D$11/$D$10),6))","v":0},0,{"$f":"IF($E$6=Einstellungen!$F$7, Kontierung!I96,\"\")","v":5241},{"$f":"IF($E$6=Einstellungen!$F$7, Kontierung!J96,\"\")","v":"Bewirtschaftung der Grundstücke und baul. Anlagen"}]
["4.11.","Wärme/Energie/Wasser/Abwasser",null,null,null,null,{"$f":"SUM(G143:G147)","v":0},0,{"$f":"IF(OR($D$11 =0, $D$10=0),0, ROUND((G142/$D$12),2))","v":0},0,{"$f":"IF($E$6=Einstellungen!$F$7, Kontierung!I97,\"\")","v":" "},{"$f":"IF($E$6=Einstellungen!$F$7, Kontierung!J97,\"\")","v":" "}]
[null,"Gesamtsumme",null,null,null,null,0,0,{"$f":"IF(OR($D$11 =0, $D$10=0),0, ROUND((G143/$D$11/$D$10),6))","v":0},0,{"$f":"IF($E$6=Einstellungen!$F$7, Kontierung!I98,\"\")","v":5241},{"$f":"IF($E$6=Einstellungen!$F$7, Kontierung!J98,\"\")","v":"Bewirtschaftung der Grundstücke und baul. Anlagen"}]
[null,"oder einzeln","Wärme",null,null,null,0,0,{"$f":"IF(OR($D$11 =0, $D$10=0),0, ROUND((G144/$D$11/$D$10),6))","v":0},0,{"$f":"IF($E$6=Einstellungen!$F$7, Kontierung!I99,\"\")","v":5241},{"$f":"IF($E$6=Einstellungen!$F$7, Kontierung!J99,\"\")","v":"Bewirtschaftung der Grundstücke und baul. Anlagen"}]
[null,null,"Energie",null,null,null,0,0,{"$f":"IF(OR($D$11 =0, $D$10=0),0, ROUND((G145/$D$11/$D$10),6))","v":0},0,{"$f":"IF($E$6=Einstellungen!$F$7, Kontierung!I100,\"\")","v":5241},{"$f":"IF($E$6=Einstellungen!$F$7, Kontierung!J100,\"\")","v":"Bewirtschaftung der Grundstücke und baul. Anlagen"}]
[null,null,"Wasser",null,null,null,0,0,{"$f":"IF(OR($D$11 =0, $D$10=0),0, ROUND((G146/$D$11/$D$10),6))","v":0},0,{"$f":"IF($E$6=Einstellungen!$F$7, Kontierung!I101,\"\")","v":5241},{"$f":"IF($E$6=Einstellungen!$F$7, Kontierung!J101,\"\")","v":"Bewirtschaftung der Grundstücke und baul. Anlagen"}]
[null,null,"Abwasser",null,null,null,0,0,{"$f":"IF(OR($D$11 =0, $D$10=0),0, ROUND((G147/$D$11/$D$10),6))","v":0},0,{"$f":"IF($E$6=Einstellungen!$F$7, Kontierung!I102,\"\")","v":5241},{"$f":"IF($E$6=Einstellungen!$F$7, Kontierung!J102,\"\")","v":"Bewirtschaftung der Grundstücke und baul. Anlagen"}]
["4.12.","öffentliche Abgaben Grundstück/Gebäude",null,null,null,null,{"$f":"SUM(G149:G152)","v":0},0,{"$f":"IF(OR($D$11 =0, $D$10=0),0, ROUND((G148/$D$12),2))","v":0},0,{"$f":"IF($E$6=Einstellungen!$F$7, Kontierung!I103,\"\")","v":" "},{"$f":"IF($E$6=Einstellungen!$F$7, Kontierung!J103,\"\")","v":" "}]
[null,"Straßenreinigungskosten",null,null,null,null,0,0,{"$f":"IF(OR($D$11 =0, $D$10=0),0, ROUND((G149/$D$11/$D$10),6))","v":0},0,{"$f":"IF($E$6=Einstellungen!$F$7, Kontierung!I104,\"\")","v":5241},{"$f":"IF($E$6=Einstellungen!$F$7, Kontierung!J104,\"\")","v":"Bewirtschaftung der Grundstücke und baul. Anlagen"}]
[null,"Winterdienstkosten",null,null,null,null,0,0,{"$f":"IF(OR($D$11 =0, $D$10=0),0, ROUND((G150/$D$11/$D$10),6))","v":0},0,{"$f":"IF($E$6=Einstellungen!$F$7, Kontierung!I105,\"\")","v":5241},{"$f":"IF($E$6=Einstellungen!$F$7, Kontierung!J105,\"\")","v":"Bewirtschaftung der Grundstücke und baul. Anlagen"}]
[null,"Müll- und Abfallkosten",null,null,null,null,0,0,{"$f":"IF(OR($D$11 =0, $D$10=0),0, ROUND((G151/$D$11/$D$10),6))","v":0},0,{"$f":"IF($E$6=Einstellungen!$F$7, Kontierung!I106,\"\")","v":5241},{"$f":"IF($E$6=Einstellungen!$F$7, Kontierung!J106,\"\")","v":"Bewirtschaftung der Grundstücke und baul. Anlagen"}]
[null,"Kosten für sonstige öffentliche Abgaben",null,null,null,null,0,0,{"$f":"IF(OR($D$11 =0, $D$10=0),0, ROUND((G152/$D$11/$D$10),6))","v":0},0,{"$f":"IF($E$6=Einstellungen!$F$7, Kontierung!I107,\"\")","v":5241},{"$f":"IF($E$6=Einstellungen!$F$7, Kontierung!J107,\"\")","v":"Bewirtschaftung der Grundstücke und baul. Anlagen"}]
["4.13.","Sonstige Kosten der Versorgung mit technischen Medien",null,null,null,null,{"$f":"SUM(G154:G155)","v":0},0,{"$f":"IF(OR($D$11 =0, $D$10=0),0, ROUND((G153/$D$12),2))","v":0},0]
[null,"Rundfunkbeitrag GEZ",null,null,null,null,0,0,null,0]
[null,"Sonstige Kosten der Versorgung mit technischen Medien",null,null,null,null,0,0,null,0]
["4.14.","Sonstige Kosten",null,null,null,null,0,0,{"$f":"IF(OR($D$11 =0, $D$10=0),0, ROUND((G156/$D$12),2))","v":0},0]
[null,"Summe 4.1. bis 4.14.",null,null,null,null,{"$f":"G107+G112+G113+G114+G118+G119+G120+G127+G134+G139+G142+G148+G153+G156","v":0},0,{"$f":"IF($D$12 =0,0, ROUND(G157/$D$12,2))","v":0},0]
["5.","Personal und Sachkosten für die Versorgung mit Essen",null,null,null,null,null,null,null,{"$f":"IF(OR($D$11 =0, $D$10=0),0, ROUND(($G158/$D$10/$D$11),2))","v":0}]
["5.1.","Küchenpersonal",null,null,null,null,0,{"$f":"ROUND(G159/$D$11,2)","v":0},{"$f":"IF(OR($D$11 =0, $D$10=0),0, ROUND((G159/$D$12),2))","v":0},{"$f":"IF(OR($D$11 =0, $D$10=0),0, ROUND(($G159/$D$10/$D$11),2))","v":0},{"$f":"IF($E$6=Einstellungen!$F$7, Kontierung!I110,\"\")","v":"5012, 5032"},{"$f":"IF($E$6=Einstellungen!$F$7, Kontierung!J110,\"\")","v":"Personalaufwand, Beiträge zur gesetzl. SV für tariflich Beschäftigte"}]
[null,"Anzahl der Mitarbeiter",null,"Stellen",null,"Stundenzahl",null,null,null,0]
[null,0,null,0,null,0,null,null,null,0]
["5.2.","Krankengeldzuschuss",null,null,null,null,0,{"$f":"ROUND(G162/$D$11,2)","v":0},{"$f":"IF(OR($D$11 =0, $D$10=0),0, ROUND((G162/$D$12),2))","v":0},0]
["5.3.","Aus- und Fortbildung/Reisekosten",null,null,null,null,{"$f":"SUM(G164:G166)","v":0},0,{"$f":"IF(OR($D$11 =0, $D$10=0),0, ROUND((G163/$D$12),2))","v":0},0]
[null,"Fortbildung (Ist mit Maximal-Grenze: bis zu 53 €/Jahr/MitarbeiterIn)",null,null,null,null,0,0,null,0]
[null,"Reisekosten zur Fortbildung",null,null,null,null,0,0,null,0]
[null,"Dienstreisen",null,null,null,null,0,0,null,0]
["5.4.","Abfindungen",null,null,null,null,0,0,{"$f":"IF(OR($D$11 =0, $D$10=0),0, ROUND((G167/$D$12),2))","v":0},0]
["5.5.","Dienst/- Schutzbekleidung beim Küchenpersonal",null,null,null,null,0,0,0,0,{"$f":"IF($E$6=Einstellungen!$F$7, Kontierung!I111,\"\")","v":5261},{"$f":"IF($E$6=Einstellungen!$F$7, Kontierung!J111,\"\")","v":"Besondere Aufwendungen für Beschäftigte "}]
["5.6.","Lebensmittelkosten",null,null,null,null,0,0,0,0,{"$f":"IF($E$6=Einstellungen!$F$7, Kontierung!I112,\"\")","v":5281},{"$f":"IF($E$6=Einstellungen!$F$7, Kontierung!J112,\"\")","v":"Aufwendungen für den Erwerb von Vorräten"}]
["5.7.","Fremdleistungen (Nebenkosten für die Versorgung)",null,null,null,null,0,0,0,0,{"$f":"IF($E$6=Einstellungen!$F$7, Kontierung!I113,\"\")","v":5241},{"$f":"IF($E$6=Einstellungen!$F$7, Kontierung!J113,\"\")","v":"Bewirtschaftung der Grundstücke und baul.Anlagen"}]
["5.8.","Entsorgung von Speiseresten",null,null,null,null,0,0,0,0,{"$f":"IF($E$6=Einstellungen!$F$7, Kontierung!I114,\"\")","v":5291},{"$f":"IF($E$6=Einstellungen!$F$7, Kontierung!J114,\"\")","v":"Aufwendungen für sonstige Dienstleistungen"}]
["5.9.","Geringstwertige Wirtschaftsgüter (GWG's bis 150 € (kommunale Träger) bzw. 250 € (freie Träger))",null,null,null,null,0,0,0,0,{"$f":"IF($E$6=Einstellungen!$F$7, Kontierung!I115,\"\")","v":5431},{"$f":"IF($E$6=Einstellungen!$F$7, Kontierung!J115,\"\")","v":"Geschäftsaufwendungen (geringstwertige Wirtschaftsgüter)\nSofortaufwand"}]
["5.10.","Sonstige Kosten",null,null,null,null,0,0,0,0,{"$f":"IF($E$6=Einstellungen!$F$7, Kontierung!I116,\"\")","v":" "},{"$f":"IF($E$6=Einstellungen!$F$7, Kontierung!J116,\"\")","v":" "}]
[null,"Summe 5.1. bis 5.10.",null,null,null,null,{"$f":"SUM(G167:G173,G162:G163,G159)","v":0},{"$f":"H159+H168+H169+H170+H171+H172+H173","v":0},0,0]
["6.","Sonstige Personal und Sachkosten",null,null,null,null,null,null,null,0]
["6.1.","Maßnahmen zur Unfallverhütung und medizinische Betreuung",null,null,null,null,{"$f":"SUM(G177:G180)","v":0},{"$f":"ROUND(G176/$D$11,2)","v":0},{"$f":"IF(OR($D$11 =0, $D$10=0),0, ROUND((G176/$D$12),2))","v":0},0]
[null,"Arbeitsmedizinische Betreuung der Arbeitnehmer",null,null,null,null,0,0,{"$f":"IF(OR($D$11 =0, $D$10=0),0, ROUND((G177/$D$11/$D$10),6))","v":0},0,{"$f":"IF($E$6=Einstellungen!$F$7, Kontierung!I119,\"\")","v":5041},{"$f":"IF($E$6=Einstellungen!$F$7, Kontierung!J119,\"\")","v":"Beihilfen und Unterstützungsleistungen für Beschäftigte"}]
[null,"Erste-Hilfe-Ausstattung nach DIN 13169",null,null,null,null,0,0,{"$f":"IF(OR($D$11 =0, $D$10=0),0, ROUND((G178/$D$11/$D$10),6))","v":0},0,{"$f":"IF($E$6=Einstellungen!$F$7, Kontierung!I120,\"\")","v":5281},{"$f":"IF($E$6=Einstellungen!$F$7, Kontierung!J120,\"\")","v":"Aufwendungen für den Erwerb von Vorräten"}]
[null,"Grund- und anlassbezogene Betreuung",null,null,null,null,0,0,{"$f":"IF(OR($D$11 =0, $D$10=0),0, ROUND((G179/$D$11/$D$10),6))","v":0},0,{"$f":"IF($E$6=Einstellungen!$F$7, Kontierung!I121,\"\")","v":5291},{"$f":"IF($E$6=Einstellungen!$F$7, Kontierung!J121,\"\")","v":"Aufwendungen für sonstige Dienstleistungen"}]
[null,"arbeitsmedizinische Vorsorgeuntersuchungen",null,null,null,null,0,0,{"$f":"IF(OR($D$11 =0, $D$10=0),0, ROUND((G180/$D$11/$D$10),6))","v":0},0,{"$f":"IF($E$6=Einstellungen!$F$7, Kontierung!I122,\"\")","v":5041},{"$f":"IF($E$6=Einstellungen!$F$7, Kontierung!J122,\"\")","v":"Beihilfen und Unterstützungsleistungen für Beschäftigte"}]
["6.2.","Beiträge",null,null,null,null,{"$f":"SUM(G182:G184)","v":0},0,{"$f":"IF(OR($D$11 =0, $D$10=0),0, ROUND((G181/$D$12),2))","v":0},0,{"$f":"IF($E$6=Einstellungen!$F$7, Kontierung!I123,\"\")","v":" "},{"$f":"IF($E$6=Einstellungen!$F$7, Kontierung!J123,\"\")","v":" "}]
[null,"Verbands- und Organisationsbeiträge",null,null,null,null,0,0,{"$f":"IF(OR($D$11 =0, $D$10=0),0, ROUND((G182/$D$11/$D$10),6))","v":0},0,{"$f":"IF($E$6=Einstellungen!$F$7, Kontierung!I124,\"\")","v":5291},{"$f":"IF($E$6=Einstellungen!$F$7, Kontierung!J124,\"\")","v":"Aufwendungen für sonstige Dienstleistungen"}]
[null,"Beiträge zur Betriebshaftpflicht/Unfallversicherung",null,null,null,null,0,0,{"$f":"IF(OR($D$11 =0, $D$10=0),0, ROUND((G183/$D$11/$D$10),6))","v":0},0,{"$f":"IF($E$6=Einstellungen!$F$7, Kontierung!I125,\"\")","v":5441},{"$f":"IF($E$6=Einstellungen!$F$7, Kontierung!J125,\"\")","v":"Steuern, Versicherungen, Schadensfälle"}]
[null,"Beiträge zur Berufsgenossenschaft und Unfallkasse BRB",null,null,null,null,0,0,{"$f":"IF(OR($D$11 =0, $D$10=0),0, ROUND((G184/$D$11/$D$10),6))","v":0},0,{"$f":"IF($E$6=Einstellungen!$F$7, Kontierung!I126,\"\")","v":5441},{"$f":"IF($E$6=Einstellungen!$F$7, Kontierung!J126,\"\")","v":"Steuern, Versicherungen, Schadensfälle"}]
["6.3.","Schwerbehindertenabgabe",null,null,null,null,0,0,{"$f":"IF(OR($D$11 =0, $D$10=0),0, ROUND((G185/$D$12),2))","v":0},0,{"$f":"IF($E$6=Einstellungen!$F$7, Kontierung!I127,\"\")","v":531},{"$f":"IF($E$6=Einstellungen!$F$7, Kontierung!J127,\"\")","v":"Zuweisungen und Zuschüsse für laufende Zwecke"}]
["6.4.",{"$f":"\"Verwaltungsumlage/Trägerkosten\n(feste Pauschale: \" & TEXT(Einstellungen!C8,\"##0,00 €;\") & \"/Jahr/Kind)\"","v":"Verwaltungsumlage/Trägerkosten\n(feste Pauschale: 445,00 €/Jahr/Kind)"},null,null,null,null,{"$f":"IF(D13>=95%,D10*Einstellungen!C8,D10*(D13*Einstellungen!C8))","v":0},0,0,0,{"$f":"IF($E$6=Einstellungen!$F$7, Kontierung!I128,\"\")","v":" "},{"$f":"IF($E$6=Einstellungen!$F$7, Kontierung!J128,\"\")","v":" "}]
["6.5.","Personalrat/Betriebsrat",null,null,null,null,0,0,0,0,{"$f":"IF($E$6=Einstellungen!$F$7, Kontierung!I129,\"\")","v":5411},{"$f":"IF($E$6=Einstellungen!$F$7, Kontierung!J129,\"\")","v":"Sonstige Personal- und Versorgungsaufwendungen"}]
["6.6.","Datenschutz",null,null,null,null,0,0,0,0,{"$f":"IF($E$6=Einstellungen!$F$7, Kontierung!I130,\"\")","v":5291},{"$f":"IF($E$6=Einstellungen!$F$7, Kontierung!J130,\"\")","v":"Aufwendungen für sonstige Dienstleistungen"}]
["6.7.","Sonstige Kosten",null,null,null,null,0,0,0,0,{"$f":"IF($E$6=Einstellungen!$F$7, Kontierung!I131,\"\")","v":" "},{"$f":"IF($E$6=Einstellungen!$F$7, Kontierung!J131,\"\")","v":" "}]
[null,"Summe 6.1. bis 6.7.",null,null,null,null,{"$f":"G176+G181+G185+G186+G187+G188+G189","v":0},0,0,0]
["7.","Sachkosten für den Ersatz und die Ergänzung von Einrichtungsgegenständen ",null,null,null,null,null,null,null,0]
["7.1.","Geringstwertige Wirtschaftsgüter (GWG's bis 150 € (kommunale Träger) bzw. 250 € (freie Träger))\n(außer 3.1. Sprachstandsförderung, 3.7. Spiel- und Beschäftigungsmaterial und 5.9. Küche)",null,null,null,null,0,{"$f":"ROUND(G192/$D$11,2)","v":0},null,{"$f":"IF(OR($D$11 =0, $D$10=0),0, ROUND(($G192/$D$10/$D$11),2))","v":0},{"$f":"IF($E$6=Einstellungen!$F$7, Kontierung!I133,\"\")","v":5431},{"$f":"IF($E$6=Einstellungen!$F$7, Kontierung!J133,\"\")","v":"Geschäftsaufwendungen (geringstwertige Wirtschaftsgüter)\nSofortaufwand"}]
["7.2.","Anschaffung (Kauf)/Herstellung von abnutzbaren beweglichen Vermögensgegenständen im Bereich GWG's bis 150 € (kommunale Träger) bzw. 250 € (freie Träger) bis 1.000 € (Sammelposten)",null,null,null,null,0,0,null,0,{"$f":"IF($E$6=Einstellungen!$F$7, Kontierung!I134,\"\")","v":571},{"$f":"IF($E$6=Einstellungen!$F$7, Kontierung!J134,\"\")","v":"Abschreibungen auf immaterielle Vermögensgegenstände und Sachanlagen (Sammelposten) "}]
["7.3.","Anschaffung (Kauf)/Herstellung von abnutzbaren beweglichen Vermögensgegenständen im Bereich ab 1.000 €",null,null,null,null,0,0,null,0,{"$f":"IF($E$6=Einstellungen!$F$7, Kontierung!I135,\"\")","v":571},{"$f":"IF($E$6=Einstellungen!$F$7, Kontierung!J135,\"\")","v":"Abschreibungen auf immaterielle Vermögensgegenstände und Sachanlagen (Sammelposten) "}]
["7.4.","Anschaffung von abnutzbaren beweglichen Vermögensgegenständen durch Leasing",null,null,null,null,0,0,null,0,{"$f":"IF($E$6=Einstellungen!$F$7, Kontierung!I136,\"\")","v":5232},{"$f":"IF($E$6=Einstellungen!$F$7, Kontierung!J136,\"\")","v":"Leasing "}]
[null,"Summe 7.1. bis 7.4.",null,null,null,null,{"$f":"SUM(G192:G195)","v":0},0,{"$f":"IF(OR($D$11 =0, $D$10=0),0, ROUND((G196/$D$12),2))","v":0},0]
["8.","Fördermittel  (hier ist kein Aufwand aufzuführen, da nur der Eigenanteil anrechenbar ist, und dieser unter 7. berücksichtigt wird)",null,null,null,null,0,0,{"$f":"IF(OR($D$11 =0, $D$10=0),0, ROUND((G197/$D$12),2))","v":0},0,{"$f":"IF($E$6=Einstellungen!$F$7, Kontierung!I137,\"\")","v":" "},{"$f":"IF($E$6=Einstellungen!$F$7, Kontierung!J137,\"\")","v":" "}]
["9.","Zinsen für Fremdkapital",null,null,null,null,0,0,{"$f":"IF(OR($D$11 =0, $D$10=0),0, ROUND((G198/$D$12),2))","v":0},0,{"$f":"IF($E$6=Einstellungen!$F$7, Kontierung!I138,\"\")","v":55},{"$f":"IF($E$6=Einstellungen!$F$7, Kontierung!J138,\"\")","v":"Zinsen und sonstige Finanzaufwendungen"}]
[null,null,null,null,null,null,null,null,null,0]
["**) Bitte Erläuterung beifügen!",null,null,null,null,null,null,null,null,0]
[null,null,null,null,null,null,null,null,null,0]
["Zusammenfassung",null,null,null,null,null,null,null,null,0]
["1.","Erträge",null,null,null,null,{"$f":"G65","v":0},{"$f":"H65","v":0},{"$f":"I65","v":0},0]
["2.","Aufwendungen",null,null,null,null,{"$f":"SUM(G205:G212)","v":0},{"$f":"SUM(H205:H212)","v":0},{"$f":"SUM(I205:I212)","v":0},0]
[null,"2. Aufwendungen Personalkosten",null,null,null,null,{"$f":"G74","v":0},{"$f":"ROUND(G205/$D$11,2)","v":0},{"$f":"IF(OR($D$11 =0, $D$10=0),0, (G205/$D$11/$D$10))","v":0},0]
[null,"3. Personal- und Sachkosten für pädagogische Arbeit",null,null,null,null,{"$f":"G105","v":0},0,{"$f":"IF(OR($D$11 =0, $D$10=0),0, (G206/$D$12))","v":0},0]
[null,"4. Personal- und Sachkosten für Grundstück und Gebäude",null,null,null,null,{"$f":"G157","v":0},0,0,0]
[null,"5. Personal- und Sachkosten für die Versorgung mit Essen",null,null,null,null,{"$f":"G174","v":0},0,0,0]
[null,"6. Sonstige Personal- und Sachkosten",null,null,null,null,{"$f":"G190","v":0},0,0,0]
[null,"7. Sachkosten Ergänzung von Einrichtungsgegenständen",null,null,null,null,{"$f":"G196","v":0},0,0,0]
[null,"8. Fördermittel",null,null,null,null,{"$f":"G197","v":0},0,0,0]
[null,"9. Zinsen für Fremdkapital",null,null,null,null,{"$f":"G198","v":0},0,0,0]

{"sheet":"KK bis 6 Std.","index":3,"n_rows":84,"n_cols":12,"rows_kept":84,"cut":false,"hidden":false,"merged":[[1,10,6,11],[15,4,15,7],[19,4,19,7],[18,4,18,7],[16,4,16,7],[13,5,13,8],[22,0,22,5],[0,0,0,8],[1,0,1,8],[9,4,9,7],[8,0,8,2],[3,4,3,8],[4,4,4,8],[2,0,2,8],[6,4,6,8],[30,1,30,8],[29,1,29,5],[36,1,36,5],[38,0,38,8],[5,4,5,8],[7,0,7,2],[23,1,23,8],[24,1,24,5],[17,4,17,7],[10,4,10,7],[7,4,7,6],[11,4,11,7],[12,0,12,3],[12,5,12,8],[14,0,14,8],[13,0,13,3],[39,1,39,5],[27,1,27,5],[35,1,35,5],[25,8,27,8],[81,1,81,6],[76,1,79,5],[60,1,60,4],[54,1,54,5],[67,1,67,5],[69,1,72,5],[41,1,41,5],[42,1,42,5],[31,1,31,8],[40,1,40,5],[25,1,25,5],[26,1,26,5],[62,1,65,5],[74,1,74,5],[56,1,58,5],[43,1,43,5],[51,1,53,5],[44,1,44,5],[45,1,45,5],[46,1,46,5],[47,1,47,5]]}
[{"$f":"\"Diese Datei ist Eigentum des Landratsamtes Potsdam-Mittelmark. Eine unbefugte Weitergabe an Dritte ist nicht gestattet!\nDateiversion: \" & Einstellungen!C3","v":"Diese Datei ist Eigentum des Landratsamtes Potsdam-Mittelmark. Eine unbefugte Weitergabe an Dritte ist nicht gestattet!\nDateiversion: 44228"},null,null,null,null,null,null,null,null,"EB"]
[{"$f":"Eingabetabelle!$A$2","v":"Berechnung der Entgelte für Kindertagesstätten im Landkreis Potsdam-Mittelmark\nfür das Jahr 2021\nRechtsstand: 01.08.2020"},null,null,null,null,null,null,null,null,null,"Altes Recht"]
["Kinderkrippe bis 6 Stunden"]
["Name und Anschrift der Einrichtung",null,null,null,{"$f":"Eingabetabelle!$E$3","v":0}]
["Träger der Einrichtung",null,null,null,{"$f":"Eingabetabelle!$E$4","v":0}]
["Rechtsform",null,null,null,{"$f":"Eingabetabelle!$E$7","v":0}]
["Art der Einrichtung",null,null,null,{"$f":"Eingabetabelle!$E$8","v":0}]
["Kostenausgleich im Amt?",null,null,{"$f":"Eingabetabelle!$D$9","v":"ja"},"Personalschlüssel",null,null,{"$f":"Einstellungen!C9&\"/\"&Einstellungen!E9","v":"0,8/5"},{"$f":"Einstellungen!C9&\"/\"&Einstellungen!D9","v":"0,8/5"},null,{"$f":"Einstellungen!C9&\"/\"&Einstellungen!F9","v":"0,8/7"}]
["Kapazität",null,null,{"$f":"Eingabetabelle!$D$10","v":0},"notwendiges pädagogisches Personal",null,null,{"$f":"ROUND(D9*Einstellungen!C9/Einstellungen!E9,3)","v":0},{"$f":"ROUND(D9*Einstellungen!C9/Einstellungen!D9,3)","v":0},null,{"$f":"ROUND(D9*Einstellungen!C9/Einstellungen!F9,3)","v":0}]
["Öffnungstage",null,null,{"$f":"Eingabetabelle!$D$11","v":250},{"$f":"Eingabetabelle!E11","v":" Durchschnittssatz ErzieherIn pro Monat"},null,null,null,{"$f":"Eingabetabelle!I11","v":0}]
["Belegungstage",null,null,{"$f":"Eingabetabelle!$D$12","v":0},{"$f":"Eingabetabelle!E12","v":" Durchschnittssatz LeiterIn pro Monat"},null,null,null,{"$f":"Eingabetabelle!I12","v":0}]
["Auslastungsgrad",null,null,{"$f":"Eingabetabelle!$D$13","v":0},{"$f":"Eingabetabelle!E13","v":" Durchschnittssatz gemäß KitaLAV"},null,null,null,{"$f":"Eingabetabelle!I13","v":0}]
[{"$f":"Eingabetabelle!A14","v":"Jahresmittel der belegten Plätze des Vorjahres:"},null,null,null,{"$f":"Eingabetabelle!E14","v":0}]
["Anzahl tatsächliches pädagogisches Personal:",null,null,null,{"$f":"Eingabetabelle!$E$15","v":0}]
["Leitungsanteile des Vorjahres"]
[{"$f":"Eingabetabelle!A17","v":"Stichtag"},{"$f":"Eingabetabelle!B17","v":"päd. LA"},{"$f":"Eingabetabelle!C17","v":"Stichtag "},{"$f":"Eingabetabelle!D17","v":"org. LA"},{"$f":"Eingabetabelle!E17","v":"Durchschnittlicher päd. Leitungsanteil des Vorjahres: "},null,null,null,{"$f":"Eingabetabelle!I17","v":0}]
[{"$f":"Eingabetabelle!A18","v":"01.12."},{"$f":"Eingabetabelle!B18","v":0},{"$f":"Eingabetabelle!C18","v":"01.12."},{"$f":"Eingabetabelle!D18","v":0},{"$f":"Eingabetabelle!E18","v":"Durchschnittlicher org. Leitungsanteil des Vorjahres:"},null,null,null,{"$f":"Eingabetabelle!I18","v":0}]
[{"$f":"Eingabetabelle!A19","v":"01.03."},{"$f":"Eingabetabelle!B19","v":0},{"$f":"Eingabetabelle!C19","v":"01.03."},{"$f":"Eingabetabelle!D19","v":0},{"$f":"Eingabetabelle!E19","v":"Betreuungsalter 0 bis unter 3 Jahre"},null,null,null,{"$f":"Eingabetabelle!I19","v":"ja"}]
[{"$f":"Eingabetabelle!A20","v":"01.06."},{"$f":"Eingabetabelle!B20","v":0},{"$f":"Eingabetabelle!C20","v":"01.06."},{"$f":"Eingabetabelle!D20","v":0},{"$f":"Eingabetabelle!E20","v":"Betreuungsalter 3 Jahre bis Schuleintritt"},null,null,null,{"$f":"Eingabetabelle!I20","v":"ja"}]
[{"$f":"Eingabetabelle!A21","v":"01.09."},{"$f":"Eingabetabelle!B21","v":0},{"$f":"Eingabetabelle!C21","v":"01.09."},{"$f":"Eingabetabelle!D21","v":0},{"$f":"Eingabetabelle!E21","v":"Betreuungsalter Klassenstufe 1 bis 6"},null,null,null,{"$f":"Eingabetabelle!I21","v":"nein"}]
[]
[null,null,null,null,null,null,"Jahreskosten\ngesamt","Tageskosten\ngesamt","Kosten pro\nKind pro Tag",null,"Jahreskosten\ngesamt","Kosten pro\nKind pro Tag"]
[1,null,null,null,null,null,2,3,4]
["1.","Erträge"]
["1.1.","Zuschüsse des Leistungsverpflichteten  …",null,null,null,null,{"$f":"SUM(G26:G28)","v":0},{"$f":"ROUND(G25/$D$10,2)","v":0},{"$f":"IF(D9=0,0,ROUND(G25/$D$10/$D$9,2))","v":0},{"$f":"IF($D$9=0,0,ROUND($G25/$D$10/$D$9,2))","v":0},{"$f":"K26+K27","v":0},{"$f":"IF(D9=0,0,ROUND(K25/$D$10/$D$9,2))","v":0}]
[null,{"$f":"\"   - …für Leiterin  (in Höhe von \" & Einstellungen!C15*100 & \"% des n.p.Pers )\"","v":"   - …für Leiterin  (in Höhe von 85% des n.p.Pers )"},null,null,null,null,{"$f":"I16*I11*Einstellungen!C15*12","v":0},{"$f":"ROUND(G26/$D$10,2)","v":0},null,{"$f":"IF($D$9=0,0,ROUND($G26/$D$10/$D$9,2))","v":0},{"$f":"I16*I11*Einstellungen!C20*12","v":0}]
[null,{"$f":"\"   - …für Erzieherin (in Höhe von \" & Einstellungen!C16*100 & \"% des n.p.Pers )\"","v":"   - …für Erzieherin (in Höhe von 88,6% des n.p.Pers )"},null,null,null,null,{"$f":"(I9*I10*Einstellungen!C16*12)","v":0},{"$f":"ROUND(G27/$D$10,2)","v":0},null,0,{"$f":"(K9*I10*Einstellungen!C19*12)","v":0}]
[null,"  - … Sockel-Leitungsanteil gemäß § 5 KitaPerV",null,null,null,null,{"$f":"Eingabetabelle!G29","v":0},{"$f":"ROUND(G28/$D$10,2)","v":0},null,0]
[null,"Summe Pkt. 1.2 bis 1.20.",null,null,null,null,{"$f":"Eingabetabelle!G65","v":0},{"$f":"Eingabetabelle!H65","v":0},{"$f":"Eingabetabelle!I65","v":0},0,{"$f":"Eingabetabelle!G65","v":0},{"$f":"Eingabetabelle!I65","v":0}]
[null,"Summe der Erträge (Pkt.1.) fixe Kosten",null,null,null,null,{"$f":"G29+G25","v":0},{"$f":"H29+H25","v":0},{"$f":"I25+I29","v":0},0,{"$f":"K29+K25","v":0},{"$f":"L29+L25","v":0}]
["2.","Aufwendungen Personalkosten",null,null,null,null,null,null,null,0]
["2.1.","Personalkosten",null,null,null,null,null,null,null,0]
[null,"Pädagogisches Personal/ErzieherIn",null,null,null,null,{"$f":"(I9*I10*12)","v":0},{"$f":"ROUND(G33/$D$10,2)","v":0},{"$f":"IF(D9=0,0,ROUND(G33/$D$10/D9,2))","v":0},0,{"$f":"(K9*I10*12)","v":0},{"$f":"IF(D9=0,0,ROUND(K33/$D$10/D9,2))","v":0}]
[null,"Pädagogisches Personal/Leiterin",null,null,null,null,{"$f":"Eingabetabelle!G71","v":0},{"$f":"ROUND(G34/$D$10,2)","v":0},{"$f":"IF(D9=0,0,ROUND(G34/$D$10/$D$9,2))","v":0},0,{"$f":"ROUND(I16*I11*12,2)","v":0},{"$f":"IF(D9=0,0,ROUND(K34/$D$10/$D$9,2))","v":0}]
[null,"Pädagogisches Personal/Leiterin Organisationsanteil",null,null,null,null,{"$f":"Eingabetabelle!G72","v":0},{"$f":"ROUND(G35/$D$10,2)","v":0},{"$f":"IF(D9=0,0,ROUND((G35/$D$10/$D$9),2))","v":0},0,{"$f":"Eingabetabelle!G72","v":0},{"$f":"IF(D9=0,0,ROUND((K35/$D$10/$D$9),2))","v":0}]
[null,"Sockel-Leitungsanteil gemäß § 5 KitaPerV",null,null,null,null,{"$f":"Eingabetabelle!G73","v":0},{"$f":"ROUND(G36/$D$10,2)","v":0},{"$f":"IF(D9=0,0,ROUND((G36/$D$10/$D$9),2))","v":0},0]
[null,"Summe ",null,null,null,null,{"$f":"SUM(G33:G36)","v":0},{"$f":"G37/D10","v":0},{"$f":"IF($D$9=0,0,ROUND(G37/$D$10/$D$9,2))","v":0},0,{"$f":"K33+K34+K35","v":0},{"$f":"IF($D$9=0,0,ROUND(K37/$D$10/$D$9,2))","v":0}]
[null,null,null,null,null,null,null,null,null,0]
["Zusammenfassung",null,null,null,null,null,null,null,null,0]
["1.","Erträge",null,null,null,null,{"$f":"G30","v":0},{"$f":"H30","v":0},{"$f":"I30","v":0},0,{"$f":"K30","v":0},{"$f":"L30","v":0}]
["2.","Aufwendungen",null,null,null,null,{"$f":"SUM(G42:G48)","v":0},{"$f":"SUM(H42:H48)","v":0},{"$f":"SUM(I42:I48)","v":0},0,{"$f":"SUM(K42:K48)","v":0},{"$f":"SUM(L42:L48)","v":0}]
[null,"2. Aufwendungen Personalkosten",null,null,null,null,{"$f":"G37","v":0},{"$f":"ROUND(G42/$D$10,2)","v":0},{"$f":"IF(D9=0,0,ROUND(G42/$D$10/$D$9,2))","v":0},0,{"$f":"K37","v":0},{"$f":"IF(D9=0,0,ROUND(K42/$D$10/$D$9,2))","v":0}]
[null,"3. Personal- und Sachkosten für pädagogische Arbeit",null,null,null,null,{"$f":"Eingabetabelle!G206","v":0},{"$f":"Eingabetabelle!H206","v":0},{"$f":"Eingabetabelle!I206","v":0},0,{"$f":"Eingabetabelle!G206","v":0},{"$f":"I43","v":0}]
[null,"4. Personal- und Sachkosten für Grundstück und Gebäude",null,null,null,null,{"$f":"Eingabetabelle!G207","v":0},{"$f":"Eingabetabelle!H207","v":0},{"$f":"Eingabetabelle!I207","v":0},0,{"$f":"Eingabetabelle!G207","v":0},0]
[null,"5. Personal- und Sachkosten für die Versorgung mit Essen",null,null,null,null,{"$f":"Eingabetabelle!G208","v":0},{"$f":"Eingabetabelle!H208","v":0},{"$f":"Eingabetabelle!I208","v":0},0,{"$f":"Eingabetabelle!G208","v":0},0]
[null,"6. Sonstige Personal- und Sachkosten",null,null,null,null,{"$f":"Eingabetabelle!G209","v":0},{"$f":"Eingabetabelle!H209","v":0},{"$f":"Eingabetabelle!I209","v":0},0,{"$f":"Eingabetabelle!G209","v":0},0]
[null,"7. Sachkosten Ergänzung von Einrichtungsgegenständen",null,null,null,null,{"$f":"Eingabetabelle!G210","v":0},{"$f":"Eingabetabelle!H210","v":0},{"$f":"Eingabetabelle!I210","v":0},0,{"$f":"Eingabetabelle!G210","v":0},0]
[null,"9. Zinsen für Fremdkapital",null,null,null,null,{"$f":"Eingabetabelle!G212","v":0},{"$f":"Eingabetabelle!H212","v":0},{"$f":"Eingabetabelle!I212","v":0},0,{"$f":"Eingabetabelle!G211","v":0},0]
[]
[]
[null,"Zusammenfassung:"]
["1.","Tagessatz pro Kind ohne Zuschüsse vom Landkreis* und ohne Elternbeitrag und Essengeld, 100% Aufwendungen, entspr. Staatsvertrag  mit Berlin",null,null,null,null,null,{"$f":"IF(Einstellungen!$C$25,$I$41-(SUM(Eingabetabelle!$I$42:$I$58,Eingabetabelle!$I$29)),\"--\")","v":0},null,{"$f":"IF(Einstellungen!$C$25,$J$41-(SUM(Eingabetabelle!$J$42:$J$58,Eingabetabelle!$J$29)),\"--\")","v":0},{"$f":"IF(Einstellungen!$C$25,L41-(SUM(Eingabetabelle!I42:I58)),\"--\")","v":0}]
[]
[]
[null,{"$f":"\"1a     Kosten pro Monat im Jahr \"&Einstellungen!C4","v":"1a     Kosten pro Monat im Jahr 2021"},null,null,null,null,null,{"$f":"IF(Einstellungen!$C$25,ROUND(($H$52*($D$10/12)),2),\"--\")","v":0},null,{"$f":"IF(Einstellungen!$C$25,ROUND(($J$52*($D$10/12)),2),\"--\")","v":0},{"$f":"IF(Einstellungen!$C$25,ROUND((K52*($D$10/12)),2),\"--\")","v":0}]
[]
["2.","Tagessatz pro Kind mit Berücksichtigung Elternbeitrag ohne Zuschüsse Landkreis, ohne Zuschüsse n.p.P., aber mit Zuschuss Sockelbetrag -Leitung und ohne Berücksichtigung des § 17 e KitaG (andere öffentliche Träger der öffentl. JH im Land Brandenburg oder andere Bundesländer.\n-->Potsdam, Brandenburg/ Havel, LK TF, LK LDS)",null,null,null,null,null,{"$f":"IF(Einstellungen!$C$25,$I$41-$I$29-Eingabetabelle!$I$73,\"--\")","v":0},null,{"$f":"IF(Einstellungen!$C$25,$J$41-$J$29-Eingabetabelle!$J$73,\"--\")","v":0},{"$f":"IF(Einstellungen!$C$25,L41-SUM(Eingabetabelle!I30:I58),\"--\")","v":0}]
[]
[]
[]
[null,{"$f":"\"2a     Kosten im Monat im Jahr \"&Einstellungen!C4","v":"2a     Kosten im Monat im Jahr 2021"},null,null,null,null,null,{"$f":"IF(Einstellungen!$C$25,ROUND(($H$57*($D$10/12)),2),\"--\")","v":0},null,{"$f":"IF(Einstellungen!$C$25,ROUND(($J$57*($D$10/12)),2),\"--\")","v":0},{"$f":"IF(Einstellungen!$C$25,ROUND((K57*($D$10/12)),2),\"--\")","v":0}]
[]
["3.","Zuschüsse zu den Betriebskosten gemäß § 16 Abs. 3 KitaG an freie Träger\n(höchstens 16% Personalkosten + andere Betriebskosten mit Berücksichtigung des Eigenanteils des Trägers und Elternbeitrag + Essengeld)",null,null,null,null,null,{"$f":"IF(Einstellungen!$C$25,$I$41-$I$30,\"--\")","v":0},null,{"$f":"IF(Einstellungen!$C$25,$J$41-$J$30,\"--\")","v":0},{"$f":"IF(Einstellungen!$C$25,L41-L30,\"--\")","v":0}]
[]
[]
[]
[]
[null,{"$f":"\"3a     Kosten im Monat im Jahr \"&Einstellungen!C4","v":"3a     Kosten im Monat im Jahr 2021"},null,null,null,null,null,{"$f":"IF(Einstellungen!$C$25,ROUND(($H$63*($D$10/12)),2),\"--\")","v":0},null,{"$f":"IF(Einstellungen!$C$25,ROUND(($J$63*($D$10/12)),2),\"--\")","v":0},{"$f":"IF(Einstellungen!$C$25,ROUND((K63*($D$10/12)),2),\"--\")","v":0}]
[]
["4.","Tagessatz für Kinder, die ihren gewöhnlichen Aufenthalt  im LK PM haben und außerhalb des Amtes/ der amtsfreien Gemeinde eine Kita besuchen.",null,null,null,null,null,{"$f":"IF(Einstellungen!$C$25,$I$41-($I$30-Eingabetabelle!$I$58),\"--\")","v":0},null,{"$f":"IF(Einstellungen!$C$25,$J$41-($J$30-Eingabetabelle!$J$58),\"--\")","v":0},{"$f":"IF(Einstellungen!$C$25,L41-(L30-Eingabetabelle!I58),\"--\")","v":0}]
[]
[]
[]
[]
[null,{"$f":"\"4a     Kosten im Monat im Jahr \"&Einstellungen!C4","v":"4a     Kosten im Monat im Jahr 2021"},null,null,null,null,null,{"$f":"IF(Einstellungen!$C$25,ROUND(($H$70*($D$10/12)),2),\"--\")","v":0},null,{"$f":"IF(Einstellungen!$C$25,ROUND(($J$70*($D$10/12)),2),\"--\")","v":0},{"$f":"IF(Einstellungen!$C$25,ROUND((K70*($D$10/12)),2),\"--\")","v":0}]
[]
[{"$f":"IF(Einstellungen!C24,\"5.\",\"\")","v":"5."},{"$f":"IF(Einstellungen!C24,\"Tagessatz für Kinder, die ihren gewöhnlichen Aufenthalt  im LK PM haben und innerhalb des Amtes in einer anderen als die Wohnortgemeinde eine Kita besuchen.\",\"\")","v":"Tagessatz für Kinder, die ihren gewöhnlichen Aufenthalt  im LK PM haben und innerhalb des Amtes in einer anderen als die Wohnortgemeinde eine Kita besuchen."},null,null,null,null,null,{"$f":"IF(Einstellungen!$C$24,IF(Einstellungen!$C$25,($I$41-($I$30-Eingabetabelle!$I$58)-(Eingabetabelle!$I$186*Einstellungen!$C$7)),\"--\"),\"\")","v":0},null,{"$f":"IF(Einstellungen!$C$24,IF(Einstellungen!$C$25,($J$41-($J$30-Eingabetabelle!$J$58)-(Eingabetabelle!$J$186*Einstellungen!$C$7)),\"--\"),\"\")","v":0},{"$f":"IF(Einstellungen!C24,IF(Einstellungen!$C$25,(L41-(L30-Eingabetabelle!I58)-(Eingabetabelle!I186*Einstellungen!C7)),\"--\"),\"\")","v":0}]
[]
[]
[]
[]
[null,{"$f":"IF(Einstellungen!C24,\"5a     Kosten im Monat im Jahr \"&Einstellungen!C4,\"\")","v":"5a     Kosten im Monat im Jahr 2021"},null,null,null,null,null,{"$f":"IF(Einstellungen!$C$24,IF(Einstellungen!$C$25,ROUND(($H$77*($D$10/12)),2),\"--\"),\"\")","v":0},null,{"$f":"IF(Einstellungen!$C$24,IF(Einstellungen!$C$25,ROUND(($J$77*($D$10/12)),2),\"--\"),\"\")","v":0},{"$f":"IF(Einstellungen!C24,IF(Einstellungen!$C$25,ROUND((K77*($D$10/12)),2),\"--\"),\"\")","v":0}]
[]
["*",{"$f":"Einstellungen!C6","v":"örtlicher Träger der Jugendhilfe"}]

{"sheet":"KK über 6 Std.","index":4,"n_rows":84,"n_cols":10,"rows_kept":84,"cut":false,"hidden":false,"merged":[[11,4,11,7],[12,0,12,3],[12,5,12,8],[27,1,27,5],[35,1,35,5],[25,8,27,8],[16,4,16,7],[24,1,24,5],[26,1,26,5],[30,1,30,8],[23,1,23,8],[13,5,13,8],[17,4,17,7],[18,4,18,7],[13,0,13,3],[14,0,14,8],[10,4,10,7],[6,4,6,8],[7,0,7,2],[8,4,8,6],[5,4,5,8],[7,4,7,6],[8,0,8,2],[9,4,9,7],[0,0,0,8],[1,0,1,8],[2,0,2,8],[3,4,3,8],[4,4,4,8],[81,1,81,6],[62,1,65,5],[41,1,41,5],[42,1,42,5],[43,1,43,5],[69,1,72,5],[74,1,74,5],[54,1,54,5],[67,1,67,5],[47,1,47,5],[76,1,79,5],[60,1,60,4],[45,1,45,5],[51,1,53,5],[56,1,58,5],[44,1,44,5],[15,4,15,7],[22,0,22,5],[31,1,31,8],[36,1,36,5],[29,1,29,5],[46,1,46,5],[40,1,40,5],[39,1,39,5],[19,4,19,7],[38,0,38,8],[25,1,25,5]]}
[{"$f":"\"Diese Datei ist Eigentum des Landratsamtes Potsdam-Mittelmark. Eine unbefugte Weitergabe an Dritte ist nicht gestattet!\nDateiversion: \" & Einstellungen!C3","v":"Diese Datei ist Eigentum des Landratsamtes Potsdam-Mittelmark. Eine unbefugte Weitergabe an Dritte ist nicht gestattet!\nDateiversion: 44228"},null,null,null,null,null,null,null,null,"EB"]
[{"$f":"Eingabetabelle!$A$2","v":"Berechnung der Entgelte für Kindertagesstätten im Landkreis Potsdam-Mittelmark\nfür das Jahr 2021\nRechtsstand: 01.08.2020"}]
["Kinderkrippe über 6 Stunden"]
["Name und Anschrift der Einrichtung",null,null,null,{"$f":"Eingabetabelle!$E$3","v":0}]
["Träger der Einrichtung",null,null,null,{"$f":"Eingabetabelle!$E$4","v":0}]
["Rechtsform",null,null,null,{"$f":"Eingabetabelle!$E$7","v":0}]
["Art der Einrichtung",null,null,null,{"$f":"Eingabetabelle!$E$8","v":0}]
["Kostenausgleich im Amt?",null,null,{"$f":"Eingabetabelle!$D$9","v":"ja"},"Personalschlüssel",null,null,{"$f":"Einstellungen!C10&\"/\"&Einstellungen!E10","v":"1/5"},{"$f":"Einstellungen!C10&\"/\"&Einstellungen!D10","v":"1/5"}]
["Kapazität",null,null,{"$f":"Eingabetabelle!$D$10","v":0},"notwendiges pädagogisches Personal",null,null,{"$f":"ROUND(D9*Einstellungen!C10/Einstellungen!E10,3)","v":0},{"$f":"ROUND(D9*Einstellungen!C10/Einstellungen!D10,3)","v":0}]
["Öffnungstage",null,null,{"$f":"Eingabetabelle!$D$11","v":250},{"$f":"Eingabetabelle!E11","v":" Durchschnittssatz ErzieherIn pro Monat"},null,null,null,{"$f":"Eingabetabelle!I11","v":0}]
["Belegungstage",null,null,{"$f":"Eingabetabelle!$D$12","v":0},{"$f":"Eingabetabelle!E12","v":" Durchschnittssatz LeiterIn pro Monat"},null,null,null,{"$f":"Eingabetabelle!I12","v":0}]
["Auslastungsgrad",null,null,{"$f":"Eingabetabelle!$D$13","v":0},{"$f":"Eingabetabelle!E13","v":" Durchschnittssatz gemäß KitaLAV"},null,null,null,{"$f":"Eingabetabelle!I13","v":0}]
[{"$f":"Eingabetabelle!A14","v":"Jahresmittel der belegten Plätze des Vorjahres:"},null,null,null,{"$f":"Eingabetabelle!E14","v":0}]
["Anzahl tatsächliches pädagogisches Personal:",null,null,null,{"$f":"Eingabetabelle!$E$15","v":0}]
["Leitungsanteile des Vorjahres"]
[{"$f":"Eingabetabelle!A17","v":"Stichtag"},{"$f":"Eingabetabelle!B17","v":"päd. LA"},{"$f":"Eingabetabelle!C17","v":"Stichtag "},{"$f":"Eingabetabelle!D17","v":"org. LA"},{"$f":"Eingabetabelle!E17","v":"Durchschnittlicher päd. Leitungsanteil des Vorjahres: "},null,null,null,{"$f":"Eingabetabelle!I17","v":0}]
[{"$f":"Eingabetabelle!A18","v":"01.12."},{"$f":"Eingabetabelle!B18","v":0},{"$f":"Eingabetabelle!C18","v":"01.12."},{"$f":"Eingabetabelle!D18","v":0},{"$f":"Eingabetabelle!E18","v":"Durchschnittlicher org. Leitungsanteil des Vorjahres:"},null,null,null,{"$f":"Eingabetabelle!I18","v":0}]
[{"$f":"Eingabetabelle!A19","v":"01.03."},{"$f":"Eingabetabelle!B19","v":0},{"$f":"Eingabetabelle!C19","v":"01.03."},{"$f":"Eingabetabelle!D19","v":0},{"$f":"Eingabetabelle!E19","v":"Betreuungsalter 0 bis unter 3 Jahre"},null,null,null,{"$f":"Eingabetabelle!I19","v":"ja"}]
[{"$f":"Eingabetabelle!A20","v":"01.06."},{"$f":"Eingabetabelle!B20","v":0},{"$f":"Eingabetabelle!C20","v":"01.06."},{"$f":"Eingabetabelle!D20","v":0},{"$f":"Eingabetabelle!E20","v":"Betreuungsalter 3 Jahre bis Schuleintritt"},null,null,null,{"$f":"Eingabetabelle!I20","v":"ja"}]
[{"$f":"Eingabetabelle!A21","v":"01.09."},{"$f":"Eingabetabelle!B21","v":0},{"$f":"Eingabetabelle!C21","v":"01.09."},{"$f":"Eingabetabelle!D21","v":0},{"$f":"Eingabetabelle!E21","v":"Betreuungsalter Klassenstufe 1 bis 6"},null,null,null,{"$f":"Eingabetabelle!I21","v":"nein"}]
[]
[null,null,null,null,null,null,"Jahreskosten\ngesamt","Tageskosten\ngesamt","Kosten pro\nKind pro Tag"]
[1,null,null,null,null,null,2,3,4]
["1.","Erträge"]
["1.1.","Zuschüsse des Leistungsverpflichteten  …",null,null,null,null,{"$f":"G26+G27+G28","v":0},{"$f":"ROUND(G25/$D$10,2)","v":0},{"$f":"IF($D$9=0,0,ROUND($G$25/$D$10/$D$9,2))","v":0},{"$f":"IF($D$9=0,0,ROUND($G$25/$D$10/$D$9,2))","v":0}]
[null,{"$f":"\"   - …für Leiterin  (in Höhe von \" & Einstellungen!C15*100 & \"% des n.p.Pers )\"","v":"   - …für Leiterin  (in Höhe von 85% des n.p.Pers )"},null,null,null,null,{"$f":"I16*I11*Einstellungen!C15*12","v":0},{"$f":"ROUND(G26/$D$10,2)","v":0}]
[null,{"$f":"\"   - …für Erzieherin (in Höhe von \" & Einstellungen!C16*100 & \"% des n.p.Pers )\"","v":"   - …für Erzieherin (in Höhe von 88,6% des n.p.Pers )"},null,null,null,null,{"$f":"(I9*I10*Einstellungen!C16*12)","v":0},{"$f":"ROUND(G27/$D$10,2)","v":0}]
[null,"  - … Sockel-Leitungsanteil gemäß § 5 KitaPerV",null,null,null,null,{"$f":"Eingabetabelle!G29","v":0},{"$f":"ROUND(G28/$D$10,2)","v":0}]
[null,"Summe Pkt. 1.2 bis 1.20.",null,null,null,null,{"$f":"Eingabetabelle!G65","v":0},{"$f":"Eingabetabelle!H65","v":0},{"$f":"Eingabetabelle!I65","v":0},{"$f":"Eingabetabelle!J65","v":0}]
[null,"Summe der Erträge (Pkt.1.) fixe Kosten",null,null,null,null,{"$f":"G29+G25","v":0},{"$f":"H29+H25","v":0},{"$f":"I25+I29","v":0},{"$f":"J29+J25","v":0}]
["2.","Aufwendungen Personalkosten"]
["2.1.","Personalkosten"]
[null,"Pädagogisches Personal/ErzieherIn",null,null,null,null,{"$f":"(I9*I10*7)+(H9*I10*5)","v":0},{"$f":"ROUND(G33/$D$10,2)","v":0},{"$f":"IF($D$9=0,0,ROUND(($G$33/$D$10/$D$9),2))","v":0},{"$f":"IF($D$9=0,0,ROUND(($G33/$D$10/$D$9),2))","v":0}]
[null,"Pädagogisches Personal/Leiterin",null,null,null,null,{"$f":"ROUND(I16*I11*12,2)","v":0},{"$f":"ROUND(G34/$D$10,2)","v":0},{"$f":"IF(D9=0,0,ROUND(G34/$D$10/$D$9,2))","v":0},{"$f":"IF($D$9=0,0,ROUND(($G34/$D$10/$D$9),2))","v":0}]
[null,"Pädagogisches Personal/Leiterin Organisationsanteil",null,null,null,null,{"$f":"Eingabetabelle!G72","v":0},{"$f":"ROUND(G35/$D$10,2)","v":0},{"$f":"IF(D9=0,0,ROUND((G35/$D$10/$D$9),2))","v":0},0]
[null,"Sockel-Leitungsanteil gemäß § 5 KitaPerV",null,null,null,null,{"$f":"Eingabetabelle!G73","v":0},{"$f":"ROUND(G36/$D$10,2)","v":0},{"$f":"IF(D9=0,0,ROUND((G36/$D$10/$D$9),2))","v":0},0]
[null,"Summe ",null,null,null,null,{"$f":"G33+G34+G35+G36","v":0},{"$f":"ROUND(G37/$D$10,2)","v":0},{"$f":"IF(D9=0,0,ROUND((G37/$D$10/$D$9),2))","v":0},0]
[]
["Zusammenfassung"]
["1.","Erträge",null,null,null,null,{"$f":"G30","v":0},{"$f":"H30","v":0},{"$f":"I30","v":0},{"$f":"J30","v":0}]
["2.","Aufwendungen",null,null,null,null,{"$f":"SUM(G42:G48)","v":0},{"$f":"ROUND(G41/$D$10,2)","v":0},{"$f":"SUM(I42:I48)","v":0},{"$f":"SUM(J42:J47)","v":0}]
[null,"2. Aufwendungen Personalkosten",null,null,null,null,{"$f":"G37","v":0},{"$f":"ROUND(G42/$D$10,2)","v":0},{"$f":"IF($D$9=0,0,ROUND($G42/$D$10/$D$9,2))","v":0},{"$f":"IF($D$9=0,0,ROUND($G42/$D$10/$D$9,2))","v":0}]
[null,"3. Personal- und Sachkosten für pädagogische Arbeit",null,null,null,null,{"$f":"Eingabetabelle!G206","v":0},{"$f":"Eingabetabelle!H206","v":0},{"$f":"Eingabetabelle!I206","v":0},{"$f":"IF($D$9=0,0,ROUND($G43/$D$10/$D$9,2))","v":0}]
[null,"4. Personal- und Sachkosten für Grundstück und Gebäude",null,null,null,null,{"$f":"Eingabetabelle!G207","v":0},{"$f":"Eingabetabelle!H207","v":0},{"$f":"Eingabetabelle!I207","v":0},{"$f":"IF($D$9=0,0,ROUND($G44/$D$10/$D$9,2))","v":0}]
[null,"5. Personal- und Sachkosten für die Versorgung mit Essen",null,null,null,null,{"$f":"Eingabetabelle!G208","v":0},{"$f":"Eingabetabelle!H208","v":0},{"$f":"Eingabetabelle!I208","v":0},0]
[null,"6. Sonstige Personal- und Sachkosten",null,null,null,null,{"$f":"Eingabetabelle!G209","v":0},{"$f":"Eingabetabelle!H209","v":0},{"$f":"Eingabetabelle!I209","v":0},0]
[null,"7. Sachkosten Ergänzung von Einrichtungsgegenständen",null,null,null,null,{"$f":"Eingabetabelle!G210","v":0},{"$f":"Eingabetabelle!H210","v":0},{"$f":"Eingabetabelle!I210","v":0},0]
[null,"9. Zinsen für Fremdkapital",null,null,null,null,{"$f":"Eingabetabelle!G212","v":0},{"$f":"Eingabetabelle!H212","v":0},{"$f":"Eingabetabelle!I212","v":0}]
[]
[]
[null,"Zusammenfassung:"]
["1.","Tagessatz pro Kind ohne Zuschüsse vom Landkreis* und ohne Elternbeitrag und Essengeld, 100% Aufwendungen, entspr. Staatsvertrag  mit Berlin",null,null,null,null,null,{"$f":"IF(Einstellungen!$C$25,$I$41-(SUM(Eingabetabelle!$I$42:$I$58,Eingabetabelle!$I$29)),\"--\")","v":0},null,{"$f":"IF(Einstellungen!$C$25,$J$41-(SUM(Eingabetabelle!$J$42:$J$58,Eingabetabelle!$J$29)),\"--\")","v":0}]
[]
[]
[null,{"$f":"\"1a     Kosten pro Monat im Jahr \"&Einstellungen!C4","v":"1a     Kosten pro Monat im Jahr 2021"},null,null,null,null,null,{"$f":"IF(Einstellungen!$C$25,ROUND(($H$52*($D$10/12)),2),\"--\")","v":0},null,{"$f":"IF(Einstellungen!$C$25,ROUND(($J$52*($D$10/12)),2),\"--\")","v":0}]
[]
["2.","Tagessatz pro Kind mit Berücksichtigung Elternbeitrag ohne Zuschüsse Landkreis, ohne Zuschüsse n.p.P., aber mit Zuschuss Sockelbetrag -Leitung und ohne Berücksichtigung des § 17 e KitaG (andere öffentliche Träger der öffentl. JH im Land Brandenburg oder andere Bundesländer.\n-->Potsdam, Brandenburg/ Havel, LK TF, LK LDS)",null,null,null,null,null,{"$f":"IF(Einstellungen!$C$25,$I$41-$I$29-Eingabetabelle!$I$73,\"--\")","v":0},null,{"$f":"IF(Einstellungen!$C$25,$J$41-$J$29-Eingabetabelle!$J$73,\"--\")","v":0}]
[]
[]
[]
[null,{"$f":"\"2a     Kosten im Monat im Jahr \"&Einstellungen!C4","v":"2a     Kosten im Monat im Jahr 2021"},null,null,null,null,null,{"$f":"IF(Einstellungen!$C$25,ROUND(($H$57*($D$10/12)),2),\"--\")","v":0},null,{"$f":"IF(Einstellungen!$C$25,ROUND(($J$57*($D$10/12)),2),\"--\")","v":0}]
[]
["3.","Zuschüsse zu den Betriebskosten gemäß § 16 Abs. 3 KitaG an freie Träger\n(höchstens 16% Personalkosten + andere Betriebskosten mit Berücksichtigung des Eigenanteils des Trägers und Elternbeitrag + Essengeld)",null,null,null,null,null,{"$f":"IF(Einstellungen!$C$25,$I$41-$I$30,\"--\")","v":0},null,{"$f":"IF(Einstellungen!$C$25,$J$41-$J$30,\"--\")","v":0}]
[]
[]
[]
[]
[null,{"$f":"\"3a     Kosten im Monat im Jahr \"&Einstellungen!C4","v":"3a     Kosten im Monat im Jahr 2021"},null,null,null,null,null,{"$f":"IF(Einstellungen!$C$25,ROUND(($H$63*($D$10/12)),2),\"--\")","v":0},null,{"$f":"IF(Einstellungen!$C$25,ROUND(($J$63*($D$10/12)),2),\"--\")","v":0}]
[]
["4.","Tagessatz für Kinder, die ihren gewöhnlichen Aufenthalt  im LK PM haben und außerhalb des Amtes/ der amtsfreien Gemeinde eine Kita besuchen.",null,null,null,null,null,{"$f":"IF(Einstellungen!$C$25,$I$41-($I$30-Eingabetabelle!$I$58),\"--\")","v":0},null,{"$f":"IF(Einstellungen!$C$25,$J$41-($J$30-Eingabetabelle!$J$58),\"--\")","v":0}]
[]
[]
[]
[]
[null,{"$f":"\"4a     Kosten im Monat im Jahr \"&Einstellungen!C4","v":"4a     Kosten im Monat im Jahr 2021"},null,null,null,null,null,{"$f":"IF(Einstellungen!$C$25,ROUND(($H$70*($D$10/12)),2),\"--\")","v":0},null,{"$f":"IF(Einstellungen!$C$25,ROUND(($J$70*($D$10/12)),2),\"--\")","v":0}]
[]
[{"$f":"IF(Einstellungen!C24,\"5.\",\"\")","v":"5."},{"$f":"IF(Einstellungen!C24,\"Tagessatz für Kinder, die ihren gewöhnlichen Aufenthalt  im LK PM haben und innerhalb des Amtes in einer anderen als die Wohnortgemeinde eine Kita besuchen.\",\"\")","v":"Tagessatz für Kinder, die ihren gewöhnlichen Aufenthalt  im LK PM haben und innerhalb des Amtes in einer anderen als die Wohnortgemeinde eine Kita besuchen."},null,null,null,null,null,{"$f":"IF(Einstellungen!$C$24,IF(Einstellungen!$C$25,($I$41-($I$30-Eingabetabelle!$I$58)-(Eingabetabelle!$I$186*Einstellungen!$C$7)),\"--\"),\"\")","v":0},null,{"$f":"IF(Einstellungen!$C$24,IF(Einstellungen!$C$25,($J$41-($J$30-Eingabetabelle!$J$58)-(Eingabetabelle!$J$186*Einstellungen!$C$7)),\"--\"),\"\")","v":0}]
[]
[]
[]
[]
[null,{"$f":"IF(Einstellungen!C24,\"5a     Kosten im Monat im Jahr \"&Einstellungen!C4,\"\")","v":"5a     Kosten im Monat im Jahr 2021"},null,null,null,null,null,{"$f":"IF(Einstellungen!$C$24,IF(Einstellungen!$C$25,ROUND(($H$77*($D$10/12)),2),\"--\"),\"\")","v":0},null,{"$f":"IF(Einstellungen!$C$24,IF(Einstellungen!$C$25,ROUND(($J$77*($D$10/12)),2),\"--\"),\"\")","v":0}]
[]
["*",{"$f":"Einstellungen!C6","v":"örtlicher Träger der Jugendhilfe"}]

{"sheet":"KG bis 6 Std.","index":5,"n_rows":85,"n_cols":10,"rows_kept":85,"cut":false,"hidden":false,"merged":[[6,4,6,8],[5,4,5,8],[26,1,26,5],[10,4,10,7],[13,0,13,3],[13,5,13,8],[14,0,14,8],[7,0,7,2],[7,4,7,7],[0,0,0,8],[1,0,1,8],[2,0,2,8],[3,4,3,8],[4,4,4,8],[30,1,30,8],[31,1,31,8],[36,1,36,5],[8,4,8,7],[9,4,9,7],[24,1,24,5],[19,4,19,7],[22,0,22,5],[23,1,23,8],[25,1,25,5],[27,1,27,5],[35,1,35,5],[25,8,27,8],[16,4,16,7],[18,4,18,7],[8,0,8,2],[29,1,29,5],[15,4,15,7],[17,4,17,7],[11,4,11,7],[12,0,12,3],[12,5,12,8],[43,1,43,5],[44,1,44,5],[45,1,45,5],[46,1,46,5],[47,1,47,5],[38,0,38,8],[39,1,39,5],[40,1,40,5],[82,1,82,6],[57,1,59,5],[61,1,61,4],[68,1,68,5],[70,1,73,5],[77,1,80,5],[48,1,48,5],[52,1,54,5],[55,1,55,5],[75,1,75,5],[41,1,41,5],[63,1,66,5],[42,1,42,5]]}
[{"$f":"\"Diese Datei ist Eigentum des Landratsamtes Potsdam-Mittelmark. Eine unbefugte Weitergabe an Dritte ist nicht gestattet!\nDateiversion: \" & Einstellungen!C3","v":"Diese Datei ist Eigentum des Landratsamtes Potsdam-Mittelmark. Eine unbefugte Weitergabe an Dritte ist nicht gestattet!\nDateiversion: 44228"},null,null,null,null,null,null,null,null,"EB"]
[{"$f":"Eingabetabelle!$A$2","v":"Berechnung der Entgelte für Kindertagesstätten im Landkreis Potsdam-Mittelmark\nfür das Jahr 2021\nRechtsstand: 01.08.2020"}]
["Kindergarten bis 6 Stunden"]
["Name und Anschrift der Einrichtung",null,null,null,{"$f":"Eingabetabelle!$E$3","v":0}]
["Träger der Einrichtung",null,null,null,{"$f":"Eingabetabelle!$E$4","v":0}]
["Rechtsform",null,null,null,{"$f":"Eingabetabelle!$E$7","v":0}]
["Art der Einrichtung",null,null,null,{"$f":"Eingabetabelle!$E$8","v":0}]
["Kostenausgleich im Amt?",null,null,{"$f":"Eingabetabelle!$D$9","v":"ja"},"Personalschlüssel",null,null,null,{"$f":"Einstellungen!C11&\"/\"&Einstellungen!D11","v":"0,8/10"}]
["Kapazität",null,null,{"$f":"Eingabetabelle!$D$10","v":0},"notwendiges pädagogisches Personal",null,null,null,{"$f":"ROUND(D9*Einstellungen!C11/Einstellungen!D11,3)","v":0}]
["Öffnungstage",null,null,{"$f":"Eingabetabelle!$D$11","v":250},{"$f":"Eingabetabelle!E11","v":" Durchschnittssatz ErzieherIn pro Monat"},null,null,null,{"$f":"Eingabetabelle!I11","v":0}]
["Belegungstage",null,null,{"$f":"Eingabetabelle!$D$12","v":0},{"$f":"Eingabetabelle!E12","v":" Durchschnittssatz LeiterIn pro Monat"},null,null,null,{"$f":"Eingabetabelle!I12","v":0}]
["Auslastungsgrad",null,null,{"$f":"Eingabetabelle!$D$13","v":0},{"$f":"Eingabetabelle!E13","v":" Durchschnittssatz gemäß KitaLAV"},null,null,null,{"$f":"Eingabetabelle!I13","v":0}]
[{"$f":"Eingabetabelle!A14","v":"Jahresmittel der belegten Plätze des Vorjahres:"},null,null,null,{"$f":"Eingabetabelle!E14","v":0}]
["Anzahl tatsächliches pädagogisches Personal:",null,null,null,{"$f":"Eingabetabelle!$E$15","v":0}]
["Leitungsanteile des Vorjahres"]
[{"$f":"Eingabetabelle!A17","v":"Stichtag"},{"$f":"Eingabetabelle!B17","v":"päd. LA"},{"$f":"Eingabetabelle!C17","v":"Stichtag "},{"$f":"Eingabetabelle!D17","v":"org. LA"},{"$f":"Eingabetabelle!E17","v":"Durchschnittlicher päd. Leitungsanteil des Vorjahres: "},null,null,null,{"$f":"Eingabetabelle!I17","v":0}]
[{"$f":"Eingabetabelle!A18","v":"01.12."},{"$f":"Eingabetabelle!B18","v":0},{"$f":"Eingabetabelle!C18","v":"01.12."},{"$f":"Eingabetabelle!D18","v":0},{"$f":"Eingabetabelle!E18","v":"Durchschnittlicher org. Leitungsanteil des Vorjahres:"},null,null,null,{"$f":"Eingabetabelle!I18","v":0}]
[{"$f":"Eingabetabelle!A19","v":"01.03."},{"$f":"Eingabetabelle!B19","v":0},{"$f":"Eingabetabelle!C19","v":"01.03."},{"$f":"Eingabetabelle!D19","v":0},{"$f":"Eingabetabelle!E19","v":"Betreuungsalter 0 bis unter 3 Jahre"},null,null,null,{"$f":"Eingabetabelle!I19","v":"ja"}]
[{"$f":"Eingabetabelle!A20","v":"01.06."},{"$f":"Eingabetabelle!B20","v":0},{"$f":"Eingabetabelle!C20","v":"01.06."},{"$f":"Eingabetabelle!D20","v":0},{"$f":"Eingabetabelle!E20","v":"Betreuungsalter 3 Jahre bis Schuleintritt"},null,null,null,{"$f":"Eingabetabelle!I20","v":"ja"}]
[{"$f":"Eingabetabelle!A21","v":"01.09."},{"$f":"Eingabetabelle!B21","v":0},{"$f":"Eingabetabelle!C21","v":"01.09."},{"$f":"Eingabetabelle!D21","v":0},{"$f":"Eingabetabelle!E21","v":"Betreuungsalter Klassenstufe 1 bis 6"},null,null,null,{"$f":"Eingabetabelle!I21","v":"nein"}]
[]
[null,null,null,null,null,null,"Jahreskosten\ngesamt","Tageskosten\ngesamt","Kosten pro\nKind pro Tag"]
[1,null,null,null,null,null,2,3,4]
["1.","Erträge"]
["1.1.","Zuschüsse des Leistungsverpflichteten  …",null,null,null,null,{"$f":"G26+G27+G28","v":0},{"$f":"ROUND(G25/$D$10,2)","v":0},{"$f":"IF($D$9=0,0,ROUND($G25/$D$10/$D$9,2))","v":0},{"$f":"IF($D$9=0,0,ROUND($G25/$D$10/$D$9,2))","v":0}]
[null,{"$f":"\"   - …für Leiterin  (in Höhe von \" & Einstellungen!C15*100 & \"% des n.p.Pers )\"","v":"   - …für Leiterin  (in Höhe von 85% des n.p.Pers )"},null,null,null,null,{"$f":"I16*I11*Einstellungen!C15*12","v":0},{"$f":"ROUND(G26/$D$10,2)","v":0},null,{"$f":"IF($D$9=0,0,ROUND($G26/$D$10/$D$9,2))","v":0}]
[null,{"$f":"\"   - … für Erzieherin ( in Höhe von \" & Einstellungen!C17*100 & \"% des n.p.Pers )\"","v":"   - … für Erzieherin ( in Höhe von 87,6% des n.p.Pers )"},null,null,null,null,{"$f":"I9*I10*Einstellungen!C17*12","v":0},{"$f":"ROUND(G27/$D$10,2)","v":0},null,0]
[null,"  - … Sockel-Leitungsanteil gemäß § 5 KitaPerV",null,null,null,null,{"$f":"Eingabetabelle!G29","v":0},{"$f":"ROUND(G28/$D$10,2)","v":0},null,0]
[null,"Summe Pkt. 1.2 bis 1.20.",null,null,null,null,{"$f":"Eingabetabelle!G65","v":0},{"$f":"Eingabetabelle!H65","v":0},{"$f":"Eingabetabelle!I65","v":0},0]
[null,"Summe der Erträge (Pkt.1.) fixe Kosten",null,null,null,null,{"$f":"G29+G25","v":0},{"$f":"H29+H25","v":0},{"$f":"I25+I29","v":0},0]
["2.","Aufwendungen Personalkosten",null,null,null,null,null,null,null,0]
["2.1.","Personalkosten",null,null,null,null,null,null,null,0]
[null,"Pädagogisches Personal/ErzieherIn",null,null,null,null,{"$f":"I9*I10*12","v":0},{"$f":"ROUND(G33/$D$10,2)","v":0},{"$f":"IF(D9=0,0,ROUND((G33/$D$10/$D$9),2))","v":0},0]
[null,"Pädagogisches Personal/Leiterin",null,null,null,null,{"$f":"ROUND(I16*I11*12,2)","v":0},{"$f":"ROUND(G34/$D$10,2)","v":0},{"$f":"IF(D9=0,0,ROUND(G34/$D$10/$D$9,2))","v":0},0]
[null,"Pädagogisches Personal/Leiterin Organisationsanteil",null,null,null,null,{"$f":"Eingabetabelle!G72","v":0},{"$f":"ROUND(G35/$D$10,2)","v":0},{"$f":"IF(D9=0,0,ROUND((G35/$D$10/$D$9),2))","v":0},0]
[null,"Sockel-Leitungsanteil gemäß § 5 KitaPerV",null,null,null,null,{"$f":"Eingabetabelle!G73","v":0},{"$f":"ROUND(G36/$D$10,2)","v":0},{"$f":"IF(D11=0,0,ROUND((G36/$D$10/D9),2))","v":0},0]
[null,"Summe ",null,null,null,null,{"$f":"G33+G34+G35+G36","v":0},{"$f":"H33+H34+H35","v":0},{"$f":"IF(D9=0,0,ROUND((G37/$D$10/$D$9),2))","v":0},0]
[null,null,null,null,null,null,null,null,null,{"$f":"IF($D$9=0,0,ROUND($G38/$D$10/$D$9,2))","v":0}]
["Zusammenfassung",null,null,null,null,null,null,null,null,0]
["1.","Erträge",null,null,null,null,{"$f":"G30","v":0},{"$f":"H30","v":0},{"$f":"I30","v":0},0]
["2.","Aufwendungen",null,null,null,null,{"$f":"SUM(G42:G49)","v":0},{"$f":"ROUND(G41/$D$10,2)","v":0},{"$f":"SUM(I42:I49)","v":0},0]
[null,"2. Aufwendungen Personalkosten",null,null,null,null,{"$f":"G37","v":0},{"$f":"ROUND(G42/$D$10,2)","v":0},{"$f":"IF(D9=0,0,ROUND(G42/$D$10/$D$9,2))","v":0},0]
[null,"3. Personal- und Sachkosten für pädagogische Arbeit",null,null,null,null,{"$f":"Eingabetabelle!G206","v":0},{"$f":"Eingabetabelle!H206","v":0},{"$f":"Eingabetabelle!I206","v":0},0]
[null,"4. Personal- und Sachkosten für Grundstück und Gebäude",null,null,null,null,{"$f":"Eingabetabelle!G207","v":0},{"$f":"Eingabetabelle!H207","v":0},{"$f":"Eingabetabelle!I207","v":0},0]
[null,"5. Personal- und Sachkosten für die Versorgung mit Essen",null,null,null,null,{"$f":"Eingabetabelle!G208","v":0},{"$f":"Eingabetabelle!H208","v":0},{"$f":"Eingabetabelle!I208","v":0},0]
[null,"6. Sonstige Personal- und Sachkosten",null,null,null,null,{"$f":"Eingabetabelle!G209","v":0},{"$f":"Eingabetabelle!H209","v":0},{"$f":"Eingabetabelle!I209","v":0},0]
[null,"7. Sachkosten Ergänzung von Einrichtungsgegenständen",null,null,null,null,{"$f":"Eingabetabelle!G210","v":0},{"$f":"Eingabetabelle!H210","v":0},{"$f":"Eingabetabelle!I210","v":0},0]
[null,"8. Fördermittel",null,null,null,null,{"$f":"Eingabetabelle!G211","v":0},{"$f":"Eingabetabelle!H211","v":0},{"$f":"Eingabetabelle!I211","v":0}]
[null,"9. Zinsen für Fremdkapital",null,null,null,null,{"$f":"Eingabetabelle!G212","v":0},{"$f":"ROUND(G49/$D$10,2)","v":0},{"$f":"Eingabetabelle!I212","v":0}]
[]
[]
[null,"Zusammenfassung:"]
["1.","Tagessatz pro Kind ohne Zuschüsse vom Landkreis* und ohne Elternbeitrag und Essengeld, 100% Aufwendungen, entspr. Staatsvertrag  mit Berlin",null,null,null,null,null,{"$f":"IF(Einstellungen!$C$26,$I$41-(SUM(Eingabetabelle!$I$42:$I$58,Eingabetabelle!$I$29)),\"--\")","v":0},null,{"$f":"IF(Einstellungen!$C$26,$J$41-(SUM(Eingabetabelle!$J$42:$J$58,Eingabetabelle!$J$29)),\"--\")","v":0}]
[]
[]
[null,{"$f":"\"1a     Kosten pro Monat im Jahr \"&Einstellungen!C4","v":"1a     Kosten pro Monat im Jahr 2021"},null,null,null,null,null,{"$f":"IF(Einstellungen!$C$26,ROUND(($H$53*($D$10/12)),2),\"--\")","v":0},null,{"$f":"IF(Einstellungen!$C$26,ROUND(($J$53*($D$10/12)),2),\"--\")","v":0}]
[]
["2.","Tagessatz pro Kind mit Berücksichtigung Elternbeitrag ohne Zuschüsse Landkreis, ohne Zuschüsse n.p.P., aber mit Zuschuss Sockelbetrag -Leitung und ohne Berücksichtigung des § 17 e KitaG (andere öffentliche Träger der öffentl. JH im Land Brandenburg oder andere Bundesländer.\n-->Potsdam, Brandenburg/ Havel, LK TF, LK LDS)",null,null,null,null,null,{"$f":"IF(Einstellungen!$C$26,$I$41-$I$29-Eingabetabelle!$I$73,\"--\")","v":0},null,{"$f":"IF(Einstellungen!$C$26,$J$41-$J$29-Eingabetabelle!$J$73,\"--\")","v":0}]
[]
[]
[]
[null,{"$f":"\"2a     Kosten im Monat im Jahr \"&Einstellungen!C4","v":"2a     Kosten im Monat im Jahr 2021"},null,null,null,null,null,{"$f":"IF(Einstellungen!$C$26,ROUND(($H$58*($D$10/12)),2),\"--\")","v":0},null,{"$f":"IF(Einstellungen!$C$26,ROUND(($J$58*($D$10/12)),2),\"--\")","v":0}]
[]
["3.","Zuschüsse zu den Betriebskosten gemäß § 16 Abs. 3 KitaG an freie Träger\n(höchstens 16% Personalkosten + andere Betriebskosten mit Berücksichtigung des Eigenanteils des Trägers und Elternbeitrag + Essengeld)",null,null,null,null,null,{"$f":"IF(Einstellungen!$C$26,$I$41-$I$30,\"--\")","v":0},null,{"$f":"IF(Einstellungen!$C$26,$J$41-$J$30,\"--\")","v":0}]
[]
[]
[]
[]
[null,{"$f":"\"3a     Kosten im Monat im Jahr \"&Einstellungen!C4","v":"3a     Kosten im Monat im Jahr 2021"},null,null,null,null,null,{"$f":"IF(Einstellungen!$C$26,ROUND((H64*($D$10/12)),2),\"--\")","v":0},null,{"$f":"IF(Einstellungen!$C$26,ROUND((J64*($D$10/12)),2),\"--\")","v":0}]
[]
["4.","Tagessatz für Kinder, die ihren gewöhnlichen Aufenthalt  im LK PM haben und außerhalb des Amtes/ der amtsfreien Gemeinde eine Kita besuchen.",null,null,null,null,null,{"$f":"IF(Einstellungen!$C$26,I41-(I30-Eingabetabelle!I58),\"--\")","v":0},null,{"$f":"IF(Einstellungen!$C$26,J41-(J30-Eingabetabelle!J58),\"--\")","v":0}]
[]
[]
[]
[]
[null,{"$f":"\"4a     Kosten im Monat im Jahr \"&Einstellungen!C4","v":"4a     Kosten im Monat im Jahr 2021"},null,null,null,null,null,{"$f":"IF(Einstellungen!$C$26,ROUND((H71*($D$10/12)),2),\"--\")","v":0},null,{"$f":"IF(Einstellungen!$C$26,ROUND((J71*($D$10/12)),2),\"--\")","v":0}]
[]
[{"$f":"IF(Einstellungen!C24,\"5.\",\"\")","v":"5."},{"$f":"IF(Einstellungen!C24,\"Tagessatz für Kinder, die ihren gewöhnlichen Aufenthalt  im LK PM haben und innerhalb des Amtes in einer anderen als die Wohnortgemeinde eine Kita besuchen.\",\"\")","v":"Tagessatz für Kinder, die ihren gewöhnlichen Aufenthalt  im LK PM haben und innerhalb des Amtes in einer anderen als die Wohnortgemeinde eine Kita besuchen."},null,null,null,null,null,{"$f":"IF(Einstellungen!$C$24,IF(Einstellungen!$C$26,(I41-(I30-Eingabetabelle!I58)-(Eingabetabelle!I186*Einstellungen!$C$7)),\"--\"),\"\")","v":0},null,{"$f":"IF(Einstellungen!$C$24,IF(Einstellungen!$C$26,(J41-(J30-Eingabetabelle!J58)-(Eingabetabelle!J186*Einstellungen!$C$7)),\"--\"),\"\")","v":0}]
[]
[]
[]
[]
[null,{"$f":"IF(Einstellungen!C24,\"5a     Kosten im Monat im Jahr \"&Einstellungen!C4,\"\")","v":"5a     Kosten im Monat im Jahr 2021"},null,null,null,null,null,{"$f":"IF(Einstellungen!C24,IF(Einstellungen!$C$26,ROUND((H78*($D$10/12)),2),\"--\"),\"\")","v":0},null,{"$f":"IF(Einstellungen!$C$24,IF(Einstellungen!$C$26,ROUND((J78*($D$10/12)),2),\"--\"),\"\")","v":0}]
[]
["*",{"$f":"Einstellungen!C6","v":"örtlicher Träger der Jugendhilfe"}]

{"sheet":"KG über 6 Std.","index":6,"n_rows":85,"n_cols":10,"rows_kept":85,"cut":false,"hidden":false,"merged":[[6,4,6,8],[5,4,5,8],[26,1,26,5],[10,4,10,7],[13,0,13,3],[13,5,13,8],[14,0,14,8],[7,0,7,2],[7,4,7,7],[0,0,0,8],[1,0,1,8],[2,0,2,8],[3,4,3,8],[4,4,4,8],[30,1,30,8],[31,1,31,8],[36,1,36,5],[8,4,8,7],[9,4,9,7],[24,1,24,5],[19,4,19,7],[22,0,22,5],[23,1,23,8],[25,1,25,5],[27,1,27,5],[35,1,35,5],[25,8,27,8],[16,4,16,7],[18,4,18,7],[8,0,8,2],[29,1,29,5],[15,4,15,7],[17,4,17,7],[11,4,11,7],[12,0,12,3],[12,5,12,8],[43,1,43,5],[44,1,44,5],[45,1,45,5],[46,1,46,5],[47,1,47,5],[38,0,38,8],[39,1,39,5],[40,1,40,5],[82,1,82,6],[57,1,59,5],[61,1,61,4],[68,1,68,5],[70,1,73,5],[77,1,80,5],[48,1,48,5],[52,1,54,5],[55,1,55,5],[75,1,75,5],[41,1,41,5],[63,1,66,5],[42,1,42,5]]}
[{"$f":"\"Diese Datei ist Eigentum des Landratsamtes Potsdam-Mittelmark. Eine unbefugte Weitergabe an Dritte ist nicht gestattet!\nDateiversion: \" & Einstellungen!C3","v":"Diese Datei ist Eigentum des Landratsamtes Potsdam-Mittelmark. Eine unbefugte Weitergabe an Dritte ist nicht gestattet!\nDateiversion: 44228"},null,null,null,null,null,null,null,null,"EB"]
[{"$f":"Eingabetabelle!$A$2","v":"Berechnung der Entgelte für Kindertagesstätten im Landkreis Potsdam-Mittelmark\nfür das Jahr 2021\nRechtsstand: 01.08.2020"}]
["Kindergarten über 6 Stunden"]
["Name und Anschrift der Einrichtung",null,null,null,{"$f":"Eingabetabelle!$E$3","v":0}]
["Träger der Einrichtung",null,null,null,{"$f":"Eingabetabelle!$E$4","v":0}]
["Rechtsform",null,null,null,{"$f":"Eingabetabelle!$E$7","v":0}]
["Art der Einrichtung",null,null,null,{"$f":"Eingabetabelle!$E$8","v":0}]
["Kostenausgleich im Amt?",null,null,{"$f":"Eingabetabelle!$D$9","v":"ja"},"Personalschlüssel",null,null,null,{"$f":"Einstellungen!C12&\"/\"&Einstellungen!D12","v":"1/10"}]
["Kapazität",null,null,{"$f":"Eingabetabelle!$D$10","v":0},"notwendiges pädagogisches Personal",null,null,null,{"$f":"ROUND(D9*Einstellungen!C12/Einstellungen!D12,3)","v":0}]
["Öffnungstage",null,null,{"$f":"Eingabetabelle!$D$11","v":250},{"$f":"Eingabetabelle!E11","v":" Durchschnittssatz ErzieherIn pro Monat"},null,null,null,{"$f":"Eingabetabelle!I11","v":0}]
["Belegungstage",null,null,{"$f":"Eingabetabelle!$D$12","v":0},{"$f":"Eingabetabelle!E12","v":" Durchschnittssatz LeiterIn pro Monat"},null,null,null,{"$f":"Eingabetabelle!I12","v":0}]
["Auslastungsgrad",null,null,{"$f":"Eingabetabelle!$D$13","v":0},{"$f":"Eingabetabelle!E13","v":" Durchschnittssatz gemäß KitaLAV"},null,null,null,{"$f":"Eingabetabelle!I13","v":0}]
[{"$f":"Eingabetabelle!A14","v":"Jahresmittel der belegten Plätze des Vorjahres:"},null,null,null,{"$f":"Eingabetabelle!E14","v":0}]
["Anzahl tatsächliches pädagogisches Personal:",null,null,null,{"$f":"Eingabetabelle!$E$15","v":0}]
["Leitungsanteile des Vorjahres"]
[{"$f":"Eingabetabelle!A17","v":"Stichtag"},{"$f":"Eingabetabelle!B17","v":"päd. LA"},{"$f":"Eingabetabelle!C17","v":"Stichtag "},{"$f":"Eingabetabelle!D17","v":"org. LA"},{"$f":"Eingabetabelle!E17","v":"Durchschnittlicher päd. Leitungsanteil des Vorjahres: "},null,null,null,{"$f":"Eingabetabelle!I17","v":0}]
[{"$f":"Eingabetabelle!A18","v":"01.12."},{"$f":"Eingabetabelle!B18","v":0},{"$f":"Eingabetabelle!C18","v":"01.12."},{"$f":"Eingabetabelle!D18","v":0},{"$f":"Eingabetabelle!E18","v":"Durchschnittlicher org. Leitungsanteil des Vorjahres:"},null,null,null,{"$f":"Eingabetabelle!I18","v":0}]
[{"$f":"Eingabetabelle!A19","v":"01.03."},{"$f":"Eingabetabelle!B19","v":0},{"$f":"Eingabetabelle!C19","v":"01.03."},{"$f":"Eingabetabelle!D19","v":0},{"$f":"Eingabetabelle!E19","v":"Betreuungsalter 0 bis unter 3 Jahre"},null,null,null,{"$f":"Eingabetabelle!I19","v":"ja"}]
[{"$f":"Eingabetabelle!A20","v":"01.06."},{"$f":"Eingabetabelle!B20","v":0},{"$f":"Eingabetabelle!C20","v":"01.06."},{"$f":"Eingabetabelle!D20","v":0},{"$f":"Eingabetabelle!E20","v":"Betreuungsalter 3 Jahre bis Schuleintritt"},null,null,null,{"$f":"Eingabetabelle!I20","v":"ja"}]
[{"$f":"Eingabetabelle!A21","v":"01.09."},{"$f":"Eingabetabelle!B21","v":0},{"$f":"Eingabetabelle!C21","v":"01.09."},{"$f":"Eingabetabelle!D21","v":0},{"$f":"Eingabetabelle!E21","v":"Betreuungsalter Klassenstufe 1 bis 6"},null,null,null,{"$f":"Eingabetabelle!I21","v":"nein"}]
[]
[null,null,null,null,null,null,"Jahreskosten\ngesamt","Tageskosten\ngesamt","Kosten pro\nKind pro Tag"]
[1,null,null,null,null,null,2,3,4]
["1.","Erträge"]
["1.1.","Zuschüsse des Leistungsverpflichteten  …",null,null,null,null,{"$f":"G26+G27+G28","v":0},{"$f":"ROUND(G25/$D$10,2)","v":0},{"$f":"IF($D$9=0,0,ROUND($G25/$D$10/$D$9,2))","v":0},{"$f":"IF($D$9=0,0,ROUND($G25/$D$10/$D$9,2))","v":0}]
[null,{"$f":"\"   - …für Leiterin  (in Höhe von \" & Einstellungen!C15*100 & \"% des n.p.Pers )\"","v":"   - …für Leiterin  (in Höhe von 85% des n.p.Pers )"},null,null,null,null,{"$f":"I16*I11*Einstellungen!C15*12","v":0},{"$f":"ROUND(G26/$D$10,2)","v":0},null,{"$f":"IF($D$9=0,0,ROUND($G26/$D$10/$D$9,2))","v":0}]
[null,{"$f":"\"   - … für Erzieherin ( in Höhe von \" & Einstellungen!C17*100 & \"% des n.p.Pers )\"","v":"   - … für Erzieherin ( in Höhe von 87,6% des n.p.Pers )"},null,null,null,null,{"$f":"I9*I10*Einstellungen!C17*12","v":0},{"$f":"ROUND(G27/$D$10,2)","v":0},null,0]
[null,"  - … Sockel-Leitungsanteil gemäß § 5 KitaPerV",null,null,null,null,{"$f":"Eingabetabelle!G29","v":0},{"$f":"ROUND(G28/$D$10,2)","v":0},null,0]
[null,"Summe Pkt. 1.2 bis 1.20.",null,null,null,null,{"$f":"Eingabetabelle!G65","v":0},{"$f":"Eingabetabelle!H65","v":0},{"$f":"Eingabetabelle!I65","v":0},0]
[null,"Summe der Erträge (Pkt.1.) fixe Kosten",null,null,null,null,{"$f":"G29+G25","v":0},{"$f":"H29+H25","v":0},{"$f":"I25+I29","v":0},0]
["2.","Aufwendungen Personalkosten",null,null,null,null,null,null,null,0]
["2.1.","Personalkosten",null,null,null,null,null,null,null,0]
[null,"Pädagogisches Personal/ErzieherIn",null,null,null,null,{"$f":"I9*I10*12","v":0},{"$f":"ROUND(G33/$D$10,2)","v":0},{"$f":"IF(D9=0,0,ROUND((G33/$D$10/$D$9),2))","v":0},0]
[null,"Pädagogisches Personal/Leiterin",null,null,null,null,{"$f":"ROUND(I16*I11*12,2)","v":0},{"$f":"ROUND(G34/$D$10,2)","v":0},{"$f":"IF(D9=0,0,ROUND(G34/$D$10/$D$9,2))","v":0},0]
[null,"Pädagogisches Personal/Leiterin Organisationsanteil",null,null,null,null,{"$f":"Eingabetabelle!G72","v":0},{"$f":"ROUND(G35/$D$10,2)","v":0},{"$f":"IF(D9=0,0,ROUND((G35/$D$10/$D$9),2))","v":0},0]
[null,"Sockel-Leitungsanteil gemäß § 5 KitaPerV",null,null,null,null,{"$f":"Eingabetabelle!G73","v":0},{"$f":"ROUND(G36/$D$10,2)","v":0},{"$f":"IF(D9=0,0,ROUND((G36/$D$10/$D$9),2))","v":0},0]
[null,"Summe ",null,null,null,null,{"$f":"G33+G34+G35+G36","v":0},{"$f":"H33+H34+H35","v":0},{"$f":"IF(D9=0,0,ROUND((G37/$D$10/$D$9),2))","v":0},0]
[null,null,null,null,null,null,null,null,null,0]
["Zusammenfassung",null,null,null,null,null,null,null,null,0]
["1.","Erträge",null,null,null,null,{"$f":"G30","v":0},{"$f":"H30","v":0},{"$f":"I30","v":0},0]
["2.","Aufwendungen",null,null,null,null,{"$f":"SUM(G42:G49)","v":0},{"$f":"ROUND(G41/$D$10,2)","v":0},{"$f":"SUM(I42:I49)","v":0},0]
[null,"2. Aufwendungen Personalkosten",null,null,null,null,{"$f":"G37","v":0},{"$f":"ROUND(G42/$D$10,2)","v":0},{"$f":"IF(D9=0,0,ROUND(G42/$D$10/$D$9,2))","v":0},0]
[null,"3. Personal- und Sachkosten für pädagogische Arbeit",null,null,null,null,{"$f":"Eingabetabelle!G206","v":0},{"$f":"Eingabetabelle!H206","v":0},{"$f":"Eingabetabelle!I206","v":0},0]
[null,"4. Personal- und Sachkosten für Grundstück und Gebäude",null,null,null,null,{"$f":"Eingabetabelle!G207","v":0},{"$f":"Eingabetabelle!H207","v":0},{"$f":"Eingabetabelle!I207","v":0},0]
[null,"5. Personal- und Sachkosten für die Versorgung mit Essen",null,null,null,null,{"$f":"Eingabetabelle!G208","v":0},{"$f":"Eingabetabelle!H208","v":0},{"$f":"Eingabetabelle!I208","v":0},0]
[null,"6. Sonstige Personal- und Sachkosten",null,null,null,null,{"$f":"Eingabetabelle!G209","v":0},{"$f":"Eingabetabelle!H209","v":0},{"$f":"Eingabetabelle!I209","v":0},0]
[null,"7. Sachkosten Ergänzung von Einrichtungsgegenständen",null,null,null,null,{"$f":"Eingabetabelle!G210","v":0},{"$f":"Eingabetabelle!H210","v":0},{"$f":"Eingabetabelle!I210","v":0},0]
[null,"8. Fördermittel",null,null,null,null,{"$f":"Eingabetabelle!G211","v":0},{"$f":"Eingabetabelle!H211","v":0},{"$f":"Eingabetabelle!I211","v":0},0]
[null,"9. Zinsen für Fremdkapital",null,null,null,null,{"$f":"Eingabetabelle!G212","v":0},{"$f":"ROUND(G49/$D$10,2)","v":0},{"$f":"Eingabetabelle!I212","v":0},0]
[]
[]
[null,"Zusammenfassung:"]
["1.","Tagessatz pro Kind ohne Zuschüsse vom Landkreis* und ohne Elternbeitrag und Essengeld, 100% Aufwendungen, entspr. Staatsvertrag  mit Berlin",null,null,null,null,null,{"$f":"IF(Einstellungen!$C$26,I41-(SUM(Eingabetabelle!I42:I58,Eingabetabelle!I29)),\"--\")","v":0},null,{"$f":"IF(Einstellungen!$C$26,J41-(SUM(Eingabetabelle!J42:J58,Eingabetabelle!J29)),\"--\")","v":0}]
[]
[]
[null,{"$f":"\"1a     Kosten pro Monat im Jahr \"&Einstellungen!C4","v":"1a     Kosten pro Monat im Jahr 2021"},null,null,null,null,null,{"$f":"IF(Einstellungen!$C$26,ROUND((H53*($D$10/12)),2),\"--\")","v":0},null,{"$f":"IF(Einstellungen!$C$26,ROUND((J53*($D$10/12)),2),\"--\")","v":0}]
[]
["2.","Tagessatz pro Kind mit Berücksichtigung Elternbeitrag ohne Zuschüsse Landkreis, ohne Zuschüsse n.p.P., aber mit Zuschuss Sockelbetrag -Leitung und ohne Berücksichtigung des § 17 e KitaG (andere öffentliche Träger der öffentl. JH im Land Brandenburg oder andere Bundesländer.\n-->Potsdam, Brandenburg/ Havel, LK TF, LK LDS)",null,null,null,null,null,{"$f":"IF(Einstellungen!$C$26,I41-I29-Eingabetabelle!I73,\"--\")","v":0},null,{"$f":"IF(Einstellungen!$C$26,J41-J29-Eingabetabelle!J73,\"--\")","v":0}]
[]
[]
[]
[null,{"$f":"\"2a     Kosten im Monat im Jahr \"&Einstellungen!C4","v":"2a     Kosten im Monat im Jahr 2021"},null,null,null,null,null,{"$f":"IF(Einstellungen!$C$26,ROUND((H58*($D$10/12)),2),\"--\")","v":0},null,{"$f":"IF(Einstellungen!$C$26,ROUND((J58*($D$10/12)),2),\"--\")","v":0}]
[]
["3.","Zuschüsse zu den Betriebskosten gemäß § 16 Abs. 3 KitaG an freie Träger\n(höchstens 16% Personalkosten + andere Betriebskosten mit Berücksichtigung des Eigenanteils des Trägers und Elternbeitrag + Essengeld)",null,null,null,null,null,{"$f":"IF(Einstellungen!$C$26,I41-I30,\"--\")","v":0},null,{"$f":"IF(Einstellungen!$C$26,J41-J30,\"--\")","v":0}]
[]
[]
[]
[]
[null,{"$f":"\"3a     Kosten im Monat im Jahr \"&Einstellungen!C4","v":"3a     Kosten im Monat im Jahr 2021"},null,null,null,null,null,{"$f":"IF(Einstellungen!$C$26,ROUND((H64*($D$10/12)),2),\"--\")","v":0},null,{"$f":"IF(Einstellungen!$C$26,ROUND((J64*($D$10/12)),2),\"--\")","v":0}]
[]
["4.","Tagessatz für Kinder, die ihren gewöhnlichen Aufenthalt  im LK PM haben und außerhalb des Amtes/ der amtsfreien Gemeinde eine Kita besuchen.",null,null,null,null,null,{"$f":"IF(Einstellungen!$C$26,I41-(I30-Eingabetabelle!I58),\"--\")","v":0},null,{"$f":"IF(Einstellungen!$C$26,J41-(J30-Eingabetabelle!J58),\"--\")","v":0}]
[]
[]
[]
[]
[null,{"$f":"\"4a     Kosten im Monat im Jahr \"&Einstellungen!C4","v":"4a     Kosten im Monat im Jahr 2021"},null,null,null,null,null,{"$f":"IF(Einstellungen!$C$26,ROUND((H71*($D$10/12)),2),\"--\")","v":0},null,{"$f":"IF(Einstellungen!$C$26,ROUND((J71*($D$10/12)),2),\"--\")","v":0}]
[]
[{"$f":"IF(Einstellungen!C24,\"5.\",\"\")","v":"5."},{"$f":"IF(Einstellungen!C24,\"Tagessatz für Kinder, die ihren gewöhnlichen Aufenthalt  im LK PM haben und innerhalb des Amtes in einer anderen als die Wohnortgemeinde eine Kita besuchen.\",\"\")","v":"Tagessatz für Kinder, die ihren gewöhnlichen Aufenthalt  im LK PM haben und innerhalb des Amtes in einer anderen als die Wohnortgemeinde eine Kita besuchen."},null,null,null,null,null,{"$f":"IF(Einstellungen!$C$24,IF(Einstellungen!$C$26,(I41-(I30-Eingabetabelle!I58)-(Eingabetabelle!I186*Einstellungen!$C$7)),\"--\"),\"\")","v":0},null,{"$f":"IF(Einstellungen!$C$24,IF(Einstellungen!$C$26,(J41-(J30-Eingabetabelle!J58)-(Eingabetabelle!J186*Einstellungen!$C$7)),\"--\"),\"\")","v":0}]
[]
[]
[]
[]
[null,{"$f":"IF(Einstellungen!C24,\"5a     Kosten im Monat im Jahr \"&Einstellungen!C4,\"\")","v":"5a     Kosten im Monat im Jahr 2021"},null,null,null,null,null,{"$f":"IF(Einstellungen!$C$24,IF(Einstellungen!$C$26,ROUND((H78*($D$10/12)),2),\"--\"),\"\")","v":0},null,{"$f":"IF(Einstellungen!$C$24,IF(Einstellungen!$C$26,ROUND((J78*($D$10/12)),2),\"--\"),\"\")","v":0}]
[]
["*",{"$f":"Einstellungen!C6","v":"örtlicher Träger der Jugendhilfe"}]

{"sheet":"Hort bis 4 Std.","index":7,"n_rows":85,"n_cols":10,"rows_kept":85,"cut":false,"hidden":false,"merged":[[6,4,6,8],[5,4,5,8],[26,1,26,5],[10,4,10,7],[13,0,13,3],[13,5,13,8],[14,0,14,8],[7,0,7,2],[7,4,7,7],[0,0,0,8],[1,0,1,8],[2,0,2,8],[3,4,3,8],[4,4,4,8],[30,1,30,8],[31,1,31,8],[36,1,36,5],[8,4,8,7],[9,4,9,7],[24,1,24,5],[19,4,19,7],[22,0,22,5],[23,1,23,8],[25,1,25,5],[27,1,27,5],[35,1,35,5],[25,8,27,8],[16,4,16,7],[18,4,18,7],[8,0,8,2],[29,1,29,5],[15,4,15,7],[17,4,17,7],[11,4,11,7],[12,0,12,3],[12,5,12,8],[43,1,43,5],[44,1,44,5],[45,1,45,5],[46,1,46,5],[47,1,47,5],[38,0,38,8],[39,1,39,5],[40,1,40,5],[82,1,82,6],[57,1,59,5],[61,1,61,4],[68,1,68,5],[70,1,73,5],[77,1,80,5],[48,1,48,5],[52,1,54,5],[55,1,55,5],[75,1,75,5],[41,1,41,5],[63,1,66,5],[42,1,42,5]]}
[{"$f":"\"Diese Datei ist Eigentum des Landratsamtes Potsdam-Mittelmark. Eine unbefugte Weitergabe an Dritte ist nicht gestattet!\nDateiversion: \" & Einstellungen!C3","v":"Diese Datei ist Eigentum des Landratsamtes Potsdam-Mittelmark. Eine unbefugte Weitergabe an Dritte ist nicht gestattet!\nDateiversion: 44228"},null,null,null,null,null,null,null,null,"EB"]
[{"$f":"Eingabetabelle!$A$2","v":"Berechnung der Entgelte für Kindertagesstätten im Landkreis Potsdam-Mittelmark\nfür das Jahr 2021\nRechtsstand: 01.08.2020"}]
["Hort bis 4 Stunden"]
["Name und Anschrift der Einrichtung",null,null,null,{"$f":"Eingabetabelle!$E$3","v":0}]
["Träger der Einrichtung",null,null,null,{"$f":"Eingabetabelle!$E$4","v":0}]
["Rechtsform",null,null,null,{"$f":"Eingabetabelle!$E$7","v":0}]
["Art der Einrichtung",null,null,null,{"$f":"Eingabetabelle!$E$8","v":0}]
["Kostenausgleich im Amt?",null,null,{"$f":"Eingabetabelle!$D$9","v":"ja"},"Personalschlüssel",null,null,null,{"$f":"Einstellungen!C13&\"/\"&Einstellungen!D13","v":"0,6/15"}]
["Kapazität",null,null,{"$f":"Eingabetabelle!$D$10","v":0},"notwendiges pädagogisches Personal",null,null,null,{"$f":"ROUND(D9*Einstellungen!C13/Einstellungen!D13,3)","v":0}]
["Öffnungstage",null,null,{"$f":"Eingabetabelle!$D$11","v":250},{"$f":"Eingabetabelle!E11","v":" Durchschnittssatz ErzieherIn pro Monat"},null,null,null,{"$f":"Eingabetabelle!I11","v":0}]
["Belegungstage",null,null,{"$f":"Eingabetabelle!$D$12","v":0},{"$f":"Eingabetabelle!E12","v":" Durchschnittssatz LeiterIn pro Monat"},null,null,null,{"$f":"Eingabetabelle!I12","v":0}]
["Auslastungsgrad",null,null,{"$f":"Eingabetabelle!$D$13","v":0},{"$f":"Eingabetabelle!E13","v":" Durchschnittssatz gemäß KitaLAV"},null,null,null,{"$f":"Eingabetabelle!I13","v":0}]
[{"$f":"Eingabetabelle!A14","v":"Jahresmittel der belegten Plätze des Vorjahres:"},null,null,null,{"$f":"Eingabetabelle!E14","v":0}]
["Anzahl tatsächliches pädagogisches Personal:",null,null,null,{"$f":"Eingabetabelle!$E$15","v":0}]
["Leitungsanteile des Vorjahres"]
[{"$f":"Eingabetabelle!A17","v":"Stichtag"},{"$f":"Eingabetabelle!B17","v":"päd. LA"},{"$f":"Eingabetabelle!C17","v":"Stichtag "},{"$f":"Eingabetabelle!D17","v":"org. LA"},{"$f":"Eingabetabelle!E17","v":"Durchschnittlicher päd. Leitungsanteil des Vorjahres: "},null,null,null,{"$f":"Eingabetabelle!I17","v":0}]
[{"$f":"Eingabetabelle!A18","v":"01.12."},{"$f":"Eingabetabelle!B18","v":0},{"$f":"Eingabetabelle!C18","v":"01.12."},{"$f":"Eingabetabelle!D18","v":0},{"$f":"Eingabetabelle!E18","v":"Durchschnittlicher org. Leitungsanteil des Vorjahres:"},null,null,null,{"$f":"Eingabetabelle!I18","v":0}]
[{"$f":"Eingabetabelle!A19","v":"01.03."},{"$f":"Eingabetabelle!B19","v":0},{"$f":"Eingabetabelle!C19","v":"01.03."},{"$f":"Eingabetabelle!D19","v":0},{"$f":"Eingabetabelle!E19","v":"Betreuungsalter 0 bis unter 3 Jahre"},null,null,null,{"$f":"Eingabetabelle!I19","v":"ja"}]
[{"$f":"Eingabetabelle!A20","v":"01.06."},{"$f":"Eingabetabelle!B20","v":0},{"$f":"Eingabetabelle!C20","v":"01.06."},{"$f":"Eingabetabelle!D20","v":0},{"$f":"Eingabetabelle!E20","v":"Betreuungsalter 3 Jahre bis Schuleintritt"},null,null,null,{"$f":"Eingabetabelle!I20","v":"ja"}]
[{"$f":"Eingabetabelle!A21","v":"01.09."},{"$f":"Eingabetabelle!B21","v":0},{"$f":"Eingabetabelle!C21","v":"01.09."},{"$f":"Eingabetabelle!D21","v":0},{"$f":"Eingabetabelle!E21","v":"Betreuungsalter Klassenstufe 1 bis 6"},null,null,null,{"$f":"Eingabetabelle!I21","v":"nein"}]
[]
[null,null,null,null,null,null,"Jahreskosten\ngesamt","Tageskosten\ngesamt","Kosten pro\nKind pro Tag"]
[1,null,null,null,null,null,2,3,4]
["1.","Erträge"]
["1.1.","Zuschüsse des Leistungsverpflichteten  …",null,null,null,null,{"$f":"G26+G27+G28","v":0},{"$f":"ROUND(G25/$D$10,2)","v":0},{"$f":"IF($D$9=0,0,ROUND($G25/$D$10/$D$9,2))","v":0},{"$f":"IF($D$9=0,0,ROUND($G25/$D$10/$D$9,2))","v":0}]
[null,{"$f":"\"   - …für Leiterin  (in Höhe von \" & Einstellungen!C15*100 & \"% des n.p.Pers )\"","v":"   - …für Leiterin  (in Höhe von 85% des n.p.Pers )"},null,null,null,null,{"$f":"I16*I11*Einstellungen!C15*12","v":0},{"$f":"ROUND(G26/$D$10,2)","v":0},null,{"$f":"IF($D$9=0,0,ROUND($G26/$D$10/$D$9,2))","v":0}]
[null,{"$f":"\"   - … für Erzieherin ( in Höhe von \" & Einstellungen!C18*100 & \"% des n.p.Pers )\"","v":"   - … für Erzieherin ( in Höhe von 84% des n.p.Pers )"},null,null,null,null,{"$f":"I9*I10*Einstellungen!C18*12","v":0},{"$f":"ROUND(G27/$D$10,2)","v":0},null,0]
[null,"  - … Sockel-Leitungsanteil gemäß § 5 KitaPerV",null,null,null,null,{"$f":"Eingabetabelle!G29","v":0},{"$f":"ROUND(G28/$D$10,2)","v":0},null,0]
[null,"Summe Pkt. 1.2 bis 1.20.",null,null,null,null,{"$f":"Eingabetabelle!G65","v":0},{"$f":"Eingabetabelle!H65","v":0},{"$f":"Eingabetabelle!I65","v":0},0]
[null,"Summe der Erträge (Pkt.1.) fixe Kosten",null,null,null,null,{"$f":"G29+G25","v":0},{"$f":"H29+H25","v":0},{"$f":"I25+I29","v":0},0]
["2.","Aufwendungen Personalkosten",null,null,null,null,null,null,null,0]
["2.1.","Personalkosten",null,null,null,null,null,null,null,0]
[null,"Pädagogisches Personal/ErzieherIn",null,null,null,null,{"$f":"I9*I10*12","v":0},{"$f":"ROUND(G33/$D$10,2)","v":0},{"$f":"IF(D9=0,0,ROUND((G33/$D$10/$D$9),2))","v":0},0]
[null,"Pädagogisches Personal/Leiterin",null,null,null,null,{"$f":"ROUND(I16*I11*12,2)","v":0},{"$f":"ROUND(G34/$D$10,2)","v":0},{"$f":"IF(D9=0,0,ROUND(G34/$D$10/$D$9,2))","v":0},0]
[null,"Pädagogisches Personal/Leiterin Organisationsanteil",null,null,null,null,{"$f":"Eingabetabelle!G72","v":0},{"$f":"ROUND(G35/$D$10,2)","v":0},{"$f":"IF(D9=0,0,ROUND((G35/$D$10/$D$9),2))","v":0},0]
[null,"Sockel-Leitungsanteil gemäß § 5 KitaPerV",null,null,null,null,{"$f":"Eingabetabelle!G73","v":0},{"$f":"ROUND(G36/$D$10,2)","v":0},{"$f":"IF(D9=0,0,ROUND((G36/$D$10/$D$9),2))","v":0},0]
[null,"Summe ",null,null,null,null,{"$f":"G33+G34+G35+G36","v":0},{"$f":"H33+H34+H35","v":0},{"$f":"IF(D9=0,0,ROUND((G37/$D$10/$D$9),2))","v":0},0]
[null,null,null,null,null,null,null,null,null,0]
["Zusammenfassung",null,null,null,null,null,null,null,null,0]
["1.","Erträge",null,null,null,null,{"$f":"G30","v":0},{"$f":"H30","v":0},{"$f":"I30","v":0},0]
["2.","Aufwendungen",null,null,null,null,{"$f":"SUM(G42:G49)","v":0},{"$f":"ROUND(G41/$D$10,2)","v":0},{"$f":"SUM(I42:I49)","v":0},0]
[null,"2. Aufwendungen Personalkosten",null,null,null,null,{"$f":"G37","v":0},{"$f":"ROUND(G42/$D$10,2)","v":0},{"$f":"IF(D9=0,0,ROUND(G42/$D$10/$D$9,2))","v":0},0]
[null,"3. Personal- und Sachkosten für pädagogische Arbeit",null,null,null,null,{"$f":"Eingabetabelle!G206","v":0},{"$f":"Eingabetabelle!H206","v":0},{"$f":"Eingabetabelle!I206","v":0},0]
[null,"4. Personal- und Sachkosten für Grundstück und Gebäude",null,null,null,null,{"$f":"Eingabetabelle!G207","v":0},{"$f":"Eingabetabelle!H207","v":0},{"$f":"Eingabetabelle!I207","v":0},0]
[null,"5. Personal- und Sachkosten für die Versorgung mit Essen",null,null,null,null,{"$f":"Eingabetabelle!G208","v":0},{"$f":"Eingabetabelle!H208","v":0},{"$f":"Eingabetabelle!I208","v":0},0]
[null,"6. Sonstige Personal- und Sachkosten",null,null,null,null,{"$f":"Eingabetabelle!G209","v":0},{"$f":"Eingabetabelle!H209","v":0},{"$f":"Eingabetabelle!I209","v":0},0]
[null,"7. Sachkosten Ergänzung von Einrichtungsgegenständen",null,null,null,null,{"$f":"Eingabetabelle!G210","v":0},{"$f":"Eingabetabelle!H210","v":0},{"$f":"Eingabetabelle!I210","v":0},0]
[null,"8. Fördermittel",null,null,null,null,{"$f":"Eingabetabelle!G211","v":0},{"$f":"Eingabetabelle!H211","v":0},{"$f":"Eingabetabelle!I211","v":0}]
[null,"9. Zinsen für Fremdkapital",null,null,null,null,{"$f":"Eingabetabelle!G212","v":0},{"$f":"ROUND(G49/$D$10,2)","v":0},{"$f":"Eingabetabelle!I212","v":0}]
[]
[]
[null,"Zusammenfassung:"]
["1.","Tagessatz pro Kind ohne Zuschüsse vom Landkreis* und ohne Elternbeitrag und Essengeld, 100% Aufwendungen, entspr. Staatsvertrag  mit Berlin",null,null,null,null,null,{"$f":"IF(Einstellungen!$C$27,I41-(SUM(Eingabetabelle!I42:I58,Eingabetabelle!I29)),\"--\")","v":"--"},null,{"$f":"IF(Einstellungen!$C$27,J41-(SUM(Eingabetabelle!J42:J58,Eingabetabelle!J29)),\"--\")","v":"--"}]
[]
[]
[null,{"$f":"\"1a     Kosten pro Monat im Jahr \"&Einstellungen!C4","v":"1a     Kosten pro Monat im Jahr 2021"},null,null,null,null,null,{"$f":"IF(Einstellungen!$C$27,ROUND((H53*($D$10/12)),2),\"--\")","v":"--"},null,{"$f":"IF(Einstellungen!$C$27,ROUND((J53*($D$10/12)),2),\"--\")","v":"--"}]
[]
["2.","Tagessatz pro Kind mit Berücksichtigung Elternbeitrag ohne Zuschüsse Landkreis, ohne Zuschüsse n.p.P., aber mit Zuschuss Sockelbetrag -Leitung und ohne Berücksichtigung des § 17 e KitaG (andere öffentliche Träger der öffentl. JH im Land Brandenburg oder andere Bundesländer.\n-->Potsdam, Brandenburg/ Havel, LK TF, LK LDS)",null,null,null,null,null,{"$f":"IF(Einstellungen!$C$27,I41-I29-Eingabetabelle!I73,\"--\")","v":"--"},null,{"$f":"IF(Einstellungen!$C$27,J41-J29-Eingabetabelle!J73,\"--\")","v":"--"}]
[]
[]
[]
[null,{"$f":"\"2a     Kosten im Monat im Jahr \"&Einstellungen!C4","v":"2a     Kosten im Monat im Jahr 2021"},null,null,null,null,null,{"$f":"IF(Einstellungen!$C$27,ROUND((H58*($D$10/12)),2),\"--\")","v":"--"},null,{"$f":"IF(Einstellungen!$C$27,ROUND((J58*($D$10/12)),2),\"--\")","v":"--"}]
[]
["3.","Zuschüsse zu den Betriebskosten gemäß § 16 Abs. 3 KitaG an freie Träger\n(höchstens 16% Personalkosten + andere Betriebskosten mit Berücksichtigung des Eigenanteils des Trägers und Elternbeitrag + Essengeld)",null,null,null,null,null,{"$f":"IF(Einstellungen!$C$27,I41-I30,\"--\")","v":"--"},null,{"$f":"IF(Einstellungen!$C$27,J41-J30,\"--\")","v":"--"}]
[]
[]
[]
[]
[null,{"$f":"\"3a     Kosten im Monat im Jahr \"&Einstellungen!C4","v":"3a     Kosten im Monat im Jahr 2021"},null,null,null,null,null,{"$f":"IF(Einstellungen!$C$27,ROUND((H64*($D$10/12)),2),\"--\")","v":"--"},null,{"$f":"IF(Einstellungen!$C$27,ROUND((J64*($D$10/12)),2),\"--\")","v":"--"}]
[]
["4.","Tagessatz für Kinder, die ihren gewöhnlichen Aufenthalt  im LK PM haben und außerhalb des Amtes/ der amtsfreien Gemeinde eine Kita besuchen.",null,null,null,null,null,{"$f":"IF(Einstellungen!$C$27,I41-(I30-Eingabetabelle!I58),\"--\")","v":"--"},null,{"$f":"IF(Einstellungen!$C$27,J41-(J30-Eingabetabelle!J58),\"--\")","v":"--"}]
[]
[]
[]
[]
[null,{"$f":"\"4a     Kosten im Monat im Jahr \"&Einstellungen!C4","v":"4a     Kosten im Monat im Jahr 2021"},null,null,null,null,null,{"$f":"IF(Einstellungen!$C$27,ROUND((H71*($D$10/12)),2),\"--\")","v":"--"},null,{"$f":"IF(Einstellungen!$C$27,ROUND((J71*($D$10/12)),2),\"--\")","v":"--"}]
[]
[{"$f":"IF(Einstellungen!C24,\"5.\",\"\")","v":"5."},{"$f":"IF(Einstellungen!C24,\"Tagessatz für Kinder, die ihren gewöhnlichen Aufenthalt  im LK PM haben und innerhalb des Amtes in einer anderen als die Wohnortgemeinde eine Kita besuchen.\",\"\")","v":"Tagessatz für Kinder, die ihren gewöhnlichen Aufenthalt  im LK PM haben und innerhalb des Amtes in einer anderen als die Wohnortgemeinde eine Kita besuchen."},null,null,null,null,null,{"$f":"IF(Einstellungen!$C$24,IF(Einstellungen!$C$27,(I41-(I30-Eingabetabelle!I58)-(Eingabetabelle!I186*Einstellungen!$C$7)),\"--\"),\"\")","v":"--"},null,{"$f":"IF(Einstellungen!$C$24,IF(Einstellungen!$C$27,(J41-(J30-Eingabetabelle!J58)-(Eingabetabelle!J186*Einstellungen!$C$7)),\"--\"),\"\")","v":"--"}]
[]
[]
[]
[]
[null,{"$f":"IF(Einstellungen!C24,\"5a     Kosten im Monat im Jahr \"&Einstellungen!C4,\"\")","v":"5a     Kosten im Monat im Jahr 2021"},null,null,null,null,null,{"$f":"IF(Einstellungen!$C$24,IF(Einstellungen!$C$27,ROUND((H78*($D$10/12)),2),\"--\"),\"\")","v":"--"},null,{"$f":"IF(Einstellungen!$C$24,IF(Einstellungen!$C$27,ROUND((J78*($D$10/12)),2),\"--\"),\"\")","v":"--"}]
[]
["*",{"$f":"Einstellungen!C6","v":"örtlicher Träger der Jugendhilfe"}]

{"sheet":"Hort über 4 Std.","index":8,"n_rows":85,"n_cols":10,"rows_kept":85,"cut":false,"hidden":false,"merged":[[6,4,6,8],[5,4,5,8],[26,1,26,5],[10,4,10,7],[13,0,13,3],[13,5,13,8],[14,0,14,8],[7,0,7,2],[7,4,7,7],[0,0,0,8],[1,0,1,8],[2,0,2,8],[3,4,3,8],[4,4,4,8],[30,1,30,8],[31,1,31,8],[36,1,36,5],[8,4,8,7],[9,4,9,7],[24,1,24,5],[19,4,19,7],[22,0,22,5],[23,1,23,8],[25,1,25,5],[27,1,27,5],[35,1,35,5],[25,8,27,8],[16,4,16,7],[18,4,18,7],[8,0,8,2],[29,1,29,5],[15,4,15,7],[17,4,17,7],[11,4,11,7],[12,0,12,3],[12,5,12,8],[43,1,43,5],[44,1,44,5],[45,1,45,5],[46,1,46,5],[47,1,47,5],[38,0,38,8],[39,1,39,5],[40,1,40,5],[82,1,82,6],[57,1,59,5],[61,1,61,4],[68,1,68,5],[70,1,73,5],[77,1,80,5],[48,1,48,5],[52,1,54,5],[55,1,55,5],[75,1,75,5],[41,1,41,5],[63,1,66,5],[42,1,42,5]]}
[{"$f":"\"Diese Datei ist Eigentum des Landratsamtes Potsdam-Mittelmark. Eine unbefugte Weitergabe an Dritte ist nicht gestattet!\nDateiversion: \" & Einstellungen!C3","v":"Diese Datei ist Eigentum des Landratsamtes Potsdam-Mittelmark. Eine unbefugte Weitergabe an Dritte ist nicht gestattet!\nDateiversion: 44228"},null,null,null,null,null,null,null,null,"EB"]
[{"$f":"Eingabetabelle!$A$2","v":"Berechnung der Entgelte für Kindertagesstätten im Landkreis Potsdam-Mittelmark\nfür das Jahr 2021\nRechtsstand: 01.08.2020"}]
["Hort über 4 Stunden"]
["Name und Anschrift der Einrichtung",null,null,null,{"$f":"Eingabetabelle!$E$3","v":0}]
["Träger der Einrichtung",null,null,null,{"$f":"Eingabetabelle!$E$4","v":0}]
["Rechtsform",null,null,null,{"$f":"Eingabetabelle!$E$7","v":0}]
["Art der Einrichtung",null,null,null,{"$f":"Eingabetabelle!$E$8","v":0}]
["Kostenausgleich im Amt?",null,null,{"$f":"Eingabetabelle!$D$9","v":"ja"},"Personalschlüssel",null,null,null,{"$f":"Einstellungen!C14&\"/\"&Einstellungen!D14","v":"0,8/15"}]
["Kapazität",null,null,{"$f":"Eingabetabelle!$D$10","v":0},"notwendiges pädagogisches Personal",null,null,null,{"$f":"ROUND(D9*Einstellungen!C14/Einstellungen!D14,3)","v":0}]
["Öffnungstage",null,null,{"$f":"Eingabetabelle!$D$11","v":250},{"$f":"Eingabetabelle!E11","v":" Durchschnittssatz ErzieherIn pro Monat"},null,null,null,{"$f":"Eingabetabelle!I11","v":0}]
["Belegungstage",null,null,{"$f":"Eingabetabelle!$D$12","v":0},{"$f":"Eingabetabelle!E12","v":" Durchschnittssatz LeiterIn pro Monat"},null,null,null,{"$f":"Eingabetabelle!I12","v":0}]
["Auslastungsgrad",null,null,{"$f":"Eingabetabelle!$D$13","v":0},{"$f":"Eingabetabelle!E13","v":" Durchschnittssatz gemäß KitaLAV"},null,null,null,{"$f":"Eingabetabelle!I13","v":0}]
[{"$f":"Eingabetabelle!A14","v":"Jahresmittel der belegten Plätze des Vorjahres:"},null,null,null,{"$f":"Eingabetabelle!E14","v":0}]
["Anzahl tatsächliches pädagogisches Personal:",null,null,null,{"$f":"Eingabetabelle!$E$15","v":0}]
["Leitungsanteile des Vorjahres"]
[{"$f":"Eingabetabelle!A17","v":"Stichtag"},{"$f":"Eingabetabelle!B17","v":"päd. LA"},{"$f":"Eingabetabelle!C17","v":"Stichtag "},{"$f":"Eingabetabelle!D17","v":"org. LA"},{"$f":"Eingabetabelle!E17","v":"Durchschnittlicher päd. Leitungsanteil des Vorjahres: "},null,null,null,{"$f":"Eingabetabelle!I17","v":0}]
[{"$f":"Eingabetabelle!A18","v":"01.12."},{"$f":"Eingabetabelle!B18","v":0},{"$f":"Eingabetabelle!C18","v":"01.12."},{"$f":"Eingabetabelle!D18","v":0},{"$f":"Eingabetabelle!E18","v":"Durchschnittlicher org. Leitungsanteil des Vorjahres:"},null,null,null,{"$f":"Eingabetabelle!I18","v":0}]
[{"$f":"Eingabetabelle!A19","v":"01.03."},{"$f":"Eingabetabelle!B19","v":0},{"$f":"Eingabetabelle!C19","v":"01.03."},{"$f":"Eingabetabelle!D19","v":0},{"$f":"Eingabetabelle!E19","v":"Betreuungsalter 0 bis unter 3 Jahre"},null,null,null,{"$f":"Eingabetabelle!I19","v":"ja"}]
[{"$f":"Eingabetabelle!A20","v":"01.06."},{"$f":"Eingabetabelle!B20","v":0},{"$f":"Eingabetabelle!C20","v":"01.06."},{"$f":"Eingabetabelle!D20","v":0},{"$f":"Eingabetabelle!E20","v":"Betreuungsalter 3 Jahre bis Schuleintritt"},null,null,null,{"$f":"Eingabetabelle!I20","v":"ja"}]
[{"$f":"Eingabetabelle!A21","v":"01.09."},{"$f":"Eingabetabelle!B21","v":0},{"$f":"Eingabetabelle!C21","v":"01.09."},{"$f":"Eingabetabelle!D21","v":0},{"$f":"Eingabetabelle!E21","v":"Betreuungsalter Klassenstufe 1 bis 6"},null,null,null,{"$f":"Eingabetabelle!I21","v":"nein"}]
[]
[null,null,null,null,null,null,"Jahreskosten\ngesamt","Tageskosten\ngesamt","Kosten pro\nKind pro Tag"]
[1,null,null,null,null,null,2,3,4]
["1.","Erträge"]
["1.1.","Zuschüsse des Leistungsverpflichteten  …",null,null,null,null,{"$f":"G26+G27+G28","v":0},{"$f":"ROUND(G25/$D$10,2)","v":0},{"$f":"IF($D$9=0,0,ROUND($G25/$D$10/$D$9,2))","v":0},{"$f":"IF($D$9=0,0,ROUND($G25/$D$10/$D$9,2))","v":0}]
[null,{"$f":"\"   - …für Leiterin  (in Höhe von \" & Einstellungen!C15*100 & \"% des n.p.Pers )\"","v":"   - …für Leiterin  (in Höhe von 85% des n.p.Pers )"},null,null,null,null,{"$f":"I16*I11*Einstellungen!C15*12","v":0},{"$f":"ROUND(G26/$D$10,2)","v":0},null,{"$f":"IF($D$9=0,0,ROUND($G26/$D$10/$D$9,2))","v":0}]
[null,{"$f":"\"   - … für Erzieherin ( in Höhe von \" & Einstellungen!C18*100 & \"% des n.p.Pers )\"","v":"   - … für Erzieherin ( in Höhe von 84% des n.p.Pers )"},null,null,null,null,{"$f":"I9*I10*Einstellungen!C18*12","v":0},{"$f":"ROUND(G27/$D$10,2)","v":0},null,0]
[null,"  - … Sockel-Leitungsanteil gemäß § 5 KitaPerV",null,null,null,null,{"$f":"Eingabetabelle!G29","v":0},{"$f":"ROUND(G28/$D$10,2)","v":0},null,0]
[null,"Summe Pkt. 1.2 bis 1.20.",null,null,null,null,{"$f":"Eingabetabelle!G65","v":0},{"$f":"Eingabetabelle!H65","v":0},{"$f":"Eingabetabelle!I65","v":0},0]
[null,"Summe der Erträge (Pkt.1.) fixe Kosten",null,null,null,null,{"$f":"G29+G25","v":0},{"$f":"H29+H25","v":0},{"$f":"I25+I29","v":0},0]
["2.","Aufwendungen Personalkosten",null,null,null,null,null,null,null,0]
["2.1.","Personalkosten",null,null,null,null,null,null,null,0]
[null,"Pädagogisches Personal/ErzieherIn",null,null,null,null,{"$f":"I9*I10*12","v":0},{"$f":"ROUND(G33/$D$10,2)","v":0},{"$f":"IF(D9=0,0,ROUND((G33/$D$10/$D$9),2))","v":0},0]
[null,"Pädagogisches Personal/Leiterin",null,null,null,null,{"$f":"ROUND(I16*I11*12,2)","v":0},{"$f":"ROUND(G34/$D$10,2)","v":0},{"$f":"IF(D9=0,0,ROUND(G34/$D$10/$D$9,2))","v":0},0]
[null,"Pädagogisches Personal/Leiterin Organisationsanteil",null,null,null,null,{"$f":"Eingabetabelle!G72","v":0},{"$f":"ROUND(G35/$D$10,2)","v":0},{"$f":"IF(D9=0,0,ROUND((G35/$D$10/$D$9),2))","v":0},0]
[null,"Sockel-Leitungsanteil gemäß § 5 KitaPerV",null,null,null,null,{"$f":"Eingabetabelle!G73","v":0},{"$f":"ROUND(G36/$D$10,2)","v":0},{"$f":"IF(D9=0,0,ROUND((G36/$D$10/$D$9),2))","v":0},0]
[null,"Summe ",null,null,null,null,{"$f":"G33+G34+G35+G36","v":0},{"$f":"H33+H34+H35","v":0},{"$f":"IF(D9=0,0,ROUND((G37/$D$10/$D$9),2))","v":0},0]
[null,null,null,null,null,null,null,null,null,0]
["Zusammenfassung",null,null,null,null,null,null,null,null,0]
["1.","Erträge",null,null,null,null,{"$f":"G30","v":0},{"$f":"H30","v":0},{"$f":"I30","v":0},0]
["2.","Aufwendungen",null,null,null,null,{"$f":"SUM(G42:G49)","v":0},{"$f":"ROUND(G41/$D$10,2)","v":0},{"$f":"SUM(I42:I49)","v":0},0]
[null,"2. Aufwendungen Personalkosten",null,null,null,null,{"$f":"G37","v":0},{"$f":"ROUND(G42/$D$10,2)","v":0},{"$f":"IF(D9=0,0,ROUND(G42/$D$10/$D$9,2))","v":0},0]
[null,"3. Personal- und Sachkosten für pädagogische Arbeit",null,null,null,null,{"$f":"Eingabetabelle!G206","v":0},{"$f":"Eingabetabelle!H206","v":0},{"$f":"Eingabetabelle!I206","v":0},0]
[null,"4. Personal- und Sachkosten für Grundstück und Gebäude",null,null,null,null,{"$f":"Eingabetabelle!G207","v":0},{"$f":"Eingabetabelle!H207","v":0},{"$f":"Eingabetabelle!I207","v":0},0]
[null,"5. Personal- und Sachkosten für die Versorgung mit Essen",null,null,null,null,{"$f":"Eingabetabelle!G208","v":0},{"$f":"Eingabetabelle!H208","v":0},{"$f":"Eingabetabelle!I208","v":0},0]
[null,"6. Sonstige Personal- und Sachkosten",null,null,null,null,{"$f":"Eingabetabelle!G209","v":0},{"$f":"Eingabetabelle!H209","v":0},{"$f":"Eingabetabelle!I209","v":0},0]
[null,"7. Sachkosten Ergänzung von Einrichtungsgegenständen",null,null,null,null,{"$f":"Eingabetabelle!G210","v":0},{"$f":"Eingabetabelle!H210","v":0},{"$f":"Eingabetabelle!I210","v":0},0]
[null,"8. Fördermittel",null,null,null,null,{"$f":"Eingabetabelle!G211","v":0},{"$f":"Eingabetabelle!H211","v":0},{"$f":"Eingabetabelle!I211","v":0},0]
[null,"9. Zinsen für Fremdkapital",null,null,null,null,{"$f":"Eingabetabelle!G212","v":0},{"$f":"ROUND(G49/$D$10,2)","v":0},{"$f":"Eingabetabelle!I212","v":0}]
[]
[]
[null,"Zusammenfassung:"]
["1.","Tagessatz pro Kind ohne Zuschüsse vom Landkreis* und ohne Elternbeitrag und Essengeld, 100% Aufwendungen, entspr. Staatsvertrag  mit Berlin",null,null,null,null,null,{"$f":"IF(Einstellungen!$C$27,I41-(SUM(Eingabetabelle!I42:I58,Eingabetabelle!I29)),\"--\")","v":"--"},null,{"$f":"IF(Einstellungen!$C$27,J41-(SUM(Eingabetabelle!J42:J58,Eingabetabelle!J29)),\"--\")","v":"--"}]
[]
[]
[null,{"$f":"\"1a     Kosten pro Monat im Jahr \"&Einstellungen!C4","v":"1a     Kosten pro Monat im Jahr 2021"},null,null,null,null,null,{"$f":"IF(Einstellungen!$C$27,ROUND((H53*($D$10/12)),2),\"--\")","v":"--"},null,{"$f":"IF(Einstellungen!$C$27,ROUND((J53*($D$10/12)),2),\"--\")","v":"--"}]
[]
["2.","Tagessatz pro Kind mit Berücksichtigung Elternbeitrag ohne Zuschüsse Landkreis, ohne Zuschüsse n.p.P., aber mit Zuschuss Sockelbetrag -Leitung und ohne Berücksichtigung des § 17 e KitaG (andere öffentliche Träger der öffentl. JH im Land Brandenburg oder andere Bundesländer.\n-->Potsdam, Brandenburg/ Havel, LK TF, LK LDS)",null,null,null,null,null,{"$f":"IF(Einstellungen!$C$27,I41-I29-Eingabetabelle!I73,\"--\")","v":"--"},null,{"$f":"IF(Einstellungen!$C$27,J41-J29-Eingabetabelle!J73,\"--\")","v":"--"}]
[]
[]
[]
[null,{"$f":"\"2a     Kosten im Monat im Jahr \"&Einstellungen!C4","v":"2a     Kosten im Monat im Jahr 2021"},null,null,null,null,null,{"$f":"IF(Einstellungen!$C$27,ROUND((H58*($D$10/12)),2),\"--\")","v":"--"},null,{"$f":"IF(Einstellungen!$C$27,ROUND((J58*($D$10/12)),2),\"--\")","v":"--"}]
[]
["3.","Zuschüsse zu den Betriebskosten gemäß § 16 Abs. 3 KitaG an freie Träger\n(höchstens 16% Personalkosten + andere Betriebskosten mit Berücksichtigung des Eigenanteils des Trägers und Elternbeitrag + Essengeld)",null,null,null,null,null,{"$f":"IF(Einstellungen!$C$27,I41-I30,\"--\")","v":"--"},null,{"$f":"IF(Einstellungen!$C$27,J41-J30,\"--\")","v":"--"}]
[]
[]
[]
[]
[null,{"$f":"\"3a     Kosten im Monat im Jahr \"&Einstellungen!C4","v":"3a     Kosten im Monat im Jahr 2021"},null,null,null,null,null,{"$f":"IF(Einstellungen!$C$27,ROUND((H64*($D$10/12)),2),\"--\")","v":"--"},null,{"$f":"IF(Einstellungen!$C$27,ROUND((J64*($D$10/12)),2),\"--\")","v":"--"}]
[]
["4.","Tagessatz für Kinder, die ihren gewöhnlichen Aufenthalt  im LK PM haben und außerhalb des Amtes/ der amtsfreien Gemeinde eine Kita besuchen.",null,null,null,null,null,{"$f":"IF(Einstellungen!$C$27,I41-(I30-Eingabetabelle!I58),\"--\")","v":"--"},null,{"$f":"IF(Einstellungen!$C$27,J41-(J30-Eingabetabelle!J58),\"--\")","v":"--"}]
[]
[]
[]
[]
[null,{"$f":"\"4a     Kosten im Monat im Jahr \"&Einstellungen!C4","v":"4a     Kosten im Monat im Jahr 2021"},null,null,null,null,null,{"$f":"IF(Einstellungen!$C$27,ROUND((H71*($D$10/12)),2),\"--\")","v":"--"},null,{"$f":"IF(Einstellungen!$C$27,ROUND((J71*($D$10/12)),2),\"--\")","v":"--"}]
[]
[{"$f":"IF(Einstellungen!C24,\"5.\",\"\")","v":"5."},{"$f":"IF(Einstellungen!C24,\"Tagessatz für Kinder, die ihren gewöhnlichen Aufenthalt  im LK PM haben und innerhalb des Amtes in einer anderen als die Wohnortgemeinde eine Kita besuchen.\",\"\")","v":"Tagessatz für Kinder, die ihren gewöhnlichen Aufenthalt  im LK PM haben und innerhalb des Amtes in einer anderen als die Wohnortgemeinde eine Kita besuchen."},null,null,null,null,null,{"$f":"IF(Einstellungen!$C$24,IF(Einstellungen!$C$27,(I41-(I30-Eingabetabelle!I58)-(Eingabetabelle!I186*Einstellungen!$C$7)),\"--\"),\"\")","v":"--"},null,{"$f":"IF(Einstellungen!$C$24,IF(Einstellungen!$C$27,(J41-(J30-Eingabetabelle!J58)-(Eingabetabelle!J186*Einstellungen!$C$7)),\"--\"),\"\")","v":"--"}]
[]
[]
[]
[]
[null,{"$f":"IF(Einstellungen!C24,\"5a     Kosten im Monat im Jahr \"&Einstellungen!C4,\"\")","v":"5a     Kosten im Monat im Jahr 2021"},null,null,null,null,null,{"$f":"IF(Einstellungen!C24,IF(Einstellungen!$C$27,ROUND((H78*($D$10/12)),2),\"--\"),\"\")","v":"--"},null,{"$f":"IF(Einstellungen!$C$24,IF(Einstellungen!$C$27,ROUND((J78*($D$10/12)),2),\"--\"),\"\")","v":"--"}]
[]
["*",{"$f":"Einstellungen!C6","v":"örtlicher Träger der Jugendhilfe"}]

{"sheet":"Zusammenfassung Kostensätze","index":9,"n_rows":54,"n_cols":15,"rows_kept":54,"cut":false,"hidden":false,"merged":[[21,14,22,15],[23,14,24,16],[24,1,24,5],[27,1,29,5],[2,9,2,11],[2,2,2,5],[6,1,8,5],[10,1,10,5],[3,1,3,2],[9,1,9,5],[50,1,50,5],[50,6,50,11],[52,1,52,4],[34,1,35,5],[31,1,31,4],[46,1,46,5],[46,6,46,11],[48,1,48,4],[42,1,42,5],[42,6,42,11],[44,1,44,4],[32,1,32,4],[37,1,37,4],[33,1,33,5],[38,1,38,4],[39,1,39,4],[33,6,36,11],[11,1,11,5],[5,6,8,11],[16,1,16,4],[18,1,18,4],[30,1,30,4],[13,1,15,5],[17,1,17,4],[20,1,22,5],[26,6,29,11],[19,6,22,11],[12,6,14,11],[23,1,23,5],[25,1,25,5]]}
[null,{"$f":"\"Entgelte für Kindertagesstätten  im Jahr \"&Einstellungen!C4","v":"Entgelte für Kindertagesstätten  im Jahr 2021"}]
[]
[null,"Kita:",{"$f":"Eingabetabelle!$E$3","v":0},null,null,null,null,null,null,"FD Finanzhilfen für Familien"]
[null,"Angaben in €"]
[null,null,null,null,null,null,"Kinderkrippe\nbis \n6 Stunden","Kinderkrippe\nüber \n6 Stunden","Kindergarten\nbis \n6 Stunden","Kindergarten\nüber \n6 Stunden","Hort\nbis \n4 Stunden","Hort\nüber \n4 Stunden"]
[]
["1.","Tagessatz pro Kind ohne Zuschüsse vom Landkreis* und ohne Elternbeitrag, ohne Essengeldbeitrag** entspr. Staatsvertrag  mit Berlin"]
[]
[]
[null,{"$f":"\"1a     Kosten pro Tag im Jahr \"&Einstellungen!C4","v":"1a     Kosten pro Tag im Jahr 2021"},null,null,null,null,{"$f":"IF(Einstellungen!$C$25,'KK bis 6 Std.'!$H$52,\"\")","v":0},{"$f":"IF(Einstellungen!$C$25,'KK über 6 Std.'!$H$52,\"\")","v":0},{"$f":"IF(Einstellungen!$C$26,'KG bis 6 Std.'!$H$53,\"\")","v":0},{"$f":"IF(Einstellungen!$C$26,'KG über 6 Std.'!$H$53,\"\")","v":0},{"$f":"IF(Einstellungen!$C$27,'Hort bis 4 Std.'!$H$53,\"\")","v":""},{"$f":"IF(Einstellungen!$C$27,'Hort über 4 Std.'!$H$53,\"\")","v":""}]
[null,{"$f":"\"1b     Kosten pro Monat im Jahr \"&Einstellungen!C4","v":"1b     Kosten pro Monat im Jahr 2021"},null,null,null,null,{"$f":"IF(Einstellungen!$C$25,'KK bis 6 Std.'!$H$55,\"\")","v":0},{"$f":"IF(Einstellungen!$C$25,'KK über 6 Std.'!$H$55,\"\")","v":0},{"$f":"IF(Einstellungen!$C$26,'KG bis 6 Std.'!$H$56,\"\")","v":0},{"$f":"IF(Einstellungen!$C$26,'KG über 6 Std.'!$H$56,\"\")","v":0},{"$f":"IF(Einstellungen!$C$27,'Hort bis 4 Std.'!$H$56,\"\")","v":""},{"$f":"IF(Einstellungen!$C$27,'Hort über 4 Std.'!$H$56,\"\")","v":""}]
[null,{"$f":"\"1c     Kosten pro Quartal im Jahr \"&Einstellungen!C4","v":"1c     Kosten pro Quartal im Jahr 2021"},null,null,null,null,{"$f":"IF(Einstellungen!$C$25,'Zusammenfassung Kostensätze'!G11*3,\"\")","v":0},{"$f":"IF(Einstellungen!$C$25,'Zusammenfassung Kostensätze'!H11*3,\"\")","v":0},{"$f":"IF(Einstellungen!$C$26,'Zusammenfassung Kostensätze'!I11*3,\"\")","v":0},{"$f":"IF(Einstellungen!$C$26,'Zusammenfassung Kostensätze'!J11*3,\"\")","v":0},{"$f":"IF(Einstellungen!$C$27,'Zusammenfassung Kostensätze'!K11*3,\"\")","v":""},{"$f":"IF(Einstellungen!$C$27,'Zusammenfassung Kostensätze'!L11*3,\"\")","v":""}]
[]
["2.","Tagessatz pro Kind mit Berücksichtigung Elternbeitrag ohne Zuschüsse Landkreis\n(andere öffentliche Träger der öffentl. JH im Land Brandenburg oder andere Bundesländer.\n-->Potsdam, Brandenburg/ Havel, LK TF, LK LDS)"]
[]
[]
[null,{"$f":"\"2a     Kosten pro Tag im Jahr \"&Einstellungen!C4","v":"2a     Kosten pro Tag im Jahr 2021"},null,null,null,null,{"$f":"IF(Einstellungen!$C$25,'KK bis 6 Std.'!$H$57,\"\")","v":0},{"$f":"IF(Einstellungen!$C$25,'KK über 6 Std.'!$H$57,\"\")","v":0},{"$f":"IF(Einstellungen!$C$26,'KG bis 6 Std.'!$H$58,\"\")","v":0},{"$f":"IF(Einstellungen!$C$26,'KG über 6 Std.'!$H$58,\"\")","v":0},{"$f":"IF(Einstellungen!$C$27,'Hort bis 4 Std.'!$H$58,\"\")","v":""},{"$f":"IF(Einstellungen!$C$27,'Hort über 4 Std.'!$H$58,\"\")","v":""}]
[null,{"$f":"\"2b     Kosten pro Monat im Jahr \"&Einstellungen!C4","v":"2b     Kosten pro Monat im Jahr 2021"},null,null,null,null,{"$f":"IF(Einstellungen!$C$25,'KK bis 6 Std.'!$H$61,\"\")","v":0},{"$f":"IF(Einstellungen!$C$25,'KK über 6 Std.'!$H$61,\"\")","v":0},{"$f":"IF(Einstellungen!$C$26,'KG bis 6 Std.'!$H$62,\"\")","v":0},{"$f":"IF(Einstellungen!$C$26,'KG über 6 Std.'!$H$62,\"\")","v":0},{"$f":"IF(Einstellungen!$C$27,'Hort bis 4 Std.'!$H$62,\"\")","v":""},{"$f":"IF(Einstellungen!$C$27,'Hort über 4 Std.'!$H$62,\"\")","v":""}]
[null,{"$f":"\"2c     Kosten pro Quartal im Jahr \"&Einstellungen!C4","v":"2c     Kosten pro Quartal im Jahr 2021"},null,null,null,null,{"$f":"IF(Einstellungen!$C$25,'Zusammenfassung Kostensätze'!$G$18*3,\"\")","v":0},{"$f":"IF(Einstellungen!$C$25,'Zusammenfassung Kostensätze'!$H$18*3,\"\")","v":0},{"$f":"IF(Einstellungen!$C$26,'Zusammenfassung Kostensätze'!$I$18*3,\"\")","v":0},{"$f":"IF(Einstellungen!$C$26,'Zusammenfassung Kostensätze'!$J$18*3,\"\")","v":0},{"$f":"IF(Einstellungen!$C$27,'Zusammenfassung Kostensätze'!$K$18*3,\"\")","v":""},{"$f":"IF(Einstellungen!$C$27,'Zusammenfassung Kostensätze'!$L$18*3,\"\")","v":""}]
[]
["3.","Zuschüsse zu den Betriebskosten gemäß § 16 Abs. 3 KitaG an freie Träger"]
[null,null,null,null,null,null,null,null,null,null,null,null,null,null,{"$f":"\"4a     Kosten im Monat im Jahr \"&Einstellungen!C4","v":"4a     Kosten im Monat im Jahr 2021"}]
[]
[null,{"$f":"\"3a     Kosten pro Tag im Jahr \"&Einstellungen!C4","v":"3a     Kosten pro Tag im Jahr 2021"},null,null,null,null,{"$f":"IF(Einstellungen!$C$25,'KK bis 6 Std.'!$H$63,\"\")","v":0},{"$f":"IF(Einstellungen!$C$25,'KK über 6 Std.'!$H$63,\"\")","v":0},{"$f":"IF(Einstellungen!$C$26,'KG bis 6 Std.'!$H$64,\"\")","v":0},{"$f":"IF(Einstellungen!$C$26,'KG über 6 Std.'!$H$64,\"\")","v":0},{"$f":"IF(Einstellungen!$C$27,'Hort bis 4 Std.'!$H$64,\"\")","v":""},{"$f":"IF(Einstellungen!$C$27,'Hort über 4 Std.'!$H$64,\"\")","v":""}]
[null,{"$f":"\"3b     Kosten pro Monat im Jahr \"&Einstellungen!C4","v":"3b     Kosten pro Monat im Jahr 2021"},null,null,null,null,{"$f":"IF(Einstellungen!$C$25,'KK bis 6 Std.'!$H$68,\"\")","v":0},{"$f":"IF(Einstellungen!$C$25,'KK über 6 Std.'!$H$68,\"\")","v":0},{"$f":"IF(Einstellungen!$C$26,'KG bis 6 Std.'!$H$69,\"\")","v":0},{"$f":"IF(Einstellungen!$C$26,'KG über 6 Std.'!$H$69,\"\")","v":0},{"$f":"IF(Einstellungen!$C$27,'Hort bis 4 Std.'!$H$69,\"\")","v":""},{"$f":"IF(Einstellungen!$C$27,'Hort über 4 Std.'!$H$69,\"\")","v":""}]
[null,{"$f":"\"3c     Kosten pro Quartal im Jahr \"&Einstellungen!C4","v":"3c     Kosten pro Quartal im Jahr 2021"},null,null,null,null,{"$f":"IF(Einstellungen!$C$25,'Zusammenfassung Kostensätze'!$G$25*3,\"\")","v":0},{"$f":"IF(Einstellungen!$C$25,'Zusammenfassung Kostensätze'!$H$25*3,\"\")","v":0},{"$f":"IF(Einstellungen!$C$26,'Zusammenfassung Kostensätze'!$I$25*3,\"\")","v":0},{"$f":"IF(Einstellungen!$C$26,'Zusammenfassung Kostensätze'!$J$25*3,\"\")","v":0},{"$f":"IF(Einstellungen!$C$27,'Zusammenfassung Kostensätze'!$K$25*3,\"\")","v":""},{"$f":"IF(Einstellungen!$C$27,'Zusammenfassung Kostensätze'!$L$25*3,\"\")","v":""}]
[]
[{"$f":"IF(Einstellungen!C23,\"4.\",\"\")","v":"4."},{"$f":"IF(Einstellungen!$C$23,\"Kostensatz, die die amtsfreie Gemeinde/ Stadt bzw. Amt\nfür Kinder ausserhalb ihres Zuständigkeitsbereiches, aber im LK PM zahlt\",\"\")","v":"Kostensatz, die die amtsfreie Gemeinde/ Stadt bzw. Amt\nfür Kinder ausserhalb ihres Zuständigkeitsbereiches, aber im LK PM zahlt"}]
[]
[]
[null,{"$f":"IF(Einstellungen!$C$23,\"4a     Kosten pro Tag im Jahr \"&Einstellungen!C4,\"\")","v":"4a     Kosten pro Tag im Jahr 2021"},null,null,null,null,{"$f":"IF(Einstellungen!$C$23,IF(Einstellungen!$C$25,'KK bis 6 Std.'!$H$70,\"\"),\"\")","v":0},{"$f":"IF(Einstellungen!$C$23,IF(Einstellungen!$C$25,'KK über 6 Std.'!$H$70,\"\"),\"\")","v":0},{"$f":"IF(Einstellungen!$C$23,IF(Einstellungen!$C$26,'KG bis 6 Std.'!$H$71,\"\"),\"\")","v":0},{"$f":"IF(Einstellungen!$C$23,IF(Einstellungen!$C$26,'KG über 6 Std.'!$H$71,\"\"),\"\")","v":0},{"$f":"IF(Einstellungen!$C$23,IF(Einstellungen!$C$27,'Hort bis 4 Std.'!$H$71,\"\"),\"\")","v":""},{"$f":"IF(Einstellungen!$C$23,IF(Einstellungen!$C$27,'Hort über 4 Std.'!$H$71,\"\"),\"\")","v":""}]
[null,{"$f":"IF(Einstellungen!$C$23,\"4b     Kosten pro Monat im Jahr \"&Einstellungen!$C$4,\"\")","v":"4b     Kosten pro Monat im Jahr 2021"},null,null,null,null,{"$f":"IF(Einstellungen!$C$23,IF(Einstellungen!$C$25,'KK bis 6 Std.'!$H$75,\"\"),\"\")","v":0},{"$f":"IF(Einstellungen!$C$23,IF(Einstellungen!$C$25,'KK über 6 Std.'!$H$75,\"\"),\"\")","v":0},{"$f":"IF(Einstellungen!$C$23,IF(Einstellungen!$C$26,'KG bis 6 Std.'!$H$76,\"\"),\"\")","v":0},{"$f":"IF(Einstellungen!$C$23,IF(Einstellungen!$C$26,'KG über 6 Std.'!$H$76,\"\"),\"\")","v":0},{"$f":"IF(Einstellungen!$C$23,IF(Einstellungen!$C$27,'Hort bis 4 Std.'!$H$76,\"\"),\"\")","v":""},{"$f":"IF(Einstellungen!$C$23,IF(Einstellungen!$C$27,'Hort über 4 Std.'!$H$76,\"\"),\"\")","v":""}]
[null,{"$f":"IF(Einstellungen!$C$23,\"4c     Kosten pro Quartal im Jahr \"&Einstellungen!$C$4,\"\")","v":"4c     Kosten pro Quartal im Jahr 2021"},null,null,null,null,{"$f":"IF(Einstellungen!$C$23,IF(Einstellungen!$C$25,'Zusammenfassung Kostensätze'!$G$32*3,\"\"),\"\")","v":0},{"$f":"IF(Einstellungen!$C$23,IF(Einstellungen!$C$25,'Zusammenfassung Kostensätze'!$H$32*3,\"\"),\"\")","v":0},{"$f":"IF(Einstellungen!$C$23,IF(Einstellungen!$C$26,'Zusammenfassung Kostensätze'!$I$32*3,\"\"),\"\")","v":0},{"$f":"IF(Einstellungen!$C$23,IF(Einstellungen!$C$26,'Zusammenfassung Kostensätze'!$J$32*3,\"\"),\"\")","v":0},{"$f":"IF(Einstellungen!$C$23,IF(Einstellungen!$C$27,'Zusammenfassung Kostensätze'!$K$32*3,\"\"),\"\")","v":""},{"$f":"IF(Einstellungen!$C$23,IF(Einstellungen!$C$27,'Zusammenfassung Kostensätze'!$L$32*3,\"\"),\"\")","v":""}]
[]
[{"$f":"IF(Einstellungen!C24,\"5.\",\"\")","v":"5."},{"$f":"IF(Einstellungen!C24,\"Tagessatz für Kinder, die ihren gewöhnlichen Aufenthalt  im LK PM haben und innerhalb des Amtes in einer anderen als die Wohnortgemeinde eine Kita besuchen.\",\"\")","v":"Tagessatz für Kinder, die ihren gewöhnlichen Aufenthalt  im LK PM haben und innerhalb des Amtes in einer anderen als die Wohnortgemeinde eine Kita besuchen."}]
[]
[]
[null,{"$f":"IF(Einstellungen!$C$24,\"5a     Kosten pro Tag im Jahr \"&Einstellungen!$C$4,\"\")","v":"5a     Kosten pro Tag im Jahr 2021"},null,null,null,null,{"$f":"IF(Einstellungen!$C$24,IF(Einstellungen!$C$25,'KK bis 6 Std.'!$H$77,\"\"),\"\")","v":0},{"$f":"IF(Einstellungen!$C$24,IF(Einstellungen!$C$25,'KK über 6 Std.'!$H$77,\"\"),\"\")","v":0},{"$f":"IF(Einstellungen!$C$24,IF(Einstellungen!$C$26,'KG bis 6 Std.'!$H$78,\"\"),\"\")","v":0},{"$f":"IF(Einstellungen!$C$24,IF(Einstellungen!$C$26,'KG über 6 Std.'!$H$78,\"\"),\"\")","v":0},{"$f":"IF(Einstellungen!$C$24,IF(Einstellungen!$C$27,'Hort bis 4 Std.'!$H$78,\"\"),\"\")","v":""},{"$f":"IF(Einstellungen!$C$24,IF(Einstellungen!$C$27,'Hort über 4 Std.'!$H$78,\"\"),\"\")","v":""}]
[null,{"$f":"IF(Einstellungen!$C$24,\"5b     Kosten pro Monat im Jahr \"&Einstellungen!$C$4,\"\")","v":"5b     Kosten pro Monat im Jahr 2021"},null,null,null,null,{"$f":"IF(Einstellungen!$C$24,IF(Einstellungen!$C$25,'KK bis 6 Std.'!$H$82,\"\"),\"\")","v":0},{"$f":"IF(Einstellungen!$C$24,IF(Einstellungen!$C$25,'KK über 6 Std.'!$H$82,\"\"),\"\")","v":0},{"$f":"IF(Einstellungen!$C$24,IF(Einstellungen!$C$26,'KG bis 6 Std.'!$H$83,\"\"),\"\")","v":0},{"$f":"IF(Einstellungen!$C$24,IF(Einstellungen!$C$26,'KG über 6 Std.'!$H$83,\"\"),\"\")","v":0},{"$f":"IF(Einstellungen!$C$24,IF(Einstellungen!$C$27,'Hort bis 4 Std.'!$H$83,\"\"),\"\")","v":""},{"$f":"IF(Einstellungen!$C$24,IF(Einstellungen!$C$27,'Hort über 4 Std.'!$H$83,\"\"),\"\")","v":""}]
[null,{"$f":"IF(Einstellungen!$C$24,\"5c     Kosten pro Quartal im Jahr \"&Einstellungen!$C$4,\"\")","v":"5c     Kosten pro Quartal im Jahr 2021"},null,null,null,null,{"$f":"IF(Einstellungen!$C$24,IF(Einstellungen!$C$25,'Zusammenfassung Kostensätze'!$G$39*3,\"\"),\"\")","v":0},{"$f":"IF(Einstellungen!$C$24,IF(Einstellungen!$C$25,'Zusammenfassung Kostensätze'!$H$39*3,\"\"),\"\")","v":0},{"$f":"IF(Einstellungen!$C$24,IF(Einstellungen!$C$26,'Zusammenfassung Kostensätze'!$I$39*3,\"\"),\"\")","v":0},{"$f":"IF(Einstellungen!$C$24,IF(Einstellungen!$C$26,'Zusammenfassung Kostensätze'!$J$39*3,\"\"),\"\")","v":0},{"$f":"IF(Einstellungen!$C$24,IF(Einstellungen!$C$27,'Zusammenfassung Kostensätze'!$K$39*3,\"\"),\"\")","v":""},{"$f":"IF(Einstellungen!C24,IF(Einstellungen!$C$27,'Zusammenfassung Kostensätze'!$L$39*3,\"\"),\"\")","v":""}]
[]
[]
["6.","Höchstmöglicher Elternbeitrag in der Elternbeitragssatzung/-ordnung bei Berücksichtigung des Zuschusses des örtlichen Trägers der Jugendhilfe"]
[]
[null,{"$f":"\"6a Beitrag je Monat im Jahr \"&Einstellungen!C4","v":"6a Beitrag je Monat im Jahr 2021"},null,null,null,null,{"$f":"IF(G9=\"\",\"\",(G9-'KK bis 6 Std.'!I25)*21)","v":""},{"$f":"IF(G6=\"\",\"\",(G6-'KK über 6 Std.'!I25)*21)","v":""},{"$f":"IF(I9=\"\",\"\",(I9-'KG bis 6 Std.'!I25)*21)","v":""},{"$f":"IF(J9=\"\",\"\",(J9-'KG über 6 Std.'!I25)*21)","v":""},{"$f":"IF(K9=\"\",\"\",(K9-'Hort bis 4 Std.'!I25)*21)","v":""},{"$f":"IF(L9=\"\",\"\",(L9-'Hort über 4 Std.'!I25)*21)","v":""}]
[]
["7.","Kita-Mehrbelastungsverordnung (§ 4 Abs. 4 Kita-MBAV)"]
[]
[null,{"$f":"\"7a Beitrag je Monat im Jahr \"&Einstellungen!C4","v":"7a Beitrag je Monat im Jahr 2021"},null,null,null,null,{"$f":"'KK bis 6 Std.'!K61","v":0}]
[]
["8.","Durchschnittlicher Elternbeitrag für Kinder im letzten Kitajahr beträgt (Grundlage für die Beantragung eines höheren Zuschusses gemäß § 17b Abs. 2 KitaG)"]
[]
[null,{"$f":"\"8a Beitrag je Monat im Jahr \"&Einstellungen!C4","v":"8a Beitrag je Monat im Jahr 2021"},null,null,null,null,null,null,{"$f":"IF(Eingabetabelle!$I$15=0,0,Eingabetabelle!$G$33/Eingabetabelle!$I$15/12)","v":0},{"$f":"IF(Eingabetabelle!$I$15=0,0,Eingabetabelle!$G$33/Eingabetabelle!$I$15/12)","v":0}]
[null,"*",{"$f":"Einstellungen!C6","v":"örtlicher Träger der Jugendhilfe"},null,"**","der Essenbeitrag ist Berlin separat in Rechnung zu stellen",null,null,null,null,"Dateiversion:",{"$f":"Einstellungen!C3","v":"2021-02-01"}]

{"sheet":"Zusammenfassung2","index":10,"n_rows":54,"n_cols":15,"rows_kept":54,"cut":false,"hidden":true,"merged":[[22,14,24,16],[38,1,38,4],[39,1,39,4],[34,6,36,11],[25,6,28,11],[23,1,23,5],[24,1,24,5],[26,1,28,5],[10,6,13,11],[11,1,13,5],[15,1,15,4],[2,9,2,11],[2,2,2,5],[5,1,6,5],[8,1,8,5],[9,1,9,5],[5,6,6,11],[50,1,50,5],[50,6,50,11],[52,1,52,4],[16,1,16,4],[30,1,30,4],[31,1,31,4],[18,1,21,5],[17,6,21,11],[34,1,36,5],[47,1,47,5],[47,6,47,11],[49,1,49,4],[43,1,43,5],[43,6,43,11],[45,1,45,4]]}
[]
[{"$f":"\"Entgelte für Kindertagesstätten  im Jahr \"&Einstellungen!C4","v":"Entgelte für Kindertagesstätten  im Jahr 2021"}]
[null,"Kita:",{"$f":"Eingabetabelle!$E$3","v":0},null,null,null,null,null,null,"FD Finanzhilfen für Familien"]
[null,"Angaben in  €"]
[null,null,null,null,null,null,"Kinderkrippe\nbis 6 Stunden","Kinderkrippe\nüber 6 Stunden","Kindergarten\nbis 6 Stunden","Kindergarten\nüber 6 Stunden","Hort\nbis 4 Stunden","Hort\nüber 4 Stunden"]
["1.","Kostensatz pro Kind ohne Zuschüsse vom Landkreis* und ohne Elternbeitrag, ohne Essengeldbeitrag** entspr. Staatsvertrag  mit Berlin"]
[]
[]
[null,{"$f":"\"1a     Kosten pro Monat im Jahr \"&Eingabetabelle!Q2","v":"1a     Kosten pro Monat im Jahr "},null,null,null,null,{"$f":"IF(Einstellungen!$C$25,'KK bis 6 Std.'!$H$55,\"\")","v":0},{"$f":"IF(Einstellungen!$C$25,'KK über 6 Std.'!$H$55,\"\")","v":0},{"$f":"IF(Einstellungen!$C$26,'KG bis 6 Std.'!$H$56,\"\")","v":0},{"$f":"IF(Einstellungen!$C$26,'KG über 6 Std.'!$H$56,\"\")","v":0},{"$f":"IF(Einstellungen!$C$27,'Hort bis 4 Std.'!$H$56,\"\")","v":""},{"$f":"IF(Einstellungen!$C$27,'Hort über 4 Std.'!$H$56,\"\")","v":""}]
[null,"1b     Kosten im Quartal",null,null,null,null,{"$f":"IF(Einstellungen!$C$25,G9*3,\"\")","v":0},{"$f":"IF(Einstellungen!$C$25,H9*3,\"\")","v":0},{"$f":"IF(Einstellungen!$C$26,I9*3,\"\")","v":0},{"$f":"IF(Einstellungen!$C$26,J9*3,\"\")","v":0},{"$f":"IF(Einstellungen!$C$27,K9*3,\"\")","v":""},{"$f":"IF(Einstellungen!$C$27,L9*3,\"\")","v":""}]
[]
["2.","Kostensatz pro Kind mit Berücksichtigung Elternbeitrag ohne Zuschüsse Landkreis\n(andere öffentliche Träger der öffentl. JH im Land Brandenburg odedr andere Bundesländer.\n-->Potsdam, Brandenburg/ Havel, LK TF, LK LDS)"]
[]
[]
[]
[null,{"$f":"\"2a     Kosten im Monat im Jahr \"&Eingabetabelle!Q2","v":"2a     Kosten im Monat im Jahr "},null,null,null,null,{"$f":"IF(Einstellungen!$C$25,'KK bis 6 Std.'!$H$61,\"\")","v":0},{"$f":"IF(Einstellungen!$C$25,'KK über 6 Std.'!$H$61,\"\")","v":0},{"$f":"IF(Einstellungen!$C$26,'KG bis 6 Std.'!$H$62,\"\")","v":0},{"$f":"IF(Einstellungen!$C$26,'KG über 6 Std.'!$H$62,\"\")","v":0},{"$f":"IF(Einstellungen!$C$27,'Hort bis 4 Std.'!$H$62,\"\")","v":""},{"$f":"IF(Einstellungen!$C$27,'Hort über 4 Std.'!$H$62,\"\")","v":""}]
[null,"2b     Kosten im Quartal",null,null,null,null,{"$f":"IF(Einstellungen!$C$25,G16*3,\"\")","v":0},{"$f":"IF(Einstellungen!$C$25,H16*3,\"\")","v":0},{"$f":"IF(Einstellungen!$C$26,I16*3,\"\")","v":0},{"$f":"IF(Einstellungen!$C$26,J16*3,\"\")","v":0},{"$f":"IF(Einstellungen!$C$27,K16*3,\"\")","v":""},{"$f":"IF(Einstellungen!$C$27,L16*3,\"\")","v":""}]
[]
["3.","Zuschüsse zu den Betriebskosten gemäß § 16 Abs. 3 KitaG an freie Träger"]
[]
[]
[]
[null,null,null,null,null,null,null,null,null,null,null,null,null,null,"Kostensatz, die die amtsfreie Gemeinde/ Stadt bzw. Amt\nfür Kinder ausserhalb ihres Zuständigkeitsbereiches, aber im LK PM zahlt"]
[null,{"$f":"\"3a     Kosten im Monat im Jahr \"&Eingabetabelle!Q2","v":"3a     Kosten im Monat im Jahr "},null,null,null,null,{"$f":"IF(Einstellungen!$C$25,'KK bis 6 Std.'!$H$68,\"\")","v":0},{"$f":"IF(Einstellungen!$C$25,'KK über 6 Std.'!$H$68,\"\")","v":0},{"$f":"IF(Einstellungen!$C$26,'KG bis 6 Std.'!$H$69,\"\")","v":0},{"$f":"IF(Einstellungen!$C$26,'KG über 6 Std.'!$H$69,\"\")","v":0},{"$f":"IF(Einstellungen!$C$27,'Hort bis 4 Std.'!$H$69,\"\")","v":""},{"$f":"IF(Einstellungen!$C$27,'Hort über 4 Std.'!$H$69,\"\")","v":""}]
[null,"3b     Kosten im Quartal",null,null,null,null,{"$f":"IF(Einstellungen!$C$25,G24*3,\"\")","v":0},{"$f":"IF(Einstellungen!$C$25,H24*3,\"\")","v":0},{"$f":"IF(Einstellungen!$C$26,I24*3,\"\")","v":0},{"$f":"IF(Einstellungen!$C$26,J24*3,\"\")","v":0},{"$f":"IF(Einstellungen!$C$27,K24*3,\"\")","v":""},{"$f":"IF(Einstellungen!$C$27,L24*3,\"\")","v":""}]
[null,null,null,null,null,null,null,null,null,null,null,null,null,null,{"$f":"\"4a    Kosten im Monat im Jahr \"&Einstellungen!C4","v":"4a    Kosten im Monat im Jahr 2021"}]
[{"$f":"IF(Einstellungen!C23,\"4.\",\"\")","v":"4."},{"$f":"IF(Einstellungen!C23,O23,\"\")","v":"Kostensatz, die die amtsfreie Gemeinde/ Stadt bzw. Amt\nfür Kinder ausserhalb ihres Zuständigkeitsbereiches, aber im LK PM zahlt"},null,null,null,null,null,null,null,null,null,null,null,null,"4b    Kosten im Quartal"]
[]
[]
[]
[null,{"$f":"IF(Einstellungen!C23,O26,\"\")","v":"4a    Kosten im Monat im Jahr 2021"},null,null,null,null,{"$f":"IF(Einstellungen!$C$23,IF(Einstellungen!$C$25,'KK bis 6 Std.'!$H$75,\"\"),\"\")","v":0},{"$f":"IF(Einstellungen!$C$23,IF(Einstellungen!$C$25,'KK über 6 Std.'!$H$75,\"\"),\"\")","v":0},{"$f":"IF(Einstellungen!$C$23,IF(Einstellungen!$C$26,'KG bis 6 Std.'!$H$76,\"\"),\"\")","v":0},{"$f":"IF(Einstellungen!$C$23,IF(Einstellungen!$C$26,'KG über 6 Std.'!$H$76,\"\"),\"\")","v":0},{"$f":"IF(Einstellungen!$C$23,IF(Einstellungen!$C$27,'Hort bis 4 Std.'!$H$76,\"\"),\"\")","v":""},{"$f":"IF(Einstellungen!$C$23,IF(Einstellungen!$C$27,'Hort über 4 Std.'!$H$76,\"\"),\"\")","v":""}]
[null,{"$f":"IF(Einstellungen!C23,O27,\"\")","v":"4b    Kosten im Quartal"},null,null,null,null,{"$f":"IF(Einstellungen!$C$23,IF(Einstellungen!$C$25,G31*3,\"\"),\"\")","v":0},{"$f":"IF(Einstellungen!$C$23,IF(Einstellungen!$C$25,H31*3,\"\"),\"\")","v":0},{"$f":"IF(Einstellungen!$C$23,IF(Einstellungen!$C$26,I31*3,\"\"),\"\")","v":0},{"$f":"IF(Einstellungen!$C$23,IF(Einstellungen!$C$26,J31*3,\"\"),\"\")","v":0},{"$f":"IF(Einstellungen!$C$23,IF(Einstellungen!$C$27,K31*3,\"\"),\"\")","v":""},{"$f":"IF(Einstellungen!$C$23,IF(Einstellungen!$C$27,L31*3,\"\"),\"\")","v":""}]
[]
[]
[{"$f":"IF(Einstellungen!C24,\"5.\",\"\")","v":"5."},{"$f":"IF(Einstellungen!C24,\"Tagessatz für Kinder, die ihren gewöhnlichen Aufenthalt  im LK PM haben und innerhalb des Amtes in einer anderen als die Wohnortgemeinde eine Kita besuchen.\",\"\")","v":"Tagessatz für Kinder, die ihren gewöhnlichen Aufenthalt  im LK PM haben und innerhalb des Amtes in einer anderen als die Wohnortgemeinde eine Kita besuchen."}]
[]
[]
[]
[null,{"$f":"IF(Einstellungen!C24,\"5a     Kosten im Monat im Jahr \"&Einstellungen!C4,\"\")","v":"5a     Kosten im Monat im Jahr 2021"},null,null,null,null,{"$f":"IF(Einstellungen!$C$24,IF(Einstellungen!$C$25,'KK bis 6 Std.'!$H$82,\"\"),\"\")","v":0},{"$f":"IF(Einstellungen!$C$24,IF(Einstellungen!$C$25,'KK über 6 Std.'!$H$82,\"\"),\"\")","v":0},{"$f":"IF(Einstellungen!$C$24,IF(Einstellungen!$C$26,'KG bis 6 Std.'!$H$83,\"\"),\"\")","v":0},{"$f":"IF(Einstellungen!$C$24,IF(Einstellungen!$C$26,'KG über 6 Std.'!$H$83,\"\"),\"\")","v":0},{"$f":"IF(Einstellungen!$C$24,IF(Einstellungen!$C$27,'Hort bis 4 Std.'!$H$83,\"\"),\"\")","v":""},{"$f":"IF(Einstellungen!$C$24,IF(Einstellungen!$C$27,'Hort über 4 Std.'!$H$83,\"\"),\"\")","v":""}]
[null,{"$f":"IF(Einstellungen!C24,\"5b    Kosten im Quartal\",\"\")","v":"5b    Kosten im Quartal"},null,null,null,null,{"$f":"IF(Einstellungen!$C$24,IF(Einstellungen!$C$25,G39*3,\"\"),\"\")","v":0},{"$f":"IF(Einstellungen!$C$24,IF(Einstellungen!$C$25,H39*3,\"\"),\"\")","v":0},{"$f":"IF(Einstellungen!$C$24,IF(Einstellungen!$C$26,I39*3,\"\"),\"\")","v":0},{"$f":"IF(Einstellungen!$C$24,IF(Einstellungen!$C$26,J39*3,\"\"),\"\")","v":0},{"$f":"IF(Einstellungen!$C$24,IF(Einstellungen!$C$27,K39*3,\"\"),\"\")","v":""},{"$f":"IF(Einstellungen!$C$24,IF(Einstellungen!$C$27,L39*3,\"\"),\"\")","v":""}]
[]
[]
[]
["6.","Höchstmöglicher Elternbeitrag in der Elternbeitragssatzung/-ordnung bei Berücksichtigung des Zuschusses des örtlichen Trägers der Jugendhilfe"]
[]
[null,{"$f":"\"6a Beitrag je Monat \"&Einstellungen!C4","v":"6a Beitrag je Monat 2021"},null,null,null,null,{"$f":"'Zusammenfassung Kostensätze'!G45","v":""},{"$f":"'Zusammenfassung Kostensätze'!H45","v":""},{"$f":"'Zusammenfassung Kostensätze'!I45","v":""},{"$f":"'Zusammenfassung Kostensätze'!J45","v":""},{"$f":"'Zusammenfassung Kostensätze'!K45","v":""},{"$f":"'Zusammenfassung Kostensätze'!L45","v":""}]
[]
["7.","Kita-Mehrbelastungsverordnung (§ 4 Abs. 4 Kita-MBAV)"]
[]
[null,{"$f":"\"7a Beitrag im Jahr \"&Einstellungen!C4","v":"7a Beitrag im Jahr 2021"},null,null,null,null,{"$f":"'KK bis 6 Std.'!K61*12","v":0}]
["8.","Durchschnittlicher Elternbeitrag für Kinder im letzten Kitajahr beträgt (Grundlage für die Beantragung eines höheren Zuschusses gemäß § 17b Abs. 2 KitaG)"]
[]
[null,{"$f":"\"8a Beitrag im Jahr \"&Einstellungen!C4","v":"8a Beitrag im Jahr 2021"},null,null,null,null,null,null,{"$f":"IF(Eingabetabelle!$I$15=0,0,Eingabetabelle!$G$33/Eingabetabelle!$I$15/12)","v":0},{"$f":"IF(Eingabetabelle!$I$15=0,0,Eingabetabelle!$G$33/Eingabetabelle!$I$15/12)","v":0}]
["*",{"$f":"Einstellungen!C6","v":"örtlicher Träger der Jugendhilfe"},null,null,"**","der Essenbeitrag ist Berlin separat in Rechnung zu stellen",null,null,null,null,"Dateiversion:",{"$f":"Einstellungen!C3","v":44228}]

{"sheet":"höchstmöglicher Elternbeitrag","index":11,"n_rows":50,"n_cols":15,"rows_kept":50,"cut":false,"hidden":false,"merged":[[46,1,46,5],[46,6,46,11],[48,1,48,4],[41,1,41,5],[43,1,43,4],[40,1,40,5],[40,6,40,11],[42,1,42,5],[44,1,44,4],[33,1,33,5],[33,6,36,11],[34,1,35,5],[37,1,37,4],[38,1,38,4],[39,1,39,4],[32,1,32,4],[18,1,18,4],[19,6,22,11],[20,1,22,5],[21,14,22,15],[23,1,23,5],[23,14,24,16],[24,1,24,5],[25,1,25,5],[26,6,29,11],[27,1,29,5],[30,1,30,4],[31,1,31,4],[17,1,17,4],[2,2,2,5],[2,9,2,11],[3,1,3,2],[5,6,8,11],[6,1,8,5],[9,1,9,5],[10,1,10,5],[11,1,11,5],[12,6,14,11],[13,1,15,5],[16,1,16,4]]}
[null,{"$f":"\"Entgelte für Kindertagesstätten  im Jahr \"&Einstellungen!C4","v":"Entgelte für Kindertagesstätten  im Jahr 2021"}]
[]
[null,"Kita:",{"$f":"Eingabetabelle!$E$3","v":0},null,null,null,null,null,null,"FD Finanzhilfen für Familien"]
[null,"Angaben in €"]
[null,null,null,null,null,null,"Kinderkrippe\nbis \n6 Stunden","Kinderkrippe\nüber \n6 Stunden","Kindergarten\nbis \n6 Stunden","Kindergarten\nüber \n6 Stunden","Hort\nbis \n4 Stunden","Hort\nüber \n4 Stunden"]
[]
["1.","Tagessatz pro Kind ohne Zuschüsse vom Landkreis* und ohne Elternbeitrag, ohne Essengeldbeitrag** entspr. Staatsvertrag  mit Berlin"]
[]
[]
[null,{"$f":"\"1a     Kosten pro Tag im Jahr \"&Einstellungen!C4","v":"1a     Kosten pro Tag im Jahr 2021"},null,null,null,null,{"$f":"IF(Einstellungen!$C$25,'KK bis 6 Std.'!$H$52,\"\")","v":0},{"$f":"IF(Einstellungen!$C$25,'KK über 6 Std.'!$H$52,\"\")","v":0},{"$f":"IF(Einstellungen!$C$26,'KG bis 6 Std.'!$H$53,\"\")","v":0},{"$f":"IF(Einstellungen!$C$26,'KG über 6 Std.'!$H$53,\"\")","v":0},{"$f":"IF(Einstellungen!$C$27,'Hort bis 4 Std.'!$H$53,\"\")","v":""},{"$f":"IF(Einstellungen!$C$27,'Hort über 4 Std.'!$H$53,\"\")","v":""}]
[null,{"$f":"\"1b     Kosten pro Monat im Jahr \"&Einstellungen!C4","v":"1b     Kosten pro Monat im Jahr 2021"},null,null,null,null,{"$f":"IF(Einstellungen!$C$25,'KK bis 6 Std.'!$H$55,\"\")","v":0},{"$f":"IF(Einstellungen!$C$25,'KK über 6 Std.'!$H$55,\"\")","v":0},{"$f":"IF(Einstellungen!$C$26,'KG bis 6 Std.'!$H$56,\"\")","v":0},{"$f":"IF(Einstellungen!$C$26,'KG über 6 Std.'!$H$56,\"\")","v":0},{"$f":"IF(Einstellungen!$C$27,'Hort bis 4 Std.'!$H$56,\"\")","v":""},{"$f":"IF(Einstellungen!$C$27,'Hort über 4 Std.'!$H$56,\"\")","v":""}]
[null,{"$f":"\"1c     Kosten pro Quartal im Jahr \"&Einstellungen!C4","v":"1c     Kosten pro Quartal im Jahr 2021"},null,null,null,null,{"$f":"IF(Einstellungen!$C$25,'höchstmöglicher Elternbeitrag'!G11*3,\"\")","v":0},{"$f":"IF(Einstellungen!$C$25,'höchstmöglicher Elternbeitrag'!H11*3,\"\")","v":0},{"$f":"IF(Einstellungen!$C$26,'höchstmöglicher Elternbeitrag'!I11*3,\"\")","v":0},{"$f":"IF(Einstellungen!$C$26,'höchstmöglicher Elternbeitrag'!J11*3,\"\")","v":0},{"$f":"IF(Einstellungen!$C$27,'höchstmöglicher Elternbeitrag'!K11*3,\"\")","v":""},{"$f":"IF(Einstellungen!$C$27,'höchstmöglicher Elternbeitrag'!L11*3,\"\")","v":""}]
[]
["2.","Tagessatz pro Kind mit Berücksichtigung Elternbeitrag ohne Zuschüsse Landkreis\n(andere öffentliche Träger der öffentl. JH im Land Brandenburg oder andere Bundesländer.\n-->Potsdam, Brandenburg/ Havel, LK TF, LK LDS)"]
[]
[]
[null,{"$f":"\"2a     Kosten pro Tag im Jahr \"&Einstellungen!C4","v":"2a     Kosten pro Tag im Jahr 2021"},null,null,null,null,{"$f":"IF(Einstellungen!$C$25,'KK bis 6 Std.'!$H$57,\"\")","v":0},{"$f":"IF(Einstellungen!$C$25,'KK über 6 Std.'!$H$57,\"\")","v":0},{"$f":"IF(Einstellungen!$C$26,'KG bis 6 Std.'!$H$58,\"\")","v":0},{"$f":"IF(Einstellungen!$C$26,'KG über 6 Std.'!$H$58,\"\")","v":0},{"$f":"IF(Einstellungen!$C$27,'Hort bis 4 Std.'!$H$58,\"\")","v":""},{"$f":"IF(Einstellungen!$C$27,'Hort über 4 Std.'!$H$58,\"\")","v":""}]
[null,{"$f":"\"2b     Kosten pro Monat im Jahr \"&Einstellungen!C4","v":"2b     Kosten pro Monat im Jahr 2021"},null,null,null,null,{"$f":"IF(Einstellungen!$C$25,'KK bis 6 Std.'!$H$61,\"\")","v":0},{"$f":"IF(Einstellungen!$C$25,'KK über 6 Std.'!$H$61,\"\")","v":0},{"$f":"IF(Einstellungen!$C$26,'KG bis 6 Std.'!$H$62,\"\")","v":0},{"$f":"IF(Einstellungen!$C$26,'KG über 6 Std.'!$H$62,\"\")","v":0},{"$f":"IF(Einstellungen!$C$27,'Hort bis 4 Std.'!$H$62,\"\")","v":""},{"$f":"IF(Einstellungen!$C$27,'Hort über 4 Std.'!$H$62,\"\")","v":""}]
[null,{"$f":"\"2c     Kosten pro Quartal im Jahr \"&Einstellungen!C4","v":"2c     Kosten pro Quartal im Jahr 2021"},null,null,null,null,{"$f":"IF(Einstellungen!$C$25,'höchstmöglicher Elternbeitrag'!$G$18*3,\"\")","v":0},{"$f":"IF(Einstellungen!$C$25,'höchstmöglicher Elternbeitrag'!$H$18*3,\"\")","v":0},{"$f":"IF(Einstellungen!$C$26,'höchstmöglicher Elternbeitrag'!$I$18*3,\"\")","v":0},{"$f":"IF(Einstellungen!$C$26,'höchstmöglicher Elternbeitrag'!$J$18*3,\"\")","v":0},{"$f":"IF(Einstellungen!$C$27,'höchstmöglicher Elternbeitrag'!$K$18*3,\"\")","v":""},{"$f":"IF(Einstellungen!$C$27,'höchstmöglicher Elternbeitrag'!$L$18*3,\"\")","v":""}]
[]
["3.","Zuschüsse zu den Betriebskosten gemäß § 16 Abs. 3 KitaG an freie Träger"]
[null,null,null,null,null,null,null,null,null,null,null,null,null,null,{"$f":"\"4a     Kosten im Monat im Jahr \"&Einstellungen!C4","v":"4a     Kosten im Monat im Jahr 2021"}]
[]
[null,{"$f":"\"3a     Kosten pro Tag im Jahr \"&Einstellungen!C4","v":"3a     Kosten pro Tag im Jahr 2021"},null,null,null,null,{"$f":"IF(Einstellungen!$C$25,'KK bis 6 Std.'!$H$63,\"\")","v":0},{"$f":"IF(Einstellungen!$C$25,'KK über 6 Std.'!$H$63,\"\")","v":0},{"$f":"IF(Einstellungen!$C$26,'KG bis 6 Std.'!$H$64,\"\")","v":0},{"$f":"IF(Einstellungen!$C$26,'KG über 6 Std.'!$H$64,\"\")","v":0},{"$f":"IF(Einstellungen!$C$27,'Hort bis 4 Std.'!$H$64,\"\")","v":""},{"$f":"IF(Einstellungen!$C$27,'Hort über 4 Std.'!$H$64,\"\")","v":""}]
[null,{"$f":"\"3b     Kosten pro Monat im Jahr \"&Einstellungen!C4","v":"3b     Kosten pro Monat im Jahr 2021"},null,null,null,null,{"$f":"IF(Einstellungen!$C$25,'KK bis 6 Std.'!$H$68,\"\")","v":0},{"$f":"IF(Einstellungen!$C$25,'KK über 6 Std.'!$H$68,\"\")","v":0},{"$f":"IF(Einstellungen!$C$26,'KG bis 6 Std.'!$H$69,\"\")","v":0},{"$f":"IF(Einstellungen!$C$26,'KG über 6 Std.'!$H$69,\"\")","v":0},{"$f":"IF(Einstellungen!$C$27,'Hort bis 4 Std.'!$H$69,\"\")","v":""},{"$f":"IF(Einstellungen!$C$27,'Hort über 4 Std.'!$H$69,\"\")","v":""}]
[null,{"$f":"\"3c     Kosten pro Quartal im Jahr \"&Einstellungen!C4","v":"3c     Kosten pro Quartal im Jahr 2021"},null,null,null,null,{"$f":"IF(Einstellungen!$C$25,'höchstmöglicher Elternbeitrag'!$G$25*3,\"\")","v":0},{"$f":"IF(Einstellungen!$C$25,'höchstmöglicher Elternbeitrag'!$H$25*3,\"\")","v":0},{"$f":"IF(Einstellungen!$C$26,'höchstmöglicher Elternbeitrag'!$I$25*3,\"\")","v":0},{"$f":"IF(Einstellungen!$C$26,'höchstmöglicher Elternbeitrag'!$J$25*3,\"\")","v":0},{"$f":"IF(Einstellungen!$C$27,'höchstmöglicher Elternbeitrag'!$K$25*3,\"\")","v":""},{"$f":"IF(Einstellungen!$C$27,'höchstmöglicher Elternbeitrag'!$L$25*3,\"\")","v":""}]
[]
[{"$f":"IF(Einstellungen!C23,\"4.\",\"\")","v":"4."},{"$f":"IF(Einstellungen!$C$23,\"Kostensatz, die die amtsfreie Gemeinde/ Stadt bzw. Amt\nfür Kinder ausserhalb ihres Zuständigkeitsbereiches, aber im LK PM zahlt\",\"\")","v":"Kostensatz, die die amtsfreie Gemeinde/ Stadt bzw. Amt\nfür Kinder ausserhalb ihres Zuständigkeitsbereiches, aber im LK PM zahlt"}]
[]
[]
[null,{"$f":"IF(Einstellungen!$C$23,\"4a     Kosten pro Tag im Jahr \"&Einstellungen!C4,\"\")","v":"4a     Kosten pro Tag im Jahr 2021"},null,null,null,null,{"$f":"IF(Einstellungen!$C$23,IF(Einstellungen!$C$25,'KK bis 6 Std.'!$H$70,\"\"),\"\")","v":0},{"$f":"IF(Einstellungen!$C$23,IF(Einstellungen!$C$25,'KK über 6 Std.'!$H$70,\"\"),\"\")","v":0},{"$f":"IF(Einstellungen!$C$23,IF(Einstellungen!$C$26,'KG bis 6 Std.'!$H$71,\"\"),\"\")","v":0},{"$f":"IF(Einstellungen!$C$23,IF(Einstellungen!$C$26,'KG über 6 Std.'!$H$71,\"\"),\"\")","v":0},{"$f":"IF(Einstellungen!$C$23,IF(Einstellungen!$C$27,'Hort bis 4 Std.'!$H$71,\"\"),\"\")","v":""},{"$f":"IF(Einstellungen!$C$23,IF(Einstellungen!$C$27,'Hort über 4 Std.'!$H$71,\"\"),\"\")","v":""}]
[null,{"$f":"IF(Einstellungen!$C$23,\"4b     Kosten pro Monat im Jahr \"&Einstellungen!$C$4,\"\")","v":"4b     Kosten pro Monat im Jahr 2021"},null,null,null,null,{"$f":"IF(Einstellungen!$C$23,IF(Einstellungen!$C$25,'KK bis 6 Std.'!$H$75,\"\"),\"\")","v":0},{"$f":"IF(Einstellungen!$C$23,IF(Einstellungen!$C$25,'KK über 6 Std.'!$H$75,\"\"),\"\")","v":0},{"$f":"IF(Einstellungen!$C$23,IF(Einstellungen!$C$26,'KG bis 6 Std.'!$H$76,\"\"),\"\")","v":0},{"$f":"IF(Einstellungen!$C$23,IF(Einstellungen!$C$26,'KG über 6 Std.'!$H$76,\"\"),\"\")","v":0},{"$f":"IF(Einstellungen!$C$23,IF(Einstellungen!$C$27,'Hort bis 4 Std.'!$H$76,\"\"),\"\")","v":""},{"$f":"IF(Einstellungen!$C$23,IF(Einstellungen!$C$27,'Hort über 4 Std.'!$H$76,\"\"),\"\")","v":""}]
[null,{"$f":"IF(Einstellungen!$C$23,\"4c     Kosten pro Quartal im Jahr \"&Einstellungen!$C$4,\"\")","v":"4c     Kosten pro Quartal im Jahr 2021"},null,null,null,null,{"$f":"IF(Einstellungen!$C$23,IF(Einstellungen!$C$25,'höchstmöglicher Elternbeitrag'!$G$32*3,\"\"),\"\")","v":0},{"$f":"IF(Einstellungen!$C$23,IF(Einstellungen!$C$25,'höchstmöglicher Elternbeitrag'!$H$32*3,\"\"),\"\")","v":0},{"$f":"IF(Einstellungen!$C$23,IF(Einstellungen!$C$26,'höchstmöglicher Elternbeitrag'!$I$32*3,\"\"),\"\")","v":0},{"$f":"IF(Einstellungen!$C$23,IF(Einstellungen!$C$26,'höchstmöglicher Elternbeitrag'!$J$32*3,\"\"),\"\")","v":0},{"$f":"IF(Einstellungen!$C$23,IF(Einstellungen!$C$27,'höchstmöglicher Elternbeitrag'!$K$32*3,\"\"),\"\")","v":""},{"$f":"IF(Einstellungen!$C$23,IF(Einstellungen!$C$27,'höchstmöglicher Elternbeitrag'!$L$32*3,\"\"),\"\")","v":""}]
[]
[{"$f":"IF(Einstellungen!C24,\"5.\",\"\")","v":"5."},{"$f":"IF(Einstellungen!C24,\"Tagessatz für Kinder, die ihren gewöhnlichen Aufenthalt  im LK PM haben und innerhalb des Amtes in einer anderen als die Wohnortgemeinde eine Kita besuchen.\",\"\")","v":"Tagessatz für Kinder, die ihren gewöhnlichen Aufenthalt  im LK PM haben und innerhalb des Amtes in einer anderen als die Wohnortgemeinde eine Kita besuchen."}]
[]
[]
[null,{"$f":"IF(Einstellungen!$C$24,\"5a     Kosten pro Tag im Jahr \"&Einstellungen!$C$4,\"\")","v":"5a     Kosten pro Tag im Jahr 2021"},null,null,null,null,{"$f":"IF(Einstellungen!$C$24,IF(Einstellungen!$C$25,'KK bis 6 Std.'!$H$77,\"\"),\"\")","v":0},{"$f":"IF(Einstellungen!$C$24,IF(Einstellungen!$C$25,'KK über 6 Std.'!$H$77,\"\"),\"\")","v":0},{"$f":"IF(Einstellungen!$C$24,IF(Einstellungen!$C$26,'KG bis 6 Std.'!$H$78,\"\"),\"\")","v":0},{"$f":"IF(Einstellungen!$C$24,IF(Einstellungen!$C$26,'KG über 6 Std.'!$H$78,\"\"),\"\")","v":0},{"$f":"IF(Einstellungen!$C$24,IF(Einstellungen!$C$27,'Hort bis 4 Std.'!$H$78,\"\"),\"\")","v":""},{"$f":"IF(Einstellungen!$C$24,IF(Einstellungen!$C$27,'Hort über 4 Std.'!$H$78,\"\"),\"\")","v":""}]
[null,{"$f":"IF(Einstellungen!$C$24,\"5b     Kosten pro Monat im Jahr \"&Einstellungen!$C$4,\"\")","v":"5b     Kosten pro Monat im Jahr 2021"},null,null,null,null,{"$f":"IF(Einstellungen!$C$24,IF(Einstellungen!$C$25,'KK bis 6 Std.'!$H$82,\"\"),\"\")","v":0},{"$f":"IF(Einstellungen!$C$24,IF(Einstellungen!$C$25,'KK über 6 Std.'!$H$82,\"\"),\"\")","v":0},{"$f":"IF(Einstellungen!$C$24,IF(Einstellungen!$C$26,'KG bis 6 Std.'!$H$83,\"\"),\"\")","v":0},{"$f":"IF(Einstellungen!$C$24,IF(Einstellungen!$C$26,'KG über 6 Std.'!$H$83,\"\"),\"\")","v":0},{"$f":"IF(Einstellungen!$C$24,IF(Einstellungen!$C$27,'Hort bis 4 Std.'!$H$83,\"\"),\"\")","v":""},{"$f":"IF(Einstellungen!$C$24,IF(Einstellungen!$C$27,'Hort über 4 Std.'!$H$83,\"\"),\"\")","v":""}]
[null,{"$f":"IF(Einstellungen!$C$24,\"5c     Kosten pro Quartal im Jahr \"&Einstellungen!$C$4,\"\")","v":"5c     Kosten pro Quartal im Jahr 2021"},null,null,null,null,{"$f":"IF(Einstellungen!$C$24,IF(Einstellungen!$C$25,'höchstmöglicher Elternbeitrag'!$G$39*3,\"\"),\"\")","v":0},{"$f":"IF(Einstellungen!$C$24,IF(Einstellungen!$C$25,'höchstmöglicher Elternbeitrag'!$H$39*3,\"\"),\"\")","v":0},{"$f":"IF(Einstellungen!$C$24,IF(Einstellungen!$C$26,'höchstmöglicher Elternbeitrag'!$I$39*3,\"\"),\"\")","v":0},{"$f":"IF(Einstellungen!$C$24,IF(Einstellungen!$C$26,'höchstmöglicher Elternbeitrag'!$J$39*3,\"\"),\"\")","v":0},{"$f":"IF(Einstellungen!$C$24,IF(Einstellungen!$C$27,'höchstmöglicher Elternbeitrag'!$K$39*3,\"\"),\"\")","v":""},{"$f":"IF(Einstellungen!C24,IF(Einstellungen!$C$27,'höchstmöglicher Elternbeitrag'!$L$39*3,\"\"),\"\")","v":""}]
["1.","Höchstmöglicher Elternbeitrag in der Elternbeitragssatzung/-ordnung bei Berücksichtigung \ndes Zuschusses des örtlichen Trägers der Jugendhilfe"]
[null,{"$f":"\"1a Beitrag je Monat im Jahr \"&Einstellungen!C4","v":"1a Beitrag je Monat im Jahr 2021"},null,null,null,null,{"$f":"IF('Zusammenfassung Kostensätze'!G10=\"\",\"\",('Zusammenfassung Kostensätze'!G10-'KK bis 6 Std.'!J25)*21)","v":0},{"$f":"IF('Zusammenfassung Kostensätze'!H10=\"\",\"\",('Zusammenfassung Kostensätze'!H10-'KK über 6 Std.'!J25)*21)","v":0},{"$f":"IF('Zusammenfassung Kostensätze'!I10=\"\",\"\",('Zusammenfassung Kostensätze'!I10-'KG bis 6 Std.'!J25)*21)","v":0},{"$f":"IF('Zusammenfassung Kostensätze'!J10=\"\",\"\",('Zusammenfassung Kostensätze'!J10-'KG über 6 Std.'!J25)*21)","v":0},{"$f":"IF('Zusammenfassung Kostensätze'!K10=\"\",\"\",('Zusammenfassung Kostensätze'!K10-'Hort bis 4 Std.'!J25)*21)","v":""},{"$f":"IF('Zusammenfassung Kostensätze'!L10=\"\",\"\",('Zusammenfassung Kostensätze'!L10-'Hort über 4 Std.'!J25)*21)","v":""}]
["2.","Kita-Mehrbelastungsverordnung (§ 4 Abs. 4 Kita-MBAV)"]
[null,{"$f":"\"2a Beitrag je Monat im Jahr \"&Einstellungen!C4","v":"2a Beitrag je Monat im Jahr 2021"},null,null,null,null,{"$f":"'KK bis 6 Std.'!K61","v":0}]
[null,{"$f":"\"7a Beitrag je Monat im Jahr \"&Einstellungen!C4","v":"7a Beitrag je Monat im Jahr 2021"},null,null,null,null,{"$f":"'KK bis 6 Std.'!K61","v":0}]
[]
["8.","Durchschnittlicher Elternbeitrag für Kinder im letzten Kitajahr beträgt (Grundlage für die Beantragung eines höheren Zuschusses gemäß § 17b Abs. 2 KitaG)"]
[]
[null,{"$f":"\"2b Beitrag im Jahr \"&Einstellungen!C4","v":"2b Beitrag im Jahr 2021"},null,null,null,null,{"$f":"G44*12","v":0},null,{"$f":"IF(Eingabetabelle!$I$15=0,0,Eingabetabelle!$G$33/Eingabetabelle!$I$15/12)","v":0},{"$f":"IF(Eingabetabelle!$I$15=0,0,Eingabetabelle!$G$33/Eingabetabelle!$I$15/12)","v":0}]
[null,null,null,null,null,null,null,null,null,null,"Dateiversion:",{"$f":"Einstellungen!C3","v":"2021-02-01"}]

{"sheet":"Erläuterungen","index":12,"n_rows":8,"n_cols":3,"rows_kept":8,"cut":false,"hidden":false,"merged":[[7,2,7,9],[1,0,1,8],[3,1,3,9],[4,1,4,9],[5,1,5,9],[6,1,6,9]]}
[]
["Erläuterungen zur Nutzung der EXCEL-Tabelle zur Entgeltberechnung für Kindertagesstätten"]
[]
["1.","Es wird empfohlen, die Datei für jede zu berechnende Kitas unter einem anderen Namen zu speichern."]
["2.","Eingaben können nur in der Eingebetabelle vorgenommen werden. Für jede Betreuungsart (KK bis 6 Stunden Betreuungszeit, KK über 6 Stunden Betreuungszeit u.s.w. wird in einer gesondeten Tabelle die Berechnung durchgeführt."]
["3.","Die Berechnung der Tageskosten und der Kosten je Kind und Tag erfolgt Zeilenweise.\nFür die Bereiche 1. Einnahmen, 2. Personalkosten und 3. Sachkosten wird spaltenweise eine Summe gebildet mit Ausnahme der Spalte Kosten je Kind und Tag. Hier erfolgt in der Summenzeile eine zeilenweise Berechnung.\nSind die in Spalte Gesamtkosten je Tag eingetragenen Werte zu gering, führt das dazu, dass durch Runden\nauf 2 Nachkommastellen der Wert 0,00 für die Einzelposition errechnet wird. Bei der Summenbildung in der Spalte wird der Ansatz dieser Einnahme oder Ausgabe eleminiert.\nDer Betrag Kosten je Kind und Tag wird in der Zeile berechnet.  Differenzen zur Summenbildung können dadurch auftreten."]
["4.","Eingaben können nur in die grau hinterlegten Felder der Eingabetabelle vorgenommen werden. Gelb hinterlegte Felder sind mit Werten vorbelegt, die aber bei Notwendigkeit überschrieben werden können."]
[null,"Hinweis:","Formeln und Standardwerte sind dann überschrieben"]